Workbook

Sheet PLANILHA_SINTÉTICA
E3: ANEXO X - LOTE 2
C5: PLANILHA DE SERVIÇOS SINTÉTICA NÃO DESONERADA
C7: DEPARTAMENTO ESTADUAL DE TRÂNSITO - DETRAN PR
C8: COORDENADORIA DE ENGENHARIA E ARQUITETURA - DIVISÃO DE SINALIZAÇÃO | R8: EDITAR OS ITENS EM VERMELHO E APAGAR OS ITENS COM QUANTITATIVO ZERADO
C9: PROJETO DE SINALIZAÇÃO VIÁRIA URBANA | E9: ='FOLHA FECHAMENTO'!D12 -> lote 02 | K9: ART/RRT Nº: | L9: ='FOLHA FECHAMENTO'!M18 -> 16594464
B10: ref. | C10: ='FOLHA FECHAMENTO'!F41 -> SICRO (OUT/2025), DER (AGO/2025) e SCO-RIO (DEZ/2025), SIURB (OUT/2025) S. DESONERAÇÃO | E10: RESPONSÁVEL TÉCNICO: | G10: ='FOLHA FECHAMENTO'!H17 -> Amanda Patricia de Oliveira Henning | K10: REG. CREA/CAU: | L10: ='FOLHA FECHAMENTO'!M17 -> A284127-4
C11: lote 02 | K11: Vigência planilha | L11: =TODAY() -> 46239
B13: ITEM | C13: DESCRIÇÃO | D13: ÓRGÃO | E13: CÓDIGO | F13: DATA BASE | G13: UNIDADE | H13: QUANTIDADE | I13: MÃO DE OBRA | J13: MATERIAL | K13: CUSTO UNITÁRIO | L13: MÃO DE OBRA T. | M13: MATERIAL T. | N13: CUSTO TOTAL
B14: 1 | C14: SINALIZAÇÃO VERTICAL | H14: - | L14: =ROUND(SUM(L15:L38),2) -> 326536.46 | M14: =ROUND(SUM(M15:M38),2) -> 1631246.99 | N14: =ROUND(SUM(N15:N38),2) -> 1957783.46
B15: ='PLANILHA REFERENCIA DETRAN PR'!A7 -> 1.1 | C15: =VLOOKUP(Tabela2[[#This Row],[ITEM]],'PLANILHA REFERENCIA DETRAN PR'!$A$4:$I$42,2,FALSE) -> Placa tipo R-1 - L = 0,25m. Com película refletiva tipo I A (prismática) - Área: 0,32 m² | D15: =VLOOKUP(Tabela2[[#This Row],[ITEM]],'PLANILHA REFERENCIA DETRAN PR'!$A$4:$I$42,3,FALSE) -> DETRAN-PR | E15: =VLOOKUP(Tabela2[[#This Row],[ITEM]],'PLANILHA REFERENCIA DETRAN PR'!$A$4:$I$42,4,FALSE) -> COMP.05 | F15: =VLOOKUP(Tabela2[[#This Row],[ITEM]],'PLANILHA REFERENCIA DETRAN PR'!$A$4:$I$42,5,FALSE) -> 2025-12-30 | G15: =VLOOKUP(Tabela2[[#This Row],[ITEM]],'PLANILHA REFERENCIA DETRAN PR'!$A$4:$I$42,6,FALSE) -> m² | H15: 316 | I15: =VLOOKUP(Tabela2[[#This Row],[ITEM]],'PLANILHA REFERENCIA DETRAN PR'!$A$4:$I$42,7,FALSE) -> 16.85 | J15: =VLOOKUP(Tabela2[[#This Row],[ITEM]],'PLANILHA REFERENCIA DETRAN PR'!$A$4:$I$42,8,FALSE) -> 155.25 | K15: =Tabela2[[#This Row],[MATERIAL]]+Tabela2[[#This Row],[MÃO DE OBRA]] -> 172.1 | L15: =ROUND(I15*H15,2) -> 5324.6 | M15: =ROUND(J15*H15,2) -> 49059 | N15: =ROUND((K15*H15),2) -> 54383.6
B16: ='PLANILHA REFERENCIA DETRAN PR'!A8 -> 1.2 | C16: =VLOOKUP(Tabela2[[#This Row],[ITEM]],'PLANILHA REFERENCIA DETRAN PR'!$A$4:$I$42,2,FALSE) -> Placa tipo R-2 - L = 0,75m. Com película refletiva tipo I A (prismática) - Área: 0,24m² | D16: =VLOOKUP(Tabela2[[#This Row],[ITEM]],'PLANILHA REFERENCIA DETRAN PR'!$A$4:$I$42,3,FALSE) -> DETRAN-PR | E16: =VLOOKUP(Tabela2[[#This Row],[ITEM]],'PLANILHA REFERENCIA DETRAN PR'!$A$4:$I$42,4,FALSE) -> COMP.06 | F16: =VLOOKUP(Tabela2[[#This Row],[ITEM]],'PLANILHA REFERENCIA DETRAN PR'!$A$4:$I$42,5,FALSE) -> 2025-12-30 | G16: =VLOOKUP(Tabela2[[#This Row],[ITEM]],'PLANILHA REFERENCIA DETRAN PR'!$A$4:$I$42,6,FALSE) -> m² | H16: 145 | I16: =VLOOKUP(Tabela2[[#This Row],[ITEM]],'PLANILHA REFERENCIA DETRAN PR'!$A$4:$I$42,7,FALSE) -> 12.64 | J16: =VLOOKUP(Tabela2[[#This Row],[ITEM]],'PLANILHA REFERENCIA DETRAN PR'!$A$4:$I$42,8,FALSE) -> 116.44 | K16: =Tabela2[[#This Row],[MATERIAL]]+Tabela2[[#This Row],[MÃO DE OBRA]] -> 129.08 | L16: 1832.8 | M16: =ROUND(J16*H16,2) -> 16883.8 | N16: 18716.6
B17: ='PLANILHA REFERENCIA DETRAN PR'!A9 -> 1.3 | C17: =VLOOKUP(Tabela2[[#This Row],[ITEM]],'PLANILHA REFERENCIA DETRAN PR'!$A$4:$I$42,2,FALSE) -> Placa tipo circular - D = 0,50m. Com película refletiva tipo I A (prismática) - Área: 0,21m² | D17: =VLOOKUP(Tabela2[[#This Row],[ITEM]],'PLANILHA REFERENCIA DETRAN PR'!$A$4:$I$42,3,FALSE) -> DETRAN-PR | E17: =VLOOKUP(Tabela2[[#This Row],[ITEM]],'PLANILHA REFERENCIA DETRAN PR'!$A$4:$I$42,4,FALSE) -> COMP.07 | F17: =VLOOKUP(Tabela2[[#This Row],[ITEM]],'PLANILHA REFERENCIA DETRAN PR'!$A$4:$I$42,5,FALSE) -> 2025-12-30 | G17: =VLOOKUP(Tabela2[[#This Row],[ITEM]],'PLANILHA REFERENCIA DETRAN PR'!$A$4:$I$42,6,FALSE) -> m² | H17: 497 | I17: =VLOOKUP(Tabela2[[#This Row],[ITEM]],'PLANILHA REFERENCIA DETRAN PR'!$A$4:$I$42,7,FALSE) -> 11.06 | J17: =VLOOKUP(Tabela2[[#This Row],[ITEM]],'PLANILHA REFERENCIA DETRAN PR'!$A$4:$I$42,8,FALSE) -> 101.88 | K17: =Tabela2[[#This Row],[MATERIAL]]+Tabela2[[#This Row],[MÃO DE OBRA]] -> 112.94 | L17: 5496.82 | M17: =ROUND(J17*H17,2) -> 50634.36 | N17: 56131.18
B18: ='PLANILHA REFERENCIA DETRAN PR'!A10 -> 1.4 | C18: =VLOOKUP(Tabela2[[#This Row],[ITEM]],'PLANILHA REFERENCIA DETRAN PR'!$A$4:$I$42,2,FALSE) -> Placa tipo de advertência - L = 0,50m. Com película refletiva tipo I A (prismática) - Área: 0,27 m² | D18: =VLOOKUP(Tabela2[[#This Row],[ITEM]],'PLANILHA REFERENCIA DETRAN PR'!$A$4:$I$42,3,FALSE) -> DETRAN-PR | E18: =VLOOKUP(Tabela2[[#This Row],[ITEM]],'PLANILHA REFERENCIA DETRAN PR'!$A$4:$I$42,4,FALSE) -> COMP.08 | F18: =VLOOKUP(Tabela2[[#This Row],[ITEM]],'PLANILHA REFERENCIA DETRAN PR'!$A$4:$I$42,5,FALSE) -> 2025-12-30 | G18: =VLOOKUP(Tabela2[[#This Row],[ITEM]],'PLANILHA REFERENCIA DETRAN PR'!$A$4:$I$42,6,FALSE) -> m² | H18: 210 | I18: =VLOOKUP(Tabela2[[#This Row],[ITEM]],'PLANILHA REFERENCIA DETRAN PR'!$A$4:$I$42,7,FALSE) -> 14.22 | J18: =VLOOKUP(Tabela2[[#This Row],[ITEM]],'PLANILHA REFERENCIA DETRAN PR'!$A$4:$I$42,8,FALSE) -> 130.99 | K18: =Tabela2[[#This Row],[MATERIAL]]+Tabela2[[#This Row],[MÃO DE OBRA]] -> 145.21 | L18: 2986.2 | M18: =ROUND(J18*H18,2) -> 27507.9 | N18: 30494.1
B19: ='PLANILHA REFERENCIA DETRAN PR'!A11 -> 1.5 | C19: =VLOOKUP(Tabela2[[#This Row],[ITEM]],'PLANILHA REFERENCIA DETRAN PR'!$A$4:$I$42,2,FALSE) -> Placa tipo retangular - L = 0,50m x h= 1,00 m. Com película refletiva tipo I A (prismática) | D19: ='PLANILHA REFERENCIA DETRAN PR'!C10 -> DETRAN-PR | E19: =VLOOKUP(Tabela2[[#This Row],[ITEM]],'PLANILHA REFERENCIA DETRAN PR'!$A$4:$I$42,4,FALSE) -> COMP.09 | F19: ='PLANILHA REFERENCIA DETRAN PR'!E10 -> 2025-12-30 | G19: =VLOOKUP(Tabela2[[#This Row],[ITEM]],'PLANILHA REFERENCIA DETRAN PR'!$A$4:$I$42,6,FALSE) -> m² | H19: 318 | I19: =VLOOKUP(Tabela2[[#This Row],[ITEM]],'PLANILHA REFERENCIA DETRAN PR'!$A$4:$I$42,7,FALSE) -> 26.34 | J19: =VLOOKUP(Tabela2[[#This Row],[ITEM]],'PLANILHA REFERENCIA DETRAN PR'!$A$4:$I$42,8,FALSE) -> 242.58 | K19: =Tabela2[[#This Row],[MATERIAL]]+Tabela2[[#This Row],[MÃO DE OBRA]] -> 268.92 | L19: 8376.12 | M19: =ROUND(J19*H19,2) -> 77140.44 | N19: 85516.56
B20: ='PLANILHA REFERENCIA DETRAN PR'!A12 -> 1.6 | C20: =VLOOKUP(Tabela2[[#This Row],[ITEM]],'PLANILHA REFERENCIA DETRAN PR'!$A$4:$I$42,2,FALSE) -> Placa sinalização em chapa de aço nº18 galvanizada c/ película refletiva Tipo I A (prismática) - Utilizar apenas para placas não listadas no orçamento | D20: =VLOOKUP(Tabela2[[#This Row],[ITEM]],'PLANILHA REFERENCIA DETRAN PR'!$A$4:$I$42,3,FALSE) -> DERPR | E20: =VLOOKUP(Tabela2[[#This Row],[ITEM]],'PLANILHA REFERENCIA DETRAN PR'!$A$4:$I$42,4,FALSE) -> 820000 | F20: =VLOOKUP(Tabela2[[#This Row],[ITEM]],'PLANILHA REFERENCIA DETRAN PR'!$A$4:$I$42,5,FALSE) -> 2025-08-31 | G20: =VLOOKUP(Tabela2[[#This Row],[ITEM]],'PLANILHA REFERENCIA DETRAN PR'!$A$4:$I$42,6,FALSE) -> m2 | H20: 173.47 | I20: =VLOOKUP(Tabela2[[#This Row],[ITEM]],'PLANILHA REFERENCIA DETRAN PR'!$A$4:$I$42,7,FALSE) -> 190.97 | J20: =VLOOKUP(Tabela2[[#This Row],[ITEM]],'PLANILHA REFERENCIA DETRAN PR'!$A$4:$I$42,8,FALSE) -> 346.85 | K20: =Tabela2[[#This Row],[MATERIAL]]+Tabela2[[#This Row],[MÃO DE OBRA]] -> 537.82 | L20: 33127.57 | M20: =TRUNC(J20*H20,2) -> 60168.06 | N20: 93295.64
B21: ='PLANILHA REFERENCIA DETRAN PR'!A13 -> 1.7 | C21: =VLOOKUP(Tabela2[[#This Row],[ITEM]],'PLANILHA REFERENCIA DETRAN PR'!$A$4:$I$42,2,FALSE) -> Suporte polimérico ecológico maciço colapsível D = 6,5 cm para placa de sinalização - fornecimento e implantação - 3,00 m | D21: =VLOOKUP(Tabela2[[#This Row],[ITEM]],'PLANILHA REFERENCIA DETRAN PR'!$A$4:$I$42,3,FALSE) -> DNIT | E21: =VLOOKUP(Tabela2[[#This Row],[ITEM]],'PLANILHA REFERENCIA DETRAN PR'!$A$4:$I$42,4,FALSE) -> 5213351-ed | F21: =VLOOKUP(Tabela2[[#This Row],[ITEM]],'PLANILHA REFERENCIA DETRAN PR'!$A$4:$I$42,5,FALSE) -> 2025-10-01 | G21: =VLOOKUP(Tabela2[[#This Row],[ITEM]],'PLANILHA REFERENCIA DETRAN PR'!$A$4:$I$42,6,FALSE) -> un | H21: 28 | I21: =VLOOKUP(Tabela2[[#This Row],[ITEM]],'PLANILHA REFERENCIA DETRAN PR'!$A$4:$I$42,7,FALSE) -> 0 | J21: =VLOOKUP(Tabela2[[#This Row],[ITEM]],'PLANILHA REFERENCIA DETRAN PR'!$A$4:$I$42,8,FALSE) -> 810.79 | K21: =Tabela2[[#This Row],[MATERIAL]]+Tabela2[[#This Row],[MÃO DE OBRA]] -> 810.79 | L21: 0 | M21: =ROUND(J21*H21,2) -> 22702.12 | N21: 22702.12
B22: ='PLANILHA REFERENCIA DETRAN PR'!A14 -> 1.8 | C22: =VLOOKUP(Tabela2[[#This Row],[ITEM]],'PLANILHA REFERENCIA DETRAN PR'!$A$4:$I$42,2,FALSE) -> Suporte polimérico ecológico maciço colapsível D = 6,5 cm para placa de sinalização - fornecimento e implantação - 3,60 m | D22: =VLOOKUP(Tabela2[[#This Row],[ITEM]],'PLANILHA REFERENCIA DETRAN PR'!$A$4:$I$42,3,FALSE) -> DNIT | E22: =VLOOKUP(Tabela2[[#This Row],[ITEM]],'PLANILHA REFERENCIA DETRAN PR'!$A$4:$I$42,4,FALSE) -> 5213351 | F22: =VLOOKUP(Tabela2[[#This Row],[ITEM]],'PLANILHA REFERENCIA DETRAN PR'!$A$4:$I$42,5,FALSE) -> 2025-10-01 | G22: =VLOOKUP(Tabela2[[#This Row],[ITEM]],'PLANILHA REFERENCIA DETRAN PR'!$A$4:$I$42,6,FALSE) -> un | H22: 28 | I22: =VLOOKUP(Tabela2[[#This Row],[ITEM]],'PLANILHA REFERENCIA DETRAN PR'!$A$4:$I$42,7,FALSE) -> 0 | J22: =VLOOKUP(Tabela2[[#This Row],[ITEM]],'PLANILHA REFERENCIA DETRAN PR'!$A$4:$I$42,8,FALSE) -> 675.66 | K22: =Tabela2[[#This Row],[MATERIAL]]+Tabela2[[#This Row],[MÃO DE OBRA]] -> 675.66 | L22: 0 | M22: 18918.48 | N22: 18918.48
B23: ='PLANILHA REFERENCIA DETRAN PR'!A15 -> 1.9 | C23: =VLOOKUP(Tabela2[[#This Row],[ITEM]],'PLANILHA REFERENCIA DETRAN PR'!$A$4:$I$42,2,FALSE) -> Suporte metál.galv.fogo d=2,5" c/tampa e aletas antigiro h=3,00m | D23: =VLOOKUP(Tabela2[[#This Row],[ITEM]],'PLANILHA REFERENCIA DETRAN PR'!$A$4:$I$42,3,FALSE) -> DERPR | E23: =VLOOKUP(Tabela2[[#This Row],[ITEM]],'PLANILHA REFERENCIA DETRAN PR'!$A$4:$I$42,4,FALSE) -> 821300 | F23: =VLOOKUP(Tabela2[[#This Row],[ITEM]],'PLANILHA REFERENCIA DETRAN PR'!$A$4:$I$42,5,FALSE) -> 2025-08-31 | G23: =VLOOKUP(Tabela2[[#This Row],[ITEM]],'PLANILHA REFERENCIA DETRAN PR'!$A$4:$I$42,6,FALSE) -> ud | H23: 1184 | I23: =VLOOKUP(Tabela2[[#This Row],[ITEM]],'PLANILHA REFERENCIA DETRAN PR'!$A$4:$I$42,7,FALSE) -> 72.92 | J23: =VLOOKUP(Tabela2[[#This Row],[ITEM]],'PLANILHA REFERENCIA DETRAN PR'!$A$4:$I$42,8,FALSE) -> 336.69 | K23: =Tabela2[[#This Row],[MATERIAL]]+Tabela2[[#This Row],[MÃO DE OBRA]] -> 409.61 | L23: 86337.28 | M23: 398640.96 | N23: 484978.24
B24: ='PLANILHA REFERENCIA DETRAN PR'!A16 -> 1.10 | C24: =VLOOKUP(Tabela2[[#This Row],[ITEM]],'PLANILHA REFERENCIA DETRAN PR'!$A$4:$I$42,2,FALSE) -> Suporte metál.galv.fogo d=2,5" c/tampa e aletas antigiro h=3,50m | D24: =VLOOKUP(Tabela2[[#This Row],[ITEM]],'PLANILHA REFERENCIA DETRAN PR'!$A$4:$I$42,3,FALSE) -> DERPR | E24: =VLOOKUP(Tabela2[[#This Row],[ITEM]],'PLANILHA REFERENCIA DETRAN PR'!$A$4:$I$42,4,FALSE) -> 821350 | F24: =VLOOKUP(Tabela2[[#This Row],[ITEM]],'PLANILHA REFERENCIA DETRAN PR'!$A$4:$I$42,5,FALSE) -> 2025-08-31 | G24: =VLOOKUP(Tabela2[[#This Row],[ITEM]],'PLANILHA REFERENCIA DETRAN PR'!$A$4:$I$42,6,FALSE) -> ud | H24: 298 | I24: =VLOOKUP(Tabela2[[#This Row],[ITEM]],'PLANILHA REFERENCIA DETRAN PR'!$A$4:$I$42,7,FALSE) -> 72.92 | J24: =VLOOKUP(Tabela2[[#This Row],[ITEM]],'PLANILHA REFERENCIA DETRAN PR'!$A$4:$I$42,8,FALSE) -> 392.69 | K24: =Tabela2[[#This Row],[MATERIAL]]+Tabela2[[#This Row],[MÃO DE OBRA]] -> 465.61 | L24: 21730.16 | M24: 117021.62 | N24: 138751.78
B25: ='PLANILHA REFERENCIA DETRAN PR'!A17 -> 1.11 | C25: =VLOOKUP(Tabela2[[#This Row],[ITEM]],'PLANILHA REFERENCIA DETRAN PR'!$A$4:$I$42,2,FALSE) -> Suporte metál.galv.fogo d=2,5" c/tampa e aletas anti-giro h=4,00m | D25: =VLOOKUP(Tabela2[[#This Row],[ITEM]],'PLANILHA REFERENCIA DETRAN PR'!$A$4:$I$42,3,FALSE) -> DERPR | E25: =VLOOKUP(Tabela2[[#This Row],[ITEM]],'PLANILHA REFERENCIA DETRAN PR'!$A$4:$I$42,4,FALSE) -> 821400 | F25: =VLOOKUP(Tabela2[[#This Row],[ITEM]],'PLANILHA REFERENCIA DETRAN PR'!$A$4:$I$42,5,FALSE) -> 2025-08-31 | G25: =VLOOKUP(Tabela2[[#This Row],[ITEM]],'PLANILHA REFERENCIA DETRAN PR'!$A$4:$I$42,6,FALSE) -> ud | H25: 52 | I25: =VLOOKUP(Tabela2[[#This Row],[ITEM]],'PLANILHA REFERENCIA DETRAN PR'!$A$4:$I$42,7,FALSE) -> 72.92 | J25: =VLOOKUP(Tabela2[[#This Row],[ITEM]],'PLANILHA REFERENCIA DETRAN PR'!$A$4:$I$42,8,FALSE) -> 447.83 | K25: =Tabela2[[#This Row],[MATERIAL]]+Tabela2[[#This Row],[MÃO DE OBRA]] -> 520.75 | L25: 3791.84 | M25: 23287.16 | N25: 27079
B26: ='PLANILHA REFERENCIA DETRAN PR'!A18 -> 1.12 | C26: =VLOOKUP(Tabela2[[#This Row],[ITEM]],'PLANILHA REFERENCIA DETRAN PR'!$A$4:$I$42,2,FALSE) -> Conjunto para placa indicativa (Coluna, Braço, Montagem, Fundação) para placas até 3,00m² - Coluna Tipo I com projeção de 2,80m | D26: =VLOOKUP(Tabela2[[#This Row],[ITEM]],'PLANILHA REFERENCIA DETRAN PR'!$A$4:$I$42,3,FALSE) -> DETRAN-PR | E26: =VLOOKUP(Tabela2[[#This Row],[ITEM]],'PLANILHA REFERENCIA DETRAN PR'!$A$4:$I$42,4,FALSE) -> COMP.02 | F26: =VLOOKUP(Tabela2[[#This Row],[ITEM]],'PLANILHA REFERENCIA DETRAN PR'!$A$4:$I$42,5,FALSE) -> 2025-12-30 | G26: =VLOOKUP(Tabela2[[#This Row],[ITEM]],'PLANILHA REFERENCIA DETRAN PR'!$A$4:$I$42,6,FALSE) -> unid | H26: 6 | I26: =VLOOKUP(Tabela2[[#This Row],[ITEM]],'PLANILHA REFERENCIA DETRAN PR'!$A$4:$I$42,7,FALSE) -> 411.3 | J26: =VLOOKUP(Tabela2[[#This Row],[ITEM]],'PLANILHA REFERENCIA DETRAN PR'!$A$4:$I$42,8,FALSE) -> 12011.65 | K26: =Tabela2[[#This Row],[MATERIAL]]+Tabela2[[#This Row],[MÃO DE OBRA]] -> 12422.95 | L26: 2467.8 | M26: 72069.9 | N26: 74537.7
B27: ='PLANILHA REFERENCIA DETRAN PR'!A19 -> 1.13 | C27: =VLOOKUP(Tabela2[[#This Row],[ITEM]],'PLANILHA REFERENCIA DETRAN PR'!$A$4:$I$42,2,FALSE) -> Conjunto para placa indicativa (Coluna, Braço, Montagem, Fundação) para placas até 3,00m² - Coluna Tipo I com projeção de 3,70m | D27: =VLOOKUP(Tabela2[[#This Row],[ITEM]],'PLANILHA REFERENCIA DETRAN PR'!$A$4:$I$42,3,FALSE) -> DETRAN-PR | E27: =VLOOKUP(Tabela2[[#This Row],[ITEM]],'PLANILHA REFERENCIA DETRAN PR'!$A$4:$I$42,4,FALSE) -> COMP.03 | F27: =VLOOKUP(Tabela2[[#This Row],[ITEM]],'PLANILHA REFERENCIA DETRAN PR'!$A$4:$I$42,5,FALSE) -> 2025-12-30 | G27: =VLOOKUP(Tabela2[[#This Row],[ITEM]],'PLANILHA REFERENCIA DETRAN PR'!$A$4:$I$42,6,FALSE) -> unid | H27: 9 | I27: =VLOOKUP(Tabela2[[#This Row],[ITEM]],'PLANILHA REFERENCIA DETRAN PR'!$A$4:$I$42,7,FALSE) -> 411.3 | J27: =VLOOKUP(Tabela2[[#This Row],[ITEM]],'PLANILHA REFERENCIA DETRAN PR'!$A$4:$I$42,8,FALSE) -> 12403.33 | K27: =Tabela2[[#This Row],[MATERIAL]]+Tabela2[[#This Row],[MÃO DE OBRA]] -> 12814.63 | L27: 3701.7 | M27: 111629.97 | N27: 115331.67
B28: ='PLANILHA REFERENCIA DETRAN PR'!A20 -> 1.14 | C28: =VLOOKUP(Tabela2[[#This Row],[ITEM]],'PLANILHA REFERENCIA DETRAN PR'!$A$4:$I$42,2,FALSE) -> Conjunto para placa indicativa (Coluna, Braço, Montagem, Fundação) para placas até 4,50m² - Coluna Tipo II com projeção de 6,00m | D28: =VLOOKUP(Tabela2[[#This Row],[ITEM]],'PLANILHA REFERENCIA DETRAN PR'!$A$4:$I$42,3,FALSE) -> DETRAN-PR | E28: =VLOOKUP(Tabela2[[#This Row],[ITEM]],'PLANILHA REFERENCIA DETRAN PR'!$A$4:$I$42,4,FALSE) -> COMP.04 | F28: =VLOOKUP(Tabela2[[#This Row],[ITEM]],'PLANILHA REFERENCIA DETRAN PR'!$A$4:$I$42,5,FALSE) -> 2025-12-30 | G28: =VLOOKUP(Tabela2[[#This Row],[ITEM]],'PLANILHA REFERENCIA DETRAN PR'!$A$4:$I$42,6,FALSE) -> unid | H28: 12 | I28: =VLOOKUP(Tabela2[[#This Row],[ITEM]],'PLANILHA REFERENCIA DETRAN PR'!$A$4:$I$42,7,FALSE) -> 502.68 | J28: =VLOOKUP(Tabela2[[#This Row],[ITEM]],'PLANILHA REFERENCIA DETRAN PR'!$A$4:$I$42,8,FALSE) -> 17937.08 | K28: =Tabela2[[#This Row],[MATERIAL]]+Tabela2[[#This Row],[MÃO DE OBRA]] -> 18439.76 | L28: 6032.16 | M28: 215244.96 | N28: 221277.12
B29: ='PLANILHA REFERENCIA DETRAN PR'!A21 -> 1.15 | C29: =VLOOKUP(Tabela2[[#This Row],[ITEM]],'PLANILHA REFERENCIA DETRAN PR'!$A$4:$I$42,2,FALSE) -> Retirada de poste simples de aco, diametro maior que 4".(desonerado) | D29: =VLOOKUP(Tabela2[[#This Row],[ITEM]],'PLANILHA REFERENCIA DETRAN PR'!$A$4:$I$42,3,FALSE) -> SCO/RJ | E29: =VLOOKUP(Tabela2[[#This Row],[ITEM]],'PLANILHA REFERENCIA DETRAN PR'!$A$4:$I$42,4,FALSE) -> ST 64.15.0300 (/) | F29: =VLOOKUP(Tabela2[[#This Row],[ITEM]],'PLANILHA REFERENCIA DETRAN PR'!$A$4:$I$42,5,FALSE) -> 2025-12-30 | G29: =VLOOKUP(Tabela2[[#This Row],[ITEM]],'PLANILHA REFERENCIA DETRAN PR'!$A$4:$I$42,6,FALSE) -> un | H29: 2 | I29: =VLOOKUP(Tabela2[[#This Row],[ITEM]],'PLANILHA REFERENCIA DETRAN PR'!$A$4:$I$42,7,FALSE) -> 0 | J29: =VLOOKUP(Tabela2[[#This Row],[ITEM]],'PLANILHA REFERENCIA DETRAN PR'!$A$4:$I$42,8,FALSE) -> 435.21 | K29: =Tabela2[[#This Row],[MATERIAL]]+Tabela2[[#This Row],[MÃO DE OBRA]] -> 435.21 | L29: 0 | M29: 870.42 | N29: 870.42
B30: ='PLANILHA REFERENCIA DETRAN PR'!A22 -> 1.16 | C30: =VLOOKUP(Tabela2[[#This Row],[ITEM]],'PLANILHA REFERENCIA DETRAN PR'!$A$4:$I$42,2,FALSE) -> Retirada de poste simples de aço, diâmetro de 2" (desonerado) | D30: =VLOOKUP(Tabela2[[#This Row],[ITEM]],'PLANILHA REFERENCIA DETRAN PR'!$A$4:$I$42,3,FALSE) -> SCO/RJ | E30: =VLOOKUP(Tabela2[[#This Row],[ITEM]],'PLANILHA REFERENCIA DETRAN PR'!$A$4:$I$42,4,FALSE) -> ST 64.15.0200 (A) | F30: =VLOOKUP(Tabela2[[#This Row],[ITEM]],'PLANILHA REFERENCIA DETRAN PR'!$A$4:$I$42,5,FALSE) -> 2025-12-30 | G30: =VLOOKUP(Tabela2[[#This Row],[ITEM]],'PLANILHA REFERENCIA DETRAN PR'!$A$4:$I$42,6,FALSE) -> un | H30: 457 | I30: =VLOOKUP(Tabela2[[#This Row],[ITEM]],'PLANILHA REFERENCIA DETRAN PR'!$A$4:$I$42,7,FALSE) -> 0 | J30: =VLOOKUP(Tabela2[[#This Row],[ITEM]],'PLANILHA REFERENCIA DETRAN PR'!$A$4:$I$42,8,FALSE) -> 53.26 | K30: =Tabela2[[#This Row],[MATERIAL]]+Tabela2[[#This Row],[MÃO DE OBRA]] -> 53.26 | L30: 0 | M30: 24339.82 | N30: 24339.82
B31: ='PLANILHA REFERENCIA DETRAN PR'!A23 -> 1.17 | C31: =VLOOKUP(Tabela2[[#This Row],[ITEM]],'PLANILHA REFERENCIA DETRAN PR'!$A$4:$I$42,2,FALSE) -> Remoção de placa de sinalização | D31: =VLOOKUP(Tabela2[[#This Row],[ITEM]],'PLANILHA REFERENCIA DETRAN PR'!$A$4:$I$42,3,FALSE) -> DNIT | E31: =VLOOKUP(Tabela2[[#This Row],[ITEM]],'PLANILHA REFERENCIA DETRAN PR'!$A$4:$I$42,4,FALSE) -> 5213364 | F31: =VLOOKUP(Tabela2[[#This Row],[ITEM]],'PLANILHA REFERENCIA DETRAN PR'!$A$4:$I$42,5,FALSE) -> 2025-10-01 | G31: =VLOOKUP(Tabela2[[#This Row],[ITEM]],'PLANILHA REFERENCIA DETRAN PR'!$A$4:$I$42,6,FALSE) -> m² | H31: 170.99 | I31: =VLOOKUP(Tabela2[[#This Row],[ITEM]],'PLANILHA REFERENCIA DETRAN PR'!$A$4:$I$42,7,FALSE) -> 0 | J31: =VLOOKUP(Tabela2[[#This Row],[ITEM]],'PLANILHA REFERENCIA DETRAN PR'!$A$4:$I$42,8,FALSE) -> 26.2 | K31: =Tabela2[[#This Row],[MATERIAL]]+Tabela2[[#This Row],[MÃO DE OBRA]] -> 26.2 | L31: 0 | M31: 4479.94 | N31: 4479.94
B32: ='PLANILHA REFERENCIA DETRAN PR'!A24 -> 1.18 | C32: =VLOOKUP(Tabela2[[#This Row],[ITEM]],'PLANILHA REFERENCIA DETRAN PR'!$A$4:$I$42,2,FALSE) -> Suporte metálico galv. fogo d=2,5" c/tampa e aletas anti-giro, h=2,00 | D32: =VLOOKUP(Tabela2[[#This Row],[ITEM]],'PLANILHA REFERENCIA DETRAN PR'!$A$4:$I$42,3,FALSE) -> DETRAN-PR | E32: =VLOOKUP(Tabela2[[#This Row],[ITEM]],'PLANILHA REFERENCIA DETRAN PR'!$A$4:$I$42,4,FALSE) -> COMP.01 | F32: =VLOOKUP(Tabela2[[#This Row],[ITEM]],'PLANILHA REFERENCIA DETRAN PR'!$A$4:$I$42,5,FALSE) -> 2025-12-30 | G32: =VLOOKUP(Tabela2[[#This Row],[ITEM]],'PLANILHA REFERENCIA DETRAN PR'!$A$4:$I$42,6,FALSE) -> unid | H32: 9 | I32: =VLOOKUP(Tabela2[[#This Row],[ITEM]],'PLANILHA REFERENCIA DETRAN PR'!$A$4:$I$42,7,FALSE) -> 38.51 | J32: =VLOOKUP(Tabela2[[#This Row],[ITEM]],'PLANILHA REFERENCIA DETRAN PR'!$A$4:$I$42,8,FALSE) -> 261.14 | K32: =Tabela2[[#This Row],[MATERIAL]]+Tabela2[[#This Row],[MÃO DE OBRA]] -> 299.65 | L32: 346.59 | M32: 2350.26 | N32: 2696.85
B33: ='PLANILHA REFERENCIA DETRAN PR'!A25 -> 1.19 | C33: =VLOOKUP(Tabela2[[#This Row],[ITEM]],'PLANILHA REFERENCIA DETRAN PR'!$A$4:$I$42,2,FALSE) -> Suporte metálico galv. fogo perfil "C" 250x85x25x2,70mm, h=5,00m | D33: =VLOOKUP(Tabela2[[#This Row],[ITEM]],'PLANILHA REFERENCIA DETRAN PR'!$A$4:$I$42,3,FALSE) -> DERPR | E33: =VLOOKUP(Tabela2[[#This Row],[ITEM]],'PLANILHA REFERENCIA DETRAN PR'!$A$4:$I$42,4,FALSE) -> 822030 | F33: =VLOOKUP(Tabela2[[#This Row],[ITEM]],'PLANILHA REFERENCIA DETRAN PR'!$A$4:$I$42,5,FALSE) -> 2025-08-31 | G33: =VLOOKUP(Tabela2[[#This Row],[ITEM]],'PLANILHA REFERENCIA DETRAN PR'!$A$4:$I$42,6,FALSE) -> ud | H33: 0 | I33: =VLOOKUP(Tabela2[[#This Row],[ITEM]],'PLANILHA REFERENCIA DETRAN PR'!$A$4:$I$42,7,FALSE) -> 115.39 | J33: =VLOOKUP(Tabela2[[#This Row],[ITEM]],'PLANILHA REFERENCIA DETRAN PR'!$A$4:$I$42,8,FALSE) -> 1323.76 | K33: =Tabela2[[#This Row],[MATERIAL]]+Tabela2[[#This Row],[MÃO DE OBRA]] -> 1439.15 | L33: =I33*H33 -> 0 | M33: =J33*H33 -> 0 | N33: =ROUND(K33*H33,2) -> 0
B34: ='PLANILHA REFERENCIA DETRAN PR'!A26 -> 1.20 | C34: =VLOOKUP(Tabela2[[#This Row],[ITEM]],'PLANILHA REFERENCIA DETRAN PR'!$A$4:$I$42,2,FALSE) -> Cilindro flexível delimitador de tráfego com duas faixas refletivas e chumbador - D = 20 cm e H = 80 cm | D34: =VLOOKUP(Tabela2[[#This Row],[ITEM]],'PLANILHA REFERENCIA DETRAN PR'!$A$4:$I$42,3,FALSE) -> DNIT | E34: =VLOOKUP(Tabela2[[#This Row],[ITEM]],'PLANILHA REFERENCIA DETRAN PR'!$A$4:$I$42,4,FALSE) -> 5213837 | F34: =VLOOKUP(Tabela2[[#This Row],[ITEM]],'PLANILHA REFERENCIA DETRAN PR'!$A$4:$I$42,5,FALSE) -> 2025-10-01 | G34: =VLOOKUP(Tabela2[[#This Row],[ITEM]],'PLANILHA REFERENCIA DETRAN PR'!$A$4:$I$42,6,FALSE) -> un | H34: 0 | I34: =VLOOKUP(Tabela2[[#This Row],[ITEM]],'PLANILHA REFERENCIA DETRAN PR'!$A$4:$I$42,7,FALSE) -> 6.51 | J34: =VLOOKUP(Tabela2[[#This Row],[ITEM]],'PLANILHA REFERENCIA DETRAN PR'!$A$4:$I$42,8,FALSE) -> 197.42 | K34: =Tabela2[[#This Row],[MATERIAL]]+Tabela2[[#This Row],[MÃO DE OBRA]] -> 203.93 | L34: =I34*H34 -> 0 | M34: =J34*H34 -> 0 | N34: =ROUND(K34*H34,2) -> 0
B35: ='PLANILHA REFERENCIA DETRAN PR'!A27 -> 1.21 | C35: =VLOOKUP(Tabela2[[#This Row],[ITEM]],'PLANILHA REFERENCIA DETRAN PR'!$A$4:$I$42,2,FALSE) -> Placa sinalização ativa inteligente com iluminação interna, duplo módulo de iluminação de faixa, detecção automática de pedestres e alimentação híbrida (fotovoltaica e rede elétrica - A = 0,84m² | D35: =VLOOKUP(Tabela2[[#This Row],[ITEM]],'PLANILHA REFERENCIA DETRAN PR'!$A$4:$I$42,3,FALSE) -> DETRAN-PR | E35: =VLOOKUP(Tabela2[[#This Row],[ITEM]],'PLANILHA REFERENCIA DETRAN PR'!$A$4:$I$42,4,FALSE) -> COMP.17 | F35: =VLOOKUP(Tabela2[[#This Row],[ITEM]],'PLANILHA REFERENCIA DETRAN PR'!$A$4:$I$42,5,FALSE) -> 2025-12-30 | G35: =VLOOKUP(Tabela2[[#This Row],[ITEM]],'PLANILHA REFERENCIA DETRAN PR'!$A$4:$I$42,6,FALSE) -> Unid. | H35: 17 | I35: =VLOOKUP(Tabela2[[#This Row],[ITEM]],'PLANILHA REFERENCIA DETRAN PR'!$A$4:$I$42,7,FALSE) -> 7002.93 | J35: =VLOOKUP(Tabela2[[#This Row],[ITEM]],'PLANILHA REFERENCIA DETRAN PR'!$A$4:$I$42,8,FALSE) -> 16340.17 | K35: =Tabela2[[#This Row],[MATERIAL]]+Tabela2[[#This Row],[MÃO DE OBRA]] -> 23343.1 | L35: =ROUND(I35*H35,2) -> 119049.81 | M35: =ROUND(J35*H35,2) -> 277782.89 | N35: =ROUND((K35*H35),2) -> 396832.7
B36: ='PLANILHA REFERENCIA DETRAN PR'!A28 -> 1.22 | C36: =VLOOKUP(Tabela2[[#This Row],[ITEM]],'PLANILHA REFERENCIA DETRAN PR'!$A$4:$I$42,2,FALSE) -> Placa sinalização piscante dupla ativa, alimentação fotovoltaica, em chapa de aço nº 18 galvanizada c/ película refletiva Tipo A (prismática) - A = 2m² | D36: =VLOOKUP(Tabela2[[#This Row],[ITEM]],'PLANILHA REFERENCIA DETRAN PR'!$A$4:$I$42,3,FALSE) -> DETRAN-PR | E36: =VLOOKUP(Tabela2[[#This Row],[ITEM]],'PLANILHA REFERENCIA DETRAN PR'!$A$4:$I$42,4,FALSE) -> COMP.18 | F36: =VLOOKUP(Tabela2[[#This Row],[ITEM]],'PLANILHA REFERENCIA DETRAN PR'!$A$4:$I$42,5,FALSE) -> 2025-12-30 | G36: =VLOOKUP(Tabela2[[#This Row],[ITEM]],'PLANILHA REFERENCIA DETRAN PR'!$A$4:$I$42,6,FALSE) -> Unid. | H36: 2 | I36: =VLOOKUP(Tabela2[[#This Row],[ITEM]],'PLANILHA REFERENCIA DETRAN PR'!$A$4:$I$42,7,FALSE) -> 3916.74 | J36: =VLOOKUP(Tabela2[[#This Row],[ITEM]],'PLANILHA REFERENCIA DETRAN PR'!$A$4:$I$42,8,FALSE) -> 9139.07 | K36: =Tabela2[[#This Row],[MATERIAL]]+Tabela2[[#This Row],[MÃO DE OBRA]] -> 13055.81 | L36: =ROUND(I36*H36,2) -> 7833.48 | M36: =ROUND(J36*H36,2) -> 18278.14 | N36: =ROUND((K36*H36),2) -> 26111.62
B37: ='PLANILHA REFERENCIA DETRAN PR'!A29 -> 1.23 | C37: =VLOOKUP(Tabela2[[#This Row],[ITEM]],'PLANILHA REFERENCIA DETRAN PR'!$A$4:$I$42,2,FALSE) -> Placa sinalização piscante mono ativa, em chapa de aço nº 18 galvanizada c/ película refletiva Tipo A (prismática) - A = 0,72m² | D37: =VLOOKUP(Tabela2[[#This Row],[ITEM]],'PLANILHA REFERENCIA DETRAN PR'!$A$4:$I$42,3,FALSE) -> DETRAN-PR | E37: =VLOOKUP(Tabela2[[#This Row],[ITEM]],'PLANILHA REFERENCIA DETRAN PR'!$A$4:$I$42,4,FALSE) -> COMP.19 | F37: =VLOOKUP(Tabela2[[#This Row],[ITEM]],'PLANILHA REFERENCIA DETRAN PR'!$A$4:$I$42,5,FALSE) -> 2025-12-30 | G37: =VLOOKUP(Tabela2[[#This Row],[ITEM]],'PLANILHA REFERENCIA DETRAN PR'!$A$4:$I$42,6,FALSE) -> Unid. | H37: 2 | I37: =VLOOKUP(Tabela2[[#This Row],[ITEM]],'PLANILHA REFERENCIA DETRAN PR'!$A$4:$I$42,7,FALSE) -> 1057.11 | J37: =VLOOKUP(Tabela2[[#This Row],[ITEM]],'PLANILHA REFERENCIA DETRAN PR'!$A$4:$I$42,8,FALSE) -> 2466.59 | K37: =Tabela2[[#This Row],[MATERIAL]]+Tabela2[[#This Row],[MÃO DE OBRA]] -> 3523.7 | L37: =ROUND(I37*H37,2) -> 2114.22 | M37: =ROUND(J37*H37,2) -> 4933.18 | N37: =ROUND((K37*H37),2) -> 7047.4
B38: ='PLANILHA REFERENCIA DETRAN PR'!A30 -> 1.24 | C38: =VLOOKUP(Tabela2[[#This Row],[ITEM]],'PLANILHA REFERENCIA DETRAN PR'!$A$4:$I$42,2,FALSE) -> Placa sinalização piscante mono ativa, em chapa de aço nº 18 galvanizada c/ película refletiva Tipo A (prismática) - A = 0,84m² | D38: =VLOOKUP(Tabela2[[#This Row],[ITEM]],'PLANILHA REFERENCIA DETRAN PR'!$A$4:$I$42,3,FALSE) -> DETRAN-PR | E38: =VLOOKUP(Tabela2[[#This Row],[ITEM]],'PLANILHA REFERENCIA DETRAN PR'!$A$4:$I$42,4,FALSE) -> COMP.20 | F38: =VLOOKUP(Tabela2[[#This Row],[ITEM]],'PLANILHA REFERENCIA DETRAN PR'!$A$4:$I$42,5,FALSE) -> 2025-12-30 | G38: =VLOOKUP(Tabela2[[#This Row],[ITEM]],'PLANILHA REFERENCIA DETRAN PR'!$A$4:$I$42,6,FALSE) -> Unid. | H38: 17 | I38: =VLOOKUP(Tabela2[[#This Row],[ITEM]],'PLANILHA REFERENCIA DETRAN PR'!$A$4:$I$42,7,FALSE) -> 940.43 | J38: =VLOOKUP(Tabela2[[#This Row],[ITEM]],'PLANILHA REFERENCIA DETRAN PR'!$A$4:$I$42,8,FALSE) -> 2194.33 | K38: =Tabela2[[#This Row],[MATERIAL]]+Tabela2[[#This Row],[MÃO DE OBRA]] -> 3134.76 | L38: =ROUND(I38*H38,2) -> 15987.31 | M38: =ROUND(J38*H38,2) -> 37303.61 | N38: =ROUND((K38*H38),2) -> 53290.92
B39: ='PLANILHA REFERENCIA DETRAN PR'!A31 -> 2 | C39: =VLOOKUP(Tabela2[[#This Row],[ITEM]],'PLANILHA REFERENCIA DETRAN PR'!$A$4:$I$42,2,FALSE) -> SINALIZAÇÃO HORIZONTAL | H39: - | L39: =SUM(L40:L50) -> 219723.37 | M39: =TRUNC(SUM(M40:M50),2) -> 1155975.76 | N39: =ROUND(Tabela2[[#This Row],[MÃO DE OBRA T.]]+Tabela2[[#This Row],[MATERIAL T.]],2) -> 1375699.13
B40: ='PLANILHA REFERENCIA DETRAN PR'!A32 -> 2.1 | C40: =VLOOKUP(Tabela2[[#This Row],[ITEM]],'PLANILHA REFERENCIA DETRAN PR'!$A$4:$I$42,2,FALSE) -> Faixa de sinalização horizontal c/tinta resina acrílica base água com limpeza do pavimento com jato d'água | D40: =VLOOKUP(Tabela2[[#This Row],[ITEM]],'PLANILHA REFERENCIA DETRAN PR'!$A$4:$I$42,3,FALSE) -> DETRAN-PR | E40: =VLOOKUP(Tabela2[[#This Row],[ITEM]],'PLANILHA REFERENCIA DETRAN PR'!$A$4:$I$42,4,FALSE) -> COMP.10 | F40: =VLOOKUP(Tabela2[[#This Row],[ITEM]],'PLANILHA REFERENCIA DETRAN PR'!$A$4:$I$42,5,FALSE) -> 2025-12-30 | G40: =VLOOKUP(Tabela2[[#This Row],[ITEM]],'PLANILHA REFERENCIA DETRAN PR'!$A$4:$I$42,6,FALSE) -> m² | H40: 8480.81 | I40: =VLOOKUP(Tabela2[[#This Row],[ITEM]],'PLANILHA REFERENCIA DETRAN PR'!$A$4:$I$42,7,FALSE) -> 5.8 | J40: =VLOOKUP(Tabela2[[#This Row],[ITEM]],'PLANILHA REFERENCIA DETRAN PR'!$A$4:$I$42,8,FALSE) -> 18.93 | K40: =Tabela2[[#This Row],[MATERIAL]]+Tabela2[[#This Row],[MÃO DE OBRA]] -> 24.73 | L40: =ROUND(I40*H40,2) -> 49188.7 | M40: =ROUND(J40*H40,2) -> 160541.73 | N40: =ROUND(K40*H40,2) -> 209730.43
B41: ='PLANILHA REFERENCIA DETRAN PR'!A33 -> 2.2 | C41: =VLOOKUP(Tabela2[[#This Row],[ITEM]],'PLANILHA REFERENCIA DETRAN PR'!$A$4:$I$42,2,FALSE) -> Faixa de sinalização horizontal c/tinta resina acrílica base solvente | D41: =VLOOKUP(Tabela2[[#This Row],[ITEM]],'PLANILHA REFERENCIA DETRAN PR'!$A$4:$I$42,3,FALSE) -> DETRAN-PR | E41: =VLOOKUP(Tabela2[[#This Row],[ITEM]],'PLANILHA REFERENCIA DETRAN PR'!$A$4:$I$42,4,FALSE) -> COMP.11 | F41: =VLOOKUP(Tabela2[[#This Row],[ITEM]],'PLANILHA REFERENCIA DETRAN PR'!$A$4:$I$42,5,FALSE) -> 2025-12-30 | G41: =VLOOKUP(Tabela2[[#This Row],[ITEM]],'PLANILHA REFERENCIA DETRAN PR'!$A$4:$I$42,6,FALSE) -> m² | H41: 13274.2 | I41: =VLOOKUP(Tabela2[[#This Row],[ITEM]],'PLANILHA REFERENCIA DETRAN PR'!$A$4:$I$42,7,FALSE) -> 5.8 | J41: =VLOOKUP(Tabela2[[#This Row],[ITEM]],'PLANILHA REFERENCIA DETRAN PR'!$A$4:$I$42,8,FALSE) -> 24.61 | K41: =Tabela2[[#This Row],[MATERIAL]]+Tabela2[[#This Row],[MÃO DE OBRA]] -> 30.41 | L41: =ROUND(I41*H41,2) -> 76990.36 | M41: =ROUND(J41*H41,2) -> 326678.06 | N41: 403668.42
B42: ='PLANILHA REFERENCIA DETRAN PR'!A34 -> 2.3 | C42: =VLOOKUP(Tabela2[[#This Row],[ITEM]],'PLANILHA REFERENCIA DETRAN PR'!$A$4:$I$42,2,FALSE) -> Faixa de sinalização horizontal - termoplástico por aspersão - e=1,5mm | D42: =VLOOKUP(Tabela2[[#This Row],[ITEM]],'PLANILHA REFERENCIA DETRAN PR'!$A$4:$I$42,3,FALSE) -> DETRAN-PR | E42: =VLOOKUP(Tabela2[[#This Row],[ITEM]],'PLANILHA REFERENCIA DETRAN PR'!$A$4:$I$42,4,FALSE) -> COMP.12 | F42: =VLOOKUP(Tabela2[[#This Row],[ITEM]],'PLANILHA REFERENCIA DETRAN PR'!$A$4:$I$42,5,FALSE) -> 2025-12-30 | G42: =VLOOKUP(Tabela2[[#This Row],[ITEM]],'PLANILHA REFERENCIA DETRAN PR'!$A$4:$I$42,6,FALSE) -> m² | H42: 3705.57 | I42: =VLOOKUP(Tabela2[[#This Row],[ITEM]],'PLANILHA REFERENCIA DETRAN PR'!$A$4:$I$42,7,FALSE) -> 7.8 | J42: =VLOOKUP(Tabela2[[#This Row],[ITEM]],'PLANILHA REFERENCIA DETRAN PR'!$A$4:$I$42,8,FALSE) -> 34.78 | K42: =Tabela2[[#This Row],[MATERIAL]]+Tabela2[[#This Row],[MÃO DE OBRA]] -> 42.58 | L42: =ROUND(I42*H42,2) -> 28903.45 | M42: =ROUND(J42*H42,2) -> 128879.72 | N42: 157783.17
B43: ='PLANILHA REFERENCIA DETRAN PR'!A35 -> 2.4 | C43: =VLOOKUP(Tabela2[[#This Row],[ITEM]],'PLANILHA REFERENCIA DETRAN PR'!$A$4:$I$42,2,FALSE) -> Pintura de setas e zebrados - termoplástico por extrusão - e=3mm | D43: =VLOOKUP(Tabela2[[#This Row],[ITEM]],'PLANILHA REFERENCIA DETRAN PR'!$A$4:$I$42,3,FALSE) -> DETRAN-PR | E43: =VLOOKUP(Tabela2[[#This Row],[ITEM]],'PLANILHA REFERENCIA DETRAN PR'!$A$4:$I$42,4,FALSE) -> COMP.13 | F43: =VLOOKUP(Tabela2[[#This Row],[ITEM]],'PLANILHA REFERENCIA DETRAN PR'!$A$4:$I$42,5,FALSE) -> 2025-12-30 | G43: =VLOOKUP(Tabela2[[#This Row],[ITEM]],'PLANILHA REFERENCIA DETRAN PR'!$A$4:$I$42,6,FALSE) -> m² | H43: 6530.96 | I43: =VLOOKUP(Tabela2[[#This Row],[ITEM]],'PLANILHA REFERENCIA DETRAN PR'!$A$4:$I$42,7,FALSE) -> 7.8 | J43: =VLOOKUP(Tabela2[[#This Row],[ITEM]],'PLANILHA REFERENCIA DETRAN PR'!$A$4:$I$42,8,FALSE) -> 49.09 | K43: =Tabela2[[#This Row],[MATERIAL]]+Tabela2[[#This Row],[MÃO DE OBRA]] -> 56.89 | L43: =ROUND(I43*H43,2) -> 50941.49 | M43: =ROUND(J43*H43,2) -> 320604.83 | N43: 371546.31
B44: ='PLANILHA REFERENCIA DETRAN PR'!A36 -> 2.5 | C44: =VLOOKUP(Tabela2[[#This Row],[ITEM]],'PLANILHA REFERENCIA DETRAN PR'!$A$4:$I$42,2,FALSE) -> Pintura de faixa - plástico a frio bicomponente à base de resinas metacrílicas - espessura de 1,5 mm - plano | D44: =VLOOKUP(Tabela2[[#This Row],[ITEM]],'PLANILHA REFERENCIA DETRAN PR'!$A$4:$I$42,3,FALSE) -> DETRAN-PR | E44: =VLOOKUP(Tabela2[[#This Row],[ITEM]],'PLANILHA REFERENCIA DETRAN PR'!$A$4:$I$42,4,FALSE) -> COMP.15 | F44: =VLOOKUP(Tabela2[[#This Row],[ITEM]],'PLANILHA REFERENCIA DETRAN PR'!$A$4:$I$42,5,FALSE) -> 2025-12-30 | G44: =VLOOKUP(Tabela2[[#This Row],[ITEM]],'PLANILHA REFERENCIA DETRAN PR'!$A$4:$I$42,6,FALSE) -> m² | H44: 0 | I44: =VLOOKUP(Tabela2[[#This Row],[ITEM]],'PLANILHA REFERENCIA DETRAN PR'!$A$4:$I$42,7,FALSE) -> 3.59 | J44: =VLOOKUP(Tabela2[[#This Row],[ITEM]],'PLANILHA REFERENCIA DETRAN PR'!$A$4:$I$42,8,FALSE) -> 124.77 | K44: =Tabela2[[#This Row],[MATERIAL]]+Tabela2[[#This Row],[MÃO DE OBRA]] -> 128.36 | L44: =I44*H44 -> 0 | M44: =J44*H44 -> 0 | N44: 0
B45: ='PLANILHA REFERENCIA DETRAN PR'!A37 -> 2.6 | C45: =VLOOKUP(Tabela2[[#This Row],[ITEM]],'PLANILHA REFERENCIA DETRAN PR'!$A$4:$I$42,2,FALSE) -> Pintura de faixa - plástico a frio tricomponente à base de resinas metacrílicas - espessura de 0,6 mm - aspersão | D45: =VLOOKUP(Tabela2[[#This Row],[ITEM]],'PLANILHA REFERENCIA DETRAN PR'!$A$4:$I$42,3,FALSE) -> DETRAN-PR | E45: =VLOOKUP(Tabela2[[#This Row],[ITEM]],'PLANILHA REFERENCIA DETRAN PR'!$A$4:$I$42,4,FALSE) -> COMP.16 | F45: =VLOOKUP(Tabela2[[#This Row],[ITEM]],'PLANILHA REFERENCIA DETRAN PR'!$A$4:$I$42,5,FALSE) -> 2025-12-30 | G45: =VLOOKUP(Tabela2[[#This Row],[ITEM]],'PLANILHA REFERENCIA DETRAN PR'!$A$4:$I$42,6,FALSE) -> m² | H45: 2699.56 | I45: =VLOOKUP(Tabela2[[#This Row],[ITEM]],'PLANILHA REFERENCIA DETRAN PR'!$A$4:$I$42,7,FALSE) -> 2.27 | J45: =VLOOKUP(Tabela2[[#This Row],[ITEM]],'PLANILHA REFERENCIA DETRAN PR'!$A$4:$I$42,8,FALSE) -> 69.18 | K45: =Tabela2[[#This Row],[MATERIAL]]+Tabela2[[#This Row],[MÃO DE OBRA]] -> 71.45 | L45: =ROUND(I45*H45,2) -> 6128 | M45: =ROUND(J45*H45,2) -> 186755.56 | N45: 192883.56
B46: ='PLANILHA REFERENCIA DETRAN PR'!A38 -> 2.7 | C46: =VLOOKUP(Tabela2[[#This Row],[ITEM]],'PLANILHA REFERENCIA DETRAN PR'!$A$4:$I$42,2,FALSE) -> Tacha refletiva monodirecional | D46: =VLOOKUP(Tabela2[[#This Row],[ITEM]],'PLANILHA REFERENCIA DETRAN PR'!$A$4:$I$42,3,FALSE) -> DERPR | E46: =VLOOKUP(Tabela2[[#This Row],[ITEM]],'PLANILHA REFERENCIA DETRAN PR'!$A$4:$I$42,4,FALSE) -> 870000 | F46: =VLOOKUP(Tabela2[[#This Row],[ITEM]],'PLANILHA REFERENCIA DETRAN PR'!$A$4:$I$42,5,FALSE) -> 2025-08-31 | G46: =VLOOKUP(Tabela2[[#This Row],[ITEM]],'PLANILHA REFERENCIA DETRAN PR'!$A$4:$I$42,6,FALSE) -> ud | H46: 20 | I46: =VLOOKUP(Tabela2[[#This Row],[ITEM]],'PLANILHA REFERENCIA DETRAN PR'!$A$4:$I$42,7,FALSE) -> 8.6 | J46: =VLOOKUP(Tabela2[[#This Row],[ITEM]],'PLANILHA REFERENCIA DETRAN PR'!$A$4:$I$42,8,FALSE) -> 7.8 | K46: =Tabela2[[#This Row],[MATERIAL]]+Tabela2[[#This Row],[MÃO DE OBRA]] -> 16.4 | L46: 172 | M46: 156 | N46: =ROUND((K46*H46),2) -> 328
B47: ='PLANILHA REFERENCIA DETRAN PR'!A39 -> 2.8 | C47: =VLOOKUP(Tabela2[[#This Row],[ITEM]],'PLANILHA REFERENCIA DETRAN PR'!$A$4:$I$42,2,FALSE) -> Tacha refletiva bidirecional | D47: =VLOOKUP(Tabela2[[#This Row],[ITEM]],'PLANILHA REFERENCIA DETRAN PR'!$A$4:$I$42,3,FALSE) -> DERPR | E47: =VLOOKUP(Tabela2[[#This Row],[ITEM]],'PLANILHA REFERENCIA DETRAN PR'!$A$4:$I$42,4,FALSE) -> 871000 | F47: =VLOOKUP(Tabela2[[#This Row],[ITEM]],'PLANILHA REFERENCIA DETRAN PR'!$A$4:$I$42,5,FALSE) -> 2025-08-31 | G47: =VLOOKUP(Tabela2[[#This Row],[ITEM]],'PLANILHA REFERENCIA DETRAN PR'!$A$4:$I$42,6,FALSE) -> ud | H47: 27 | I47: =VLOOKUP(Tabela2[[#This Row],[ITEM]],'PLANILHA REFERENCIA DETRAN PR'!$A$4:$I$42,7,FALSE) -> 8.6 | J47: =VLOOKUP(Tabela2[[#This Row],[ITEM]],'PLANILHA REFERENCIA DETRAN PR'!$A$4:$I$42,8,FALSE) -> 8.2 | K47: =Tabela2[[#This Row],[MATERIAL]]+Tabela2[[#This Row],[MÃO DE OBRA]] -> 16.8 | L47: 232.2 | M47: 221.4 | N47: =ROUND((K47*H47),2) -> 453.6
B48: ='PLANILHA REFERENCIA DETRAN PR'!A40 -> 2.9 | C48: =VLOOKUP(Tabela2[[#This Row],[ITEM]],'PLANILHA REFERENCIA DETRAN PR'!$A$4:$I$42,2,FALSE) -> Tachão refletivo monodirecional | D48: =VLOOKUP(Tabela2[[#This Row],[ITEM]],'PLANILHA REFERENCIA DETRAN PR'!$A$4:$I$42,3,FALSE) -> DERPR | E48: =VLOOKUP(Tabela2[[#This Row],[ITEM]],'PLANILHA REFERENCIA DETRAN PR'!$A$4:$I$42,4,FALSE) -> 872000 | F48: =VLOOKUP(Tabela2[[#This Row],[ITEM]],'PLANILHA REFERENCIA DETRAN PR'!$A$4:$I$42,5,FALSE) -> 2025-08-31 | G48: =VLOOKUP(Tabela2[[#This Row],[ITEM]],'PLANILHA REFERENCIA DETRAN PR'!$A$4:$I$42,6,FALSE) -> ud | H48: 712 | I48: =VLOOKUP(Tabela2[[#This Row],[ITEM]],'PLANILHA REFERENCIA DETRAN PR'!$A$4:$I$42,7,FALSE) -> 8.6 | J48: =VLOOKUP(Tabela2[[#This Row],[ITEM]],'PLANILHA REFERENCIA DETRAN PR'!$A$4:$I$42,8,FALSE) -> 29.68 | K48: =Tabela2[[#This Row],[MATERIAL]]+Tabela2[[#This Row],[MÃO DE OBRA]] -> 38.28 | L48: 6123.2 | M48: 21132.16 | N48: =ROUND((K48*H48),2) -> 27255.36
B49: ='PLANILHA REFERENCIA DETRAN PR'!A41 -> 2.10 | C49: =VLOOKUP(Tabela2[[#This Row],[ITEM]],'PLANILHA REFERENCIA DETRAN PR'!$A$4:$I$42,2,FALSE) -> Tachão refletivo bidirecional | D49: ='PLANILHA REFERENCIA DETRAN PR'!C40 -> DERPR | E49: ='PLANILHA REFERENCIA DETRAN PR'!D40 -> 872000 | F49: ='PLANILHA REFERENCIA DETRAN PR'!E40 -> 2025-08-31 | G49: =VLOOKUP(Tabela2[[#This Row],[ITEM]],'PLANILHA REFERENCIA DETRAN PR'!$A$4:$I$42,6,FALSE) -> ud | H49: 110 | I49: =VLOOKUP(Tabela2[[#This Row],[ITEM]],'PLANILHA REFERENCIA DETRAN PR'!$A$4:$I$42,7,FALSE) -> 8.6 | J49: =VLOOKUP(Tabela2[[#This Row],[ITEM]],'PLANILHA REFERENCIA DETRAN PR'!$A$4:$I$42,8,FALSE) -> 32.3 | K49: =Tabela2[[#This Row],[MATERIAL]]+Tabela2[[#This Row],[MÃO DE OBRA]] -> 40.9 | L49: 946 | M49: 3553 | N49: =ROUND((K49*H49),2) -> 4499
B50: ='PLANILHA REFERENCIA DETRAN PR'!A42 -> 2.11 | C50: =VLOOKUP(Tabela2[[#This Row],[ITEM]],'PLANILHA REFERENCIA DETRAN PR'!$A$4:$I$42,2,FALSE) -> Fresagem de pavimento asfáltico com espessura de até 5cm, em vias arteriais, inclusive remoção do material fresado até 10km e varrição | D50: =VLOOKUP(Tabela2[[#This Row],[ITEM]],'PLANILHA REFERENCIA DETRAN PR'!$A$4:$I$42,3,FALSE) -> SIURB-INFRA | E50: =VLOOKUP(Tabela2[[#This Row],[ITEM]],'PLANILHA REFERENCIA DETRAN PR'!$A$4:$I$42,4,FALSE) -> 09.04.00 | F50: =VLOOKUP(Tabela2[[#This Row],[ITEM]],'PLANILHA REFERENCIA DETRAN PR'!$A$4:$I$42,5,FALSE) -> 2025-10-01 | G50: =VLOOKUP(Tabela2[[#This Row],[ITEM]],'PLANILHA REFERENCIA DETRAN PR'!$A$4:$I$42,6,FALSE) -> M2 | H50: 376.81 | I50: =VLOOKUP(Tabela2[[#This Row],[ITEM]],'PLANILHA REFERENCIA DETRAN PR'!$A$4:$I$42,7,FALSE) -> 0.26 | J50: =VLOOKUP(Tabela2[[#This Row],[ITEM]],'PLANILHA REFERENCIA DETRAN PR'!$A$4:$I$42,8,FALSE) -> 19.78 | K50: =Tabela2[[#This Row],[MATERIAL]]+Tabela2[[#This Row],[MÃO DE OBRA]] -> 20.04 | L50: 97.97 | M50: 7453.3 | N50: =ROUND((K50*H50),2) -> 7551.27
L52: TOTAL SEM BDI | N52: =$N$14+$N$39 -> 3333482.59
L53: BDI | N53: =N54-N52 -> 697516.66
L54: TOTAL COM BDI | N54: =IF(C11="lote 01",'POR LOTE'!F2,IF(PLANILHA_SINTÉTICA!C11="lote 02",'POR LOTE'!F3,IF(PLANILHA_SINTÉTICA!C11="lote 03",'POR LOTE'!F4,IF(PLANILHA_SINTÉTICA!C11="lote 04",'POR LOTE'!F5,"")))) -> 4030999.25

Sheet Cotações (hidden)
G6: FORNECEDOR 1 | H6: FORNECEDOR 2 | I6: FORNECEDOR 3 | J6: MÉDIA PREÇO R$
E7: DATA DA COTAÇÃO | G7: 2025-11-10 | H7: 2025-11-07 | I7: 2025-11-11
E8: EMPRESA | G8: EBITECH 3 | H8: IESSA TECNOLOGIA | I8: WH SUL
E9: CONTATO | G9: contato@ebitech3.com.br | H9: comercial@iessa.com.br | I9: comercial@whsul.com.br
E10: TELEFONE / E-MAIL / SITE | G10: email | H10: email | I10: email
B11: ITEM | C11: DESCRIÇÃO DO INSUMO / SERVIÇO ESPECIALIZADO | F11: UN | G11: R$ UNITÁRIO | H11: R$ UNITÁRIO | I11: R$ UNITÁRIO
B12: COT 001 | C12: Placa sinalização ativa inteligente com iluminação interna, duplo módulo de iluminação de faixa, detecção automática de pedestres e alimentação híbrida (fotovoltaica e rede elétrica - A = 0,84m² | F12: Unid. | G12: 20711.01 | H12: 25121.43 | I12: 24196.88 | J12: =IF(G12<>"",TRUNC(AVERAGE(G12:I12),2)," ") -> 23343.1
G14: FORNECEDOR 1 | H14: FORNECEDOR 2 | I14: FORNECEDOR 3 | J14: MÉDIA PREÇO R$
E15: DATA DA COTAÇÃO | G15: 2025-11-10 | H15: 2025-11-07 | I15: 2025-11-11
E16: EMPRESA | G16: EBITECH 3 | H16: IESSA TECNOLOGIA | I16: WH SUL
E17: CONTATO | G17: contato@ebitech3.com.br | H17: comercial@iessa.com.br | I17: comercial@whsul.com.br
E18: TELEFONE / E-MAIL / SITE | G18: email | H18: email | I18: email
B19: ITEM | C19: DESCRIÇÃO DO INSUMO / SERVIÇO ESPECIALIZADO | F19: UN | G19: R$ UNITÁRIO | H19: R$ UNITÁRIO | I19: R$ UNITÁRIO
B20: COT 002 | C20: Placa sinalização piscante dupla ativa, alimentação fotovoltaica, em chapa de aço nº 18 galvanizada c/ película refletiva Tipo A (prismática) - A = 2m² | F20: Unid. | G20: 11983.02 | H20: 12153.28 | I20: 15031.13 | J20: =IF(G20<>"",TRUNC(AVERAGE(G20:I20),2)," ") -> 13055.81
G22: FORNECEDOR 1 | H22: FORNECEDOR 2 | I22: FORNECEDOR 3 | J22: MÉDIA PREÇO R$
E23: DATA DA COTAÇÃO | G23: 2025-11-10 | H23: 2025-11-07 | I23: 2025-11-11
E24: EMPRESA | G24: EBITECH 3 | H24: IESSA TECNOLOGIA | I24: WH SUL
E25: CONTATO | G25: contato@ebitech3.com.br | H25: comercial@iessa.com.br | I25: comercial@whsul.com.br
E26: TELEFONE / E-MAIL / SITE | G26: email | H26: email | I26: email
B27: ITEM | C27: DESCRIÇÃO DO INSUMO / SERVIÇO ESPECIALIZADO | F27: UN | G27: R$ UNITÁRIO | H27: R$ UNITÁRIO | I27: R$ UNITÁRIO
B28: COT 003 | C28: Placa sinalização piscante mono ativa, em chapa de aço nº 18 galvanizada c/ película refletiva Tipo A (prismática) - A = 0,72m² | F28: Unid. | G28: 2988.82 | H28: 3971.36 | I28: 3610.92 | J28: =IF(G28<>"",TRUNC(AVERAGE(G28:I28),2)," ") -> 3523.7
G30: FORNECEDOR 1 | H30: FORNECEDOR 2 | I30: FORNECEDOR 3 | J30: MÉDIA PREÇO R$
E31: DATA DA COTAÇÃO | G31: 2025-11-10 | H31: 2025-11-07 | I31: 2025-11-11
E32: EMPRESA | G32: EBITECH 3 | H32: IESSA TECNOLOGIA | I32: WH SUL
E33: CONTATO | G33: contato@ebitech3.com.br | H33: comercial@iessa.com.br | I33: comercial@whsul.com.br
E34: TELEFONE / E-MAIL / SITE | G34: email | H34: email | I34: email
B35: ITEM | C35: DESCRIÇÃO DO INSUMO / SERVIÇO ESPECIALIZADO | F35: UN | G35: R$ UNITÁRIO | H35: R$ UNITÁRIO | I35: R$ UNITÁRIO
B36: COT 004 | C36: Placa sinalização piscante mono ativa, em chapa de aço nº 18 galvanizada c/ película refletiva Tipo A (prismática) - A = 0,84m² | F36: Unid. | G36: 2444.7 | H36: 3794.21 | I36: 3165.38 | J36: =IF(G36<>"",TRUNC(AVERAGE(G36:I36),2)," ") -> 3134.76

Sheet Composições (hidden)
B2: PLANILHA | C2: CÓDIGO | D2: NOME | E2: DESCRIÇÃO | F2: UNID. | G2: COEF. | H2: R$/UNIT. | I2: TOTAL | J2: Material | K2: Mão de obra | L2: Código e Referência da Composição de Custos
B3: DETRAN | D3: COMP.01 | E3: Suporte metálico galv. fogo d=2,5" c/tampa e aletas anti-giro, h=2,00m | F3: unid | I3: =SUM(I4:I17) -> 299.65 | J3: =SUM(I4:I7)+SUM(I12:I17) -> 261.14 | K3: =I8+I9+I10+I11 -> 38.51 | L3: DER/821300 - AGOSTO 2025 ADAPTADO
B4: der-pr | C4: 373200 | D4: MAT | E4: Betoneira 600 l gasolina | F4: hr | G4: 1 | H4: 0.59 | I4: =ROUND(H4*G4,2) -> 0.59
B5: der-pr | C5: 346080 | D5: MAT | E5: Caminhão carroceria 815/37 6 t | F5: hr | G5: 1 | H5: 25.57 | I5: =ROUND(H5*G5,2) -> 25.57
B6: der-pr | C6: 301800 | D6: MAT | E6: Carrinho de concretagem 80 l | F6: hr | G6: 1 | H6: 0.02 | I6: 0.02
B7: der-pr | C7: 370450 | D7: MAT | E7: Vibrador imersão gasolina 45mm | F7: hr | G7: 1 | H7: 0.29 | I7: 0.29
B8: der-pr | C8: 210060 | D8: SER.AUX | E8: Encarregado de Serviço | F8: hr | G8: 0.1 | H8: 50.16 | I8: =ROUND(H8*G8,2) -> 5.02
B9: der-pr | C9: 200260 | D9: SER.AUX | E9: Pedreiro | F9: hr | G9: 0.25 | H9: 38.67 | I9: =TRUNC(H9*G9,2) -> 9.66
B10: der-pr | C10: 210090 | D10: SER.AUX | E10: Serralheiro | F10: hr | G10: 0.25 | H10: 38.67 | I10: =TRUNC(H10*G10,2) -> 9.66
B11: der-pr | C11: 200130 | D11: SER.AUX | E11: Servente | F11: hr | G11: 0.5 | H11: 28.33 | I11: =ROUND(H11*G11,2) -> 14.17
B12: der-pr | C12: 29990 | D12: MAT | E12: Ferramentas Manuais | F12: unid | G12: 1 | H12: 5.77 | I12: 5.77
B13: der-pr | C13: 139000 | D13: MAT | E13: Areia | F13: m3 | G13: 0.0157 | H13: 79.11 | I13: 1.24
B14: der-pr | C14: 173200 | D14: MAT | E14: Cimento Portland (saco de 50kg) | F14: t | G14: 0.0066 | H14: 607.2 | I14: =ROUND(H14*G14,2) -> 4.01
B15: der-pr | C15: 130000 | D15: MAT | E15: Pedra britada (comercial) | F15: m3 | G15: 0.0182 | H15: 80.13 | I15: =ROUND(H15*G15,2) -> 1.46
B16: der-pr | C16: 161200 | D16: MAT | E16: Suporte metálico 2 1/2"x2,65mmx2,00m | F16: ud | G16: 1 | H16: 220 | I16: 220
B17: der-pr | C17: 600000 | D17: MAT | E17: Escavação manual de vala 1a. cat. | F17: m3 | G17: 0.0491 | H17: 44.61 | I17: 2.19
B19: PLANILHA | C19: CÓDIGO | D19: NOME | E19: DESCRIÇÃO | F19: UNID. | G19: COEF. | H19: R$/UNIT. | I19: TOTAL | J19: Material | K19: Mão de obra | L19: Código e Referência da Composição de Custos
B20: DETRAN | D20: COMP.02 | E20: Conjunto para placa indicativa (Coluna, Braço, Montagem, Fundação) para placas até 3,00m² - Coluna Tipo I com projeção de 2,80m | F20: unid | I20: =SUM(I21:I26) -> 12422.95 | J20: =I21+I23+I25 -> 12011.65 | K20: =I20-J20 -> 411.3 | L20: SCO/RJ- DEZEMBRO 2025
B21: SCO/RJ | C21: ST 64.05.0600 (/) | E21: Coluna de aço, cônica continua tipo I para ate 4 (quatro) braços projetados capazes de sustentar, cada um, semáforo e placa de 3m2 (três metros quadrados); coluna galvanizada a fogo; altura útil total de 5,00m (cinco metros); diâmetro na base igual a 187mm (cento e oitenta e sete milímetros); conforme especificação CET-RIO. Fornecimento (desonerado) | F21: unid | G21: 1 | H21: =VLOOKUP(C21,scorj!B:G,4,FALSE) -> 8287.06 | I21: =ROUND(H21*G21,2) -> 8287.06
B22: SCO/RJ | C22: ST 64.15.0170 (A) | E22: Assentamento de coluna de aço cônica continua tipo I para ate 4 (quatro) braços projetados capazes de sustentar, cada um, semáforo e placa de 3m2 (três metros quadrados) fixada por chumbadores engastados em fundação de concreto, exclusive fundação, exclusive fornecimento da coluna (desonerado) | F22: unid | G22: 1 | H22: =VLOOKUP(C22,scorj!B:G,4,FALSE) -> 327.37 | I22: 327.37
B23: SCO/RJ | C23: ST 64.05.0650 (/) | E23: Braco projetado de aco para sustentacao de semaforo e placa ate 3m2 (tres metros quadrados), galvanizado a fogo; para fixacao em coluna cilindrica giratoria, projecao de 2,80m (dois metros e oitenta centimetros); diametro junto a flange de 123mm (cento e vinte e tres milimetros); conforme especificacao CET-RIO. Fornecimento.(desonerado) | F23: unid | G23: 1 | H23: =VLOOKUP(C23,scorj!B:G,4,FALSE) -> 3245 | I23: 3245
B24: SCO/RJ | C24: ST 64.15.0180 (/) | E24: Montagem de braço projetado de aço em coluna de aço cônica continua tipo I assentada, exclusive o fornecimento do braço (desonerado) | F24: unid | G24: 1 | H24: =VLOOKUP(C24,scorj!B:G,4,FALSE) -> 83.93 | I24: 83.93
B25: SCO/RJ | C25: ST 64.15.0340 (/) | E25: Bloco de concreto armado medindo (0,60 x 0,60 x 1,00)m para uma coluna de aco conica continua para instalacao de ate 4 bracos projetados para sinalizacao.(desonerado) | F25: unid | G25: 1 | H25: =VLOOKUP(C25,scorj!B:G,4,FALSE) -> 479.59 | I25: 479.59
B28: PLANILHA | D28: NOME | E28: DESCRIÇÃO | F28: UNID. | G28: COEF. | H28: R$/UNIT. | I28: TOTAL | J28: Material | K28: Mão de obra | L28: Código e Referência da Composição de Custos
B29: DETRAN | D29: COMP.03 | E29: Conjunto para placa indicativa (Coluna, Braço, Montagem, Fundação) para placas até 3,00m² - Coluna Tipo I com projeção de 3,70m | F29: unid | I29: =SUM(I30:I35) -> 12814.63 | J29: =I30+I32+I34 -> 12403.33 | K29: =I29-J29 -> 411.3 | L29: SCO/RJ- DEZEMBRO 2025
B30: SCO/RJ | C30: ST 64.05.0600 (/) | E30: Coluna de aço, cônica continua tipo I para ate 4 (quatro) braços projetados capazes de sustentar, cada um, semáforo e placa de 3m2 (três metros quadrados); coluna galvanizada a fogo; altura útil total de 5,00m (cinco metros); diâmetro na base igual a 187mm (cento e oitenta e sete milímetros); conforme especificação CET-RIO. Fornecimento (desonerado) | F30: unid | G30: 1 | H30: =VLOOKUP(C30,scorj!B:G,4,FALSE) -> 8287.06 | I30: =ROUND(H30*G30,2) -> 8287.06
B31: SCO/RJ | C31: ST 64.15.0170 (A) | E31: Assentamento de coluna de aço cônica continua tipo I para ate 4 (quatro) braços projetados capazes de sustentar, cada um, semáforo e placa de 3m2 (três metros quadrados) fixada por chumbadores engastados em fundação de concreto, exclusive fundação, exclusive fornecimento da coluna (desonerado) | F31: unid | G31: 1 | H31: =VLOOKUP(C31,scorj!B:G,4,FALSE) -> 327.37 | I31: 327.37
B32: SCO/RJ | C32: ST 64.05.0700 (/) | E32: Braço projetado de aço para sustentação de semáforo e placa ate 3m2 (três metros quadrados), galvanizado a fogo; para fixação em coluna cônico continua tipo I, projeção de 3,70m (três metros e setenta centímetros); diâmetro junto a flange de 123mm (cento e vinte e três milímetros); conforme especificação CET-RIO. Fornecimento (desonerado) | F32: unid | G32: 1 | H32: =VLOOKUP(C32,scorj!B:G,4,FALSE) -> 3636.68 | I32: 3636.68
B33: SCO/RJ | C33: ST 64.15.0180 (/) | E33: Montagem de braço projetado de aço em coluna de aço cônica continua tipo I assentada, exclusive o fornecimento do braço (desonerado) | F33: unid | G33: 1 | H33: =VLOOKUP(C33,scorj!B:G,4,FALSE) -> 83.93 | I33: 83.93
B34: SCO/RJ | C34: ST 64.15.0340 (/) | E34: Bloco de concreto armado medindo (0,60 x 0,60 x 1,00)m para uma coluna de aco conica continua para instalacao de ate 4 bracos projetados para sinalizacao.(desonerado) | F34: unid | G34: 1 | H34: =VLOOKUP(C34,scorj!B:G,4,FALSE) -> 479.59 | I34: 479.59
B37: PLANILHA | D37: NOME | E37: DESCRIÇÃO | F37: UNID. | G37: COEF. | H37: R$/UNIT. | I37: TOTAL | J37: Material | K37: Mão de obra | L37: Código e Referência da Composição de Custos
B38: DETRAN | D38: COMP.04 | E38: Conjunto para placa indicativa (Coluna, Braço, Montagem, Fundação) para placas até 4,50m² - Coluna Tipo II com projeção de 6,00m | F38: unid | I38: =SUM(I39:I43) -> 18439.76 | J38: =I39+I41+I43 -> 17937.08 | K38: =I38-J38 -> 502.68 | L38: SCO/RJ- DEZEMBRO 2025
B39: SCO/RJ | C39: ST 64.05.0636 (/) | E39: Coluna de aço cônica continua tipo II para um braço projetado capaz de sustentar semáforo e placa de ate 4,50m2; coluna galvanizada a fogo; altura útil total de 5m; 300mm de diâmetro na base; conforme especificação da CET-RIO. Fornecimento (desonerado) | F39: unid | G39: 1 | H39: =VLOOKUP(C39,scorj!B:G,4,FALSE) -> 12423.77 | I39: =ROUND(H39*G39,2) -> 12423.77
B40: SCO/RJ | C40: ST 64.15.0173 (/) | E40: Assentamento de coluna de aço cônica continua tipo II para ate 1 (um) ou 2 (dois) braços projetados capazes de sustentar, cada um, semáforo e placa de 4,5m2 fixada por chumbadores engastados em fundação de concreto, exclusive fundação, exclusive fornecimento da coluna (desonerado) | F40: unid | G40: 1 | H40: =VLOOKUP(C40,scorj!B:G,4,FALSE) -> 343.29 | I40: 343.29
B41: SCO/RJ | C41: ST 64.05.0760 (/) | E41: Braço projetado de aço para sustentação de semáforo e placa de ate 4,50m2; galvanizado a fogo; para fixação em coluna cônica tipo II; projeção de 6m; 173mm de diâmetro junto a flange; conforme especificação da CET-RIO. Fornecimento (desonerado) | F41: unid | G41: 1 | H41: =VLOOKUP(C41,scorj!B:G,4,FALSE) -> 5033.72 | I41: 5033.72
B42: SCO/RJ | C42: ST 64.15.0186 (/) | E42: Montagem de braço projetado em coluna de aço cônica continua tipo II assentada, exclusive o fornecimento do braço (desonerado) | F42: unid | G42: 1 | H42: =VLOOKUP(C42,scorj!B:G,4,FALSE) -> 159.39 | I42: 159.39
B43: SCO/RJ | C43: ST 64.15.0340 (/) | E43: Bloco de concreto armado medindo (0,60 x 0,60 x 1,00)m para uma coluna de aco conica continua para instalacao de ate 4 bracos projetados para sinalizacao.(desonerado) | F43: unid | G43: 1 | H43: =VLOOKUP(C43,scorj!B:G,4,FALSE) -> 479.59 | I43: 479.59
B45: PLANILHA | D45: NOME | E45: DESCRIÇÃO | F45: UNID. | G45: COEF. | H45: R$/UNIT. | I45: TOTAL | J45: Material | K45: Mão de obra | L45: Código e Referência da Composição de Custos
B46: DETRAN | D46: COMP.05 | E46: Placa tipo R-1 - L = 0,25m. Com película refletiva tipo I A (prismática) - Área: 0,32 m² | F46: m² | G46: 0.32 | I46: =ROUND((I47+I48+I49+I50+I51+I52+I53+I54+I55+I56)*G46,2) -> 172.1 | J46: =ROUND((I47+I51+I52+I53+I54+I55+I56)*G46,2) -> 155.25 | K46: =ROUND((I48+I49+I50)*G46,2) -> 16.85 | L46: DER/820000 - AGOSTO 2025 ADAPTADO
B47: der-pr | C47: 346000 | D47: MAT | E47: Caminhão carroceria 1419 14 t | F47: unid | G47: 1 | H47: 135.67 | I47: =ROUND(H47*G47,2) -> 135.67
B48: der-pr | C48: 200270 | D48: SER.AUX | E48: Pintor | F48: hr | G48: 0.5 | H48: 38.67 | I48: =TRUNC(H48*G48,2) -> 19.33
B49: der-pr | C49: 200130 | D49: SER.AUX | E49: Servente | F49: hr | G49: 1 | H49: 28.33 | I49: 28.33
B50: der-pr | C50: 210060 | D50: SER.AUX | E50: Técnico de Campo I | F50: hr | G50: 0.1 | H50: 50.16 | I50: =TRUNC(H50*G50,2) -> 5.01
B51: der-pr | C51: 29990 | D51: MAT | E51: Ferramentas Manuais | F51: unid | G51: 1 | H51: 2.63 | I51: 2.63
B52: der-pr | C52: 150190 | D52: MAT | E52: Chapa nº 18 galvanizada (10 kg/m2) pré-pintada | F52: m² | G52: 1 | H52: 110.78 | I52: 110.78
B53: der-pr | C53: 111070 | D53: MAT | E53: Madeira peroba 1" x 3" | F53: m | G53: 1 | H53: 14.13 | I53: 14.13
B54: der-pr | C54: 133120 | D54: MAT | E54: Parafuso francês g.f. c/porca 5/8" x 3.1/2" | F54: unid | G54: 2 | H54: 5.18 | I54: 10.36
B55: der-pr | C55: 126120 | D55: MAT | E55: Película refletiva - tipo IA (prismática) | F55: m² | G55: 1.5 | H55: 141.02 | I55: 211.53
B56: der-pr | C56: 106040 | D56: MAT | E56: Tinta óleo (fundo) | F56: l | G56: 0.0012 | H56: 42.07 | I56: =ROUND(H56*G56,2) -> 0.05
B58: PLANILHA | D58: NOME | E58: DESCRIÇÃO | F58: UNID. | G58: COEF. | H58: R$/UNIT. | I58: TOTAL | J58: Material | K58: Mão de obra | L58: Código e Referência da Composição de Custos
B59: DETRAN | D59: COMP.06 | E59: Placa tipo R-2 - L = 0,75m. Com película refletiva tipo I A (prismática) - Área: 0,24m² | F59: m² | G59: 0.24 | I59: =ROUND((I60+I61+I62+I63+I64+I65+I66+I67+I68+I69)*G59,2) -> 129.08 | J59: =ROUND((I60+I64+I65+I66+I67+I68+I69)*G59,2) -> 116.44 | K59: =ROUND((I61+I62+I63)*G59,2) -> 12.64 | L59: DER/820000 - AGOSTO 2025 ADAPTADO
B60: der-pr | C60: 346000 | D60: MAT | E60: Caminhão carroceria 1419 14 t | F60: unid | G60: 1 | H60: 135.67 | I60: =ROUND(H60*G60,2) -> 135.67
B61: der-pr | C61: 200270 | D61: SER.AUX | E61: Pintor | F61: hr | G61: 0.5 | H61: 38.67 | I61: =TRUNC(H61*G61,2) -> 19.33
B62: der-pr | C62: 200130 | D62: SER.AUX | E62: Servente | F62: hr | G62: 1 | H62: 28.33 | I62: =ROUND(H62*G62,2) -> 28.33
B63: der-pr | C63: 210060 | D63: SER.AUX | E63: Técnico de Campo I | F63: hr | G63: 0.1 | H63: 50.16 | I63: =TRUNC(H63*G63,2) -> 5.01
B64: der-pr | C64: 29990 | D64: MAT | E64: Ferramentas Manuais | F64: unid | G64: 1 | H64: 2.63 | I64: =ROUND(H64*G64,2) -> 2.63
B65: der-pr | C65: 150190 | D65: MAT | E65: Chapa nº 18 galvanizada (10 kg/m2) pré-pintada | F65: m² | G65: 1 | H65: 110.78 | I65: 110.78
B66: der-pr | C66: 111070 | D66: MAT | E66: Madeira peroba 1" x 3" | F66: m | G66: 1 | H66: 14.13 | I66: 14.13
B67: der-pr | C67: 133120 | D67: MAT | E67: Parafuso francês g.f. c/porca 5/8" x 3.1/2" | F67: unid | G67: 2 | H67: 5.18 | I67: 10.36
B68: der-pr | C68: 126120 | D68: MAT | E68: Película refletiva - tipo IA (prismática) | F68: m² | G68: 1.5 | H68: 141.02 | I68: 211.53
B69: der-pr | C69: 106040 | D69: MAT | E69: Tinta óleo (fundo) | F69: l | G69: 0.0012 | H69: 42.07 | I69: =ROUND(H69*G69,2) -> 0.05
B71: PLANILHA | D71: NOME | E71: DESCRIÇÃO | F71: UNID. | G71: COEF. | H71: R$/UNIT. | I71: TOTAL | J71: Material | K71: Mão de obra | L71: Código e Referência da Composição de Custos
B72: DETRAN | D72: COMP.07 | E72: Placa tipo circular - D = 0,50m. Com película refletiva tipo I A (prismática) - Área: 0,21m² | F72: m² | G72: 0.21 | I72: =ROUND((I73+I74+I75+I76+I77+I78+I79+I80+I81+I82)*G72,2) -> 112.94 | J72: =ROUND((I73+I77+I78+I79+I80+I81+I82)*G72,2) -> 101.88 | K72: =ROUND((I74+I75+I76)*G72,2) -> 11.06 | L72: DER/820000 - AGOSTO 2025 ADAPTADO
B73: der-pr | C73: 346000 | D73: MAT | E73: Caminhão carroceria 1419 14 t | F73: unid | G73: 1 | H73: 135.67 | I73: =ROUND(H73*G73,2) -> 135.67
B74: der-pr | C74: 200270 | D74: SER.AUX | E74: Pintor | F74: hr | G74: 0.5 | H74: 38.67 | I74: =TRUNC(H74*G74,2) -> 19.33
B75: der-pr | C75: 200130 | D75: SER.AUX | E75: Servente | F75: hr | G75: 1 | H75: 28.33 | I75: =ROUND(H75*G75,2) -> 28.33
B76: der-pr | C76: 210060 | D76: SER.AUX | E76: Técnico de Campo I | F76: hr | G76: 0.1 | H76: 50.16 | I76: =TRUNC(H76*G76,2) -> 5.01
B77: der-pr | C77: 29990 | D77: MAT | E77: Ferramentas Manuais | F77: unid | G77: 1 | H77: 2.63 | I77: =ROUND(H77*G77,2) -> 2.63
B78: der-pr | C78: 150190 | D78: MAT | E78: Chapa nº 18 galvanizada (10 kg/m2) pré-pintada | F78: m² | G78: 1 | H78: 110.78 | I78: 110.78
B79: der-pr | C79: 111070 | D79: MAT | E79: Madeira peroba 1" x 3" | F79: m | G79: 1 | H79: 14.13 | I79: 14.13
B80: der-pr | C80: 133120 | D80: MAT | E80: Parafuso francês g.f. c/porca 5/8" x 3.1/2" | F80: unid | G80: 2 | H80: 5.18 | I80: 10.36
B81: der-pr | C81: 126120 | D81: MAT | E81: Película refletiva - tipo IA (prismática) | F81: m² | G81: 1.5 | H81: 141.02 | I81: 211.53
B82: der-pr | C82: 106040 | D82: MAT | E82: Tinta óleo (fundo) | F82: l | G82: 0.0012 | H82: 42.07 | I82: =ROUND(H82*G82,2) -> 0.05
B84: PLANILHA | D84: NOME | E84: DESCRIÇÃO | F84: UNID. | G84: COEF. | H84: R$/UNIT. | I84: TOTAL | J84: Material | K84: Mão de obra | L84: Código e Referência da Composição de Custos
B85: DETRAN | D85: COMP.08 | E85: Placa tipo de advertência - L = 0,50m. Com película refletiva tipo I A (prismática) - Área: 0,27 m² | F85: m² | G85: 0.27 | I85: =ROUND((I86+I87+I88+I89+I90+I91+I92+I93+I94+I95)*G85,2) -> 145.21 | J85: =ROUND((I86+I90+I91+I92+I93+I94+I95)*G85,2) -> 130.99 | K85: =ROUND((I87+I88+I89)*G85,2) -> 14.22 | L85: DER/820000 - AGOSTO 2025 ADAPTADO
B86: der-pr | C86: 346000 | D86: MAT | E86: Caminhão carroceria 1419 14 t | F86: unid | G86: 1 | H86: 135.67 | I86: =ROUND(H86*G86,2) -> 135.67
B87: der-pr | C87: 200270 | D87: SER.AUX | E87: Pintor | F87: hr | G87: 0.5 | H87: 38.67 | I87: =TRUNC(H87*G87,2) -> 19.33
B88: der-pr | C88: 200130 | D88: SER.AUX | E88: Servente | F88: hr | G88: 1 | H88: 28.33 | I88: =ROUND(H88*G88,2) -> 28.33
B89: der-pr | C89: 210060 | D89: SER.AUX | E89: Técnico de Campo I | F89: hr | G89: 0.1 | H89: 50.16 | I89: =TRUNC(H89*G89,2) -> 5.01
B90: der-pr | C90: 29990 | D90: MAT | E90: Ferramentas Manuais | F90: unid | G90: 1 | H90: 2.63 | I90: =ROUND(H90*G90,2) -> 2.63
B91: der-pr | C91: 150190 | D91: MAT | E91: Chapa nº 18 galvanizada (10 kg/m2) pré-pintada | F91: m² | G91: 1 | H91: 110.78 | I91: 110.78
B92: der-pr | C92: 111070 | D92: MAT | E92: Madeira peroba 1" x 3" | F92: m | G92: 1 | H92: 14.13 | I92: 14.13
B93: der-pr | C93: 133120 | D93: MAT | E93: Parafuso francês g.f. c/porca 5/8" x 3.1/2" | F93: unid | G93: 2 | H93: 5.18 | I93: 10.36
B94: der-pr | C94: 126120 | D94: MAT | E94: Película refletiva - tipo IA (prismática) | F94: m² | G94: 1.5 | H94: 141.02 | I94: 211.53
B95: der-pr | C95: 106040 | D95: MAT | E95: Tinta óleo (fundo) | F95: l | G95: 0.0012 | H95: 42.07 | I95: =ROUND(H95*G95,2) -> 0.05
B97: PLANILHA | D97: NOME | E97: DESCRIÇÃO | F97: UNID. | G97: COEF. | H97: R$/UNIT. | I97: TOTAL | J97: Material | K97: Mão de obra | L97: Código e Referência da Composição de Custos
B98: DETRAN | D98: COMP.09 | E98: Placa tipo retangular - L = 0,50m x h= 1,00 m. Com película refletiva tipo I A (prismática) | F98: m² | G98: 0.5 | I98: =SUM(I99:I108)*G98 -> 268.91 | J98: =ROUND((I99+I103+I104+I105+I106+I107+I108)*G98,2) -> 242.58 | K98: =ROUND((I100+I101+I102)*G98,2) -> 26.34 | L98: DER/820000 - AGOSTO 2025 ADAPTADO
B99: der-pr | C99: 346000 | D99: MAT | E99: Caminhão carroceria 1419 14 t | F99: unid | G99: 1 | H99: 135.67 | I99: =ROUND(H99*G99,2) -> 135.67
B100: der-pr | C100: 200270 | D100: SER.AUX | E100: Pintor | F100: hr | G100: 0.5 | H100: 38.67 | I100: =TRUNC(H100*G100,2) -> 19.33
B101: der-pr | C101: 200130 | D101: SER.AUX | E101: Servente | F101: hr | G101: 1 | H101: 28.33 | I101: =ROUND(H101*G101,2) -> 28.33
B102: der-pr | C102: 210060 | D102: SER.AUX | E102: Técnico de Campo I | F102: hr | G102: 0.1 | H102: 50.16 | I102: =TRUNC(H102*G102,2) -> 5.01
B103: der-pr | C103: 29990 | D103: MAT | E103: Ferramentas Manuais | F103: unid | G103: 1 | H103: 2.63 | I103: =ROUND(H103*G103,2) -> 2.63
B104: der-pr | C104: 150190 | D104: MAT | E104: Chapa nº 18 galvanizada (10 kg/m2) pré-pintada | F104: m² | G104: 1 | H104: 110.78 | I104: 110.78
B105: der-pr | C105: 111070 | D105: MAT | E105: Madeira peroba 1" x 3" | F105: m | G105: 1 | H105: 14.13 | I105: 14.13
B106: der-pr | C106: 133120 | D106: MAT | E106: Parafuso francês g.f. c/porca 5/8" x 3.1/2" | F106: unid | G106: 2 | H106: 5.18 | I106: 10.36
B107: der-pr | C107: 126120 | D107: MAT | E107: Película refletiva - tipo IA (prismática) | F107: m² | G107: 1.5 | H107: 141.02 | I107: 211.53
B108: der-pr | C108: 106040 | D108: MAT | E108: Tinta óleo (fundo) | F108: l | G108: 0.0012 | H108: 42.07 | I108: =ROUND(H108*G108,2) -> 0.05
B110: PLANILHA | D110: NOME | E110: DESCRIÇÃO | F110: m2 | G110: COEF. | H110: R$/UNIT. | I110: TOTAL | J110: Material | K110: Mão de obra | L110: Código e Referência da Composição de Custos
B111: DETRAN | D111: COMP.10 | E111: Faixa de sinalização horizontal c/tinta resina acrílica base água com limpeza do pavimento com jato d'água | F111: m² | I111: =SUM(I112:I120,I121:I128) -> 24.73 | J111: =SUM(I112:I113,I117:I120) -> 18.93 | K111: =SUM(I114:I116,I121:I128) -> 5.8 | L111: DER/822100 - AGOSTO 2025 ADAPTADO
B112: der-pr | C112: 346080 | D112: MAT | E112: Caminhão carroceria 815/37 6 t | F112: unid | G112: 0.033333 | H112: 19.57 | I112: =ROUND(H112*G112,2) -> 0.65
B113: der-pr | C113: 370440 | D113: MAT | E113: Máquina pintura de faixas | F113: unid | G113: 0.033333 | H113: 181.94 | I113: 6.06
B114: der-pr | C114: 200130 | D114: SER.AUX | E114: Servente | F114: hr | G114: =G113*3 -> 0.099999 | H114: 28.33 | I114: 2.83
B115: der-pr | C115: 210060 | D115: SER.AUX | E115: Técnico de Campo I | F115: hr | G115: =G113*0.2 -> 0.0066666 | H115: 50.16 | I115: 0.33
B116: der-pr | C116: 210080 | D116: SER.AUX | E116: Topógrafo | F116: hr | G116: =G113*0.1 -> 0.0033333 | H116: 43.84 | I116: 0.15
B117: der-pr | C117: 29990 | D117: MAT | E117: Ferramentas Manuais | F117: unid | G117: 0.033333 | H117: 4.97 | I117: 0.17
B118: der-pr | C118: 100200 | D118: MAT | E118: Micro-esferas Drop-on | F118: kg | G118: 0.275 | H118: 8.9 | I118: =TRUNC(H118*G118,2) -> 2.44
B119: der-pr | C119: 100100 | D119: MAT | E119: Micro-esferas Premix | F119: kg | G119: 0.225 | H119: 8.52 | I119: =TRUNC(H119*G119,2) -> 1.91
B120: der-pr | C120: 100150 | D120: MAT | E120: Tinta base resina acrílica emuls. Água -2 anos | F120: l | G120: 0.5 | H120: 15.4 | I120: 7.7
B121: der-pr | C121: 346070 | D121: MAT | E121: Caminhão pipa 6000 l | F121: unid | G121: 0.00303 | H121: 250.42 | I121: =ROUND(H121*G121,2) -> 0.76 | L121: Código e Referência da Composição de Custos
B122: der-pr | C122: 340800 | D122: MAT | E122: Compressor de ar 175 pcm | F122: unid | G122: 0.00303 | H122: 54.43 | I122: 0.16 | L122: DER/515580 - AGOSTO 2025 ADAPTADO
B123: der-pr | C123: 340400 | D123: MAT | E123: Grupo gerador 40 KVA | F123: unid | G123: 0.00303 | H123: 54.08 | I123: 0.16
B124: der-pr | C124: 337000 | D124: MAT | E124: Hidrocompressor 3700 lb/3,675 Kw | F124: unid | G124: 0.00303 | H124: 6.64 | I124: 0.02
B125: der-pr | C125: 341100 | D125: MAT | E125: Trator agrícola BH-174 4x4 | F125: unid | G125: 0.00303 | H125: 237.51 | I125: 0.72
B126: der-pr | C126: 300090 | D126: MAT | E126: Vassoura mecânica rebocável | F126: unid | G126: 0.00303 | H126: 15.15 | I126: 0.05
B127: der-pr | C127: 200130 | D127: SER.AUX | E127: Servente | F127: hr | G127: =G121*6 -> 0.01818 | H127: 28.33 | I127: 0.52
B128: der-pr | C128: 210060 | D128: SER.AUX | E128: Técnico de Campo I | F128: hr | G128: =G121*0.7 -> 0.002121 | H128: 50.16 | I128: =TRUNC(H128*G128,2) -> 0.1
B130: PLANILHA | D130: NOME | E130: DESCRIÇÃO | F130: m2 | G130: COEF. | H130: R$/UNIT. | I130: TOTAL | J130: Material | K130: Mão de obra | L130: Código e Referência da Composição de Custos
B131: DETRAN | D131: COMP.11 | E131: Faixa de sinalização horizontal c/tinta resina acrílica base solvente com limpeza do pavimento com jato d'água | F131: m² | I131: =SUM(I132:I141,I142:I149) -> 30.41 | J131: =SUM(I132:I133,I137:I141) -> 24.61 | K131: =SUM(I134:I136,I142:I149) -> 5.8 | L131: DER/822000 - AGOSTO 2025 ADAPTADO
B132: der-pr | C132: 346080 | D132: MAT | E132: Caminhão carroceria 815/37 6 t | F132: unid | G132: 0.033333 | H132: 19.57 | I132: =ROUND(H132*G132,2) -> 0.65
B133: der-pr | C133: 370440 | D133: MAT | E133: Máquina pintura de faixas | F133: unid | G133: 0.033333 | H133: 181.94 | I133: 6.06
B134: der-pr | C134: 200130 | D134: SER.AUX | E134: Servente | F134: hr | G134: =G132*3 -> 0.099999 | H134: 28.33 | I134: 2.83
B135: der-pr | C135: 210060 | D135: SER.AUX | E135: Técnico de Campo I | F135: hr | G135: =G132*0.2 -> 0.0066666 | H135: 50.16 | I135: 0.33
B136: der-pr | C136: 210080 | D136: SER.AUX | E136: Topógrafo | F136: hr | G136: =G133*0.1 -> 0.0033333 | H136: 43.84 | I136: 0.15
B137: der-pr | C137: 29990 | D137: MAT | E137: Ferramentas Manuais | F137: unid | G137: 0.033333 | H137: 4.97 | I137: 0.17
B138: der-pr | C138: 100200 | D138: MAT | E138: Micro-esferas Drop-on | F138: kg | G138: 0.275 | H138: 8.9 | I138: =TRUNC(H138*G138,2) -> 2.44
B139: der-pr | C139: 100100 | D139: MAT | E139: Micro-esferas Premix | F139: kg | G139: 0.225 | H139: 8.52 | I139: =TRUNC(H139*G139,2) -> 1.91
B140: der-pr | C140: 100110 | D140: MAT | E140: Solvente tolueno | F140: L | G140: 0.03 | H140: 14.96 | I140: =TRUNC(H140*G140,2) -> 0.44
B141: der-pr | C141: 100120 | D141: MAT | E141: Tinta base resina acrílica emuls. Água -2 anos | F141: l | G141: 0.6 | H141: 21.58 | I141: =TRUNC(H141*G141,2) -> 12.94
B142: der-pr | C142: 346070 | D142: MAT | E142: Caminhão pipa 6000 l | F142: unid | G142: 0.00303 | H142: 250.42 | I142: =ROUND(H142*G142,2) -> 0.76 | L142: Código e Referência da Composição de Custos
B143: der-pr | C143: 340800 | D143: MAT | E143: Compressor de ar 175 pcm | F143: unid | G143: 0.00303 | H143: 54.43 | I143: 0.16 | L143: DER/515580 - AGOSTO 2025 ADAPTADO
B144: der-pr | C144: 340400 | D144: MAT | E144: Grupo gerador 40 KVA | F144: unid | G144: 0.00303 | H144: 54.08 | I144: 0.16
B145: der-pr | C145: 337000 | D145: MAT | E145: Hidrocompressor 3700 lb/3,675 Kw | F145: unid | G145: 0.00303 | H145: 6.64 | I145: 0.02
B146: der-pr | C146: 341100 | D146: MAT | E146: Trator agrícola BH-174 4x4 | F146: unid | G146: 0.00303 | H146: 237.51 | I146: 0.72
B147: der-pr | C147: 300090 | D147: MAT | E147: Vassoura mecânica rebocável | F147: unid | G147: 0.00303 | H147: 15.15 | I147: 0.05
B148: der-pr | C148: 200130 | D148: SER.AUX | E148: Servente | F148: hr | G148: =G142*6 -> 0.01818 | H148: 28.33 | I148: 0.52
B149: der-pr | C149: 210060 | D149: SER.AUX | E149: Técnico de Campo I | F149: hr | G149: =G142*0.7 -> 0.002121 | H149: 50.16 | I149: =TRUNC(H149*G149,2) -> 0.1
B151: PLANILHA | D151: NOME | E151: DESCRIÇÃO | F151: m2 | G151: COEF. | H151: R$/UNIT. | I151: TOTAL | J151: Material | K151: Mão de obra | L151: Código e Referência da Composição de Custos
B152: DETRAN | D152: COMP.12 | E152: Faixa de sinalização horizontal - termoplástico por aspersão - e=1,5mm com limpeza do pavimento com jato d'água | F152: m² | I152: =SUM(I153:I168) -> 42.58 | J152: =SUM(I153:I154,I158:I166) -> 34.78 | K152: =SUM(I155:I157,I167:I168) -> 7.8 | L152: DER/822350- AGOSTO 2025 ADAPTADO
B153: der-pr | C153: 342300 | D153: MAT | E153: Cam. chassi 18.210 | F153: unid | G153: 0.025 | H153: 247.25 | I153: =ROUND(H153*G153,2) -> 6.18
B154: der-pr | C154: 370400 | D154: MAT | E154: Equipamento aplicação termoplástico Spray/ Extrusão | F154: unid | G154: 0.025 | H154: 184.07 | I154: 4.6
B155: der-pr | C155: 210070 | D155: SER.AUX | E155: Pré-marcador (Sinalização) | F155: unid | G155: 0.025 | H155: 38.67 | I155: 0.97
B156: der-pr | C156: 200130 | D156: SER.AUX | E156: Servente | F156: hr | G156: =G153*7 -> 0.175 | H156: 28.33 | I156: 4.96
B157: der-pr | C157: 210060 | D157: SER.AUX | E157: Técnico de Campo I | F157: hr | G157: =G153*1 -> 0.025 | H157: 50.16 | I157: 1.25
B158: der-pr | C158: 29990 | D158: MAT | E158: Ferramentas Manuais | F158: unid | G158: 0.025 | H158: 14.35 | I158: 0.36
B159: der-pr | C159: 100170 | D159: MAT | E159: Material termoplástico p/aspersão | F159: kg | G159: 3 | H159: 6.07 | I159: =TRUNC(H159*G159,2) -> 18.21
B160: der-pr | C160: 100200 | D160: MAT | E160: Micro-esferas Drop-on | F160: kg | G160: 0.4 | H160: 8.9 | I160: 3.56
B161: der-pr | C161: 346070 | D161: MAT | E161: Caminhão pipa 6000 l | F161: unid | G161: 0.00303 | H161: 250.42 | I161: =ROUND(H161*G161,2) -> 0.76 | L161: Código e Referência da Composição de Custos
B162: der-pr | C162: 340800 | D162: MAT | E162: Compressor de ar 175 pcm | F162: unid | G162: 0.00303 | H162: 54.43 | I162: 0.16 | L162: DER/515580 - AGOSTO 2025 ADAPTADO
B163: der-pr | C163: 340400 | D163: MAT | E163: Grupo gerador 40 KVA | F163: unid | G163: 0.00303 | H163: 54.08 | I163: 0.16
B164: der-pr | C164: 337000 | D164: MAT | E164: Hidrocompressor 3700 lb/3,675 Kw | F164: unid | G164: 0.00303 | H164: 6.64 | I164: 0.02
B165: der-pr | C165: 341100 | D165: MAT | E165: Trator agrícola BH-174 4x4 | F165: unid | G165: 0.00303 | H165: 237.51 | I165: 0.72
B166: der-pr | C166: 300090 | D166: MAT | E166: Vassoura mecânica rebocável | F166: unid | G166: 0.00303 | H166: 15.15 | I166: 0.05
B167: der-pr | C167: 200130 | D167: SER.AUX | E167: Servente | F167: hr | G167: =G161*6 -> 0.01818 | H167: 28.33 | I167: 0.52
B168: der-pr | C168: 210060 | D168: SER.AUX | E168: Técnico de Campo I | F168: hr | G168: =G161*0.7 -> 0.002121 | H168: 50.16 | I168: =TRUNC(H168*G168,2) -> 0.1
B170: PLANILHA | D170: NOME | E170: DESCRIÇÃO | F170: m2 | G170: COEF. | H170: R$/UNIT. | I170: TOTAL | J170: Material | K170: Mão de obra | L170: Código e Referência da Composição de Custos
B171: DETRAN | D171: COMP.13 | E171: Pintura de setas e zebrados - termoplástico por extrusão - e=3mm com limpeza do pavimento com jato d'água | F171: m² | I171: =SUM(I172:I187) -> 56.89 | J171: =SUM(I172:I173,I177:I185) -> 49.09 | K171: =SUM(I174:I176,I186:I187) -> 7.8 | L171: DER/822330- AGOSTO 2025 ADAPTADO
B172: der-pr | C172: 342300 | D172: MAT | E172: Cam. chassi 18.210 | F172: unid | G172: 0.025 | H172: 247.25 | I172: =ROUND(H172*G172,2) -> 6.18
B173: der-pr | C173: 370400 | D173: MAT | E173: Equipamento aplicação termoplástico Spray/ Extrusão | F173: unid | G173: 0.025 | H173: 184.07 | I173: 4.6
B174: der-pr | C174: 210070 | D174: SER.AUX | E174: Pré-marcador (Sinalização) | F174: hr | G174: =G172*1 -> 0.025 | H174: 38.67 | I174: 0.97
B175: der-pr | C175: 200130 | D175: SER.AUX | E175: Servente | F175: hr | G175: =G172*7 -> 0.175 | H175: 28.33 | I175: 4.96
B176: der-pr | C176: 210060 | D176: SER.AUX | E176: Técnico de Campo I | F176: hr | G176: =G172*1 -> 0.025 | H176: 50.16 | I176: 1.25
B177: der-pr | C177: 29990 | D177: MAT | E177: Ferramentas Manuais | F177: unid | G177: 0.025 | H177: 14.35 | I177: 0.36
B178: der-pr | C178: 100180 | D178: MAT | E178: Material termoplástico p/extrusão | F178: kg | G178: 6 | H178: 5.42 | I178: =TRUNC(H178*G178,2) -> 32.52
B179: der-pr | C179: 100200 | D179: MAT | E179: Micro-esferas Drop-on | F179: kg | G179: 0.4 | H179: 8.9 | I179: 3.56
B180: der-pr | C180: 346070 | D180: MAT | E180: Caminhão pipa 6000 l | F180: unid | G180: 0.00303 | H180: 250.42 | I180: =ROUND(H180*G180,2) -> 0.76 | L180: Código e Referência da Composição de Custos
B181: der-pr | C181: 340800 | D181: MAT | E181: Compressor de ar 175 pcm | F181: unid | G181: 0.00303 | H181: 54.43 | I181: 0.16 | L181: DER/515580 - AGOSTO 2025 ADAPTADO
B182: der-pr | C182: 340400 | D182: MAT | E182: Grupo gerador 40 KVA | F182: unid | G182: 0.00303 | H182: 54.08 | I182: 0.16
B183: der-pr | C183: 337000 | D183: MAT | E183: Hidrocompressor 3700 lb/3,675 Kw | F183: unid | G183: 0.00303 | H183: 6.64 | I183: 0.02
B184: der-pr | C184: 341100 | D184: MAT | E184: Trator agrícola BH-174 4x4 | F184: unid | G184: 0.00303 | H184: 237.51 | I184: 0.72
B185: der-pr | C185: 300090 | D185: MAT | E185: Vassoura mecânica rebocável | F185: unid | G185: 0.00303 | H185: 15.15 | I185: 0.05
B186: der-pr | C186: 200130 | D186: SER.AUX | E186: Servente | F186: hr | G186: =G180*6 -> 0.01818 | H186: 28.33 | I186: 0.52
B187: der-pr | C187: 210060 | D187: SER.AUX | E187: Técnico de Campo I | F187: hr | G187: =G180*0.7 -> 0.002121 | H187: 50.16 | I187: =TRUNC(H187*G187,2) -> 0.1
B189: PLANILHA | D189: NOME | E189: DESCRIÇÃO | F189: m2 | G189: COEF. | H189: R$/UNIT. | I189: TOTAL | J189: Material | K189: Mão de obra | L189: Código e Referência da Composição de Custos
B190: DETRAN | D190: COMP.14 | E190: Pintura de setas e zebrados - termoplástico por extrusão - e=3mm com limpeza do pavimento com jato d'água | F190: m² | I190: =SUM(I191:I206) -> 56.89 | J190: =SUM(I191:I192,I196:I204) -> 49.09 | K190: =SUM(I193:I195,I205:I206) -> 7.8 | L190: DER/822330- AGOSTO 2025 ADAPTADO
B191: der-pr | C191: 342300 | D191: MAT | E191: Cam. chassi 18.210 | F191: unid | G191: 0.025 | H191: 247.25 | I191: =ROUND(H191*G191,2) -> 6.18
B192: der-pr | C192: 370400 | D192: MAT | E192: Equipamento aplicação termoplástico Spray/ Extrusão | F192: unid | G192: 0.025 | H192: 184.07 | I192: 4.6
B193: der-pr | C193: 210070 | D193: SER.AUX | E193: Pré-marcador (Sinalização) | F193: hr | G193: =G191*1 -> 0.025 | H193: 38.67 | I193: 0.97
B194: der-pr | C194: 200130 | D194: SER.AUX | E194: Servente | F194: hr | G194: =G191*7 -> 0.175 | H194: 28.33 | I194: 4.96
B195: der-pr | C195: 210060 | D195: SER.AUX | E195: Técnico de Campo I | F195: hr | G195: =G191*1 -> 0.025 | H195: 50.16 | I195: 1.25
B196: der-pr | C196: 29990 | D196: MAT | E196: Ferramentas Manuais | F196: unid | G196: 0.025 | H196: 14.35 | I196: 0.36
B197: der-pr | C197: 100180 | D197: MAT | E197: Material termoplástico p/extrusão | F197: kg | G197: 6 | H197: 5.42 | I197: =TRUNC(H197*G197,2) -> 32.52
B198: der-pr | C198: 100200 | D198: MAT | E198: Micro-esferas Drop-on | F198: kg | G198: 0.4 | H198: 8.9 | I198: 3.56
B199: der-pr | C199: 346070 | D199: MAT | E199: Caminhão pipa 6000 l | F199: unid | G199: 0.00303 | H199: 250.42 | I199: =ROUND(H199*G199,2) -> 0.76 | L199: Código e Referência da Composição de Custos
B200: der-pr | C200: 340800 | D200: MAT | E200: Compressor de ar 175 pcm | F200: unid | G200: 0.00303 | H200: 54.43 | I200: 0.16 | L200: DER/515580 - AGOSTO 2025 ADAPTADO
B201: der-pr | C201: 340400 | D201: MAT | E201: Grupo gerador 40 KVA | F201: unid | G201: 0.00303 | H201: 54.08 | I201: 0.16
B202: der-pr | C202: 337000 | D202: MAT | E202: Hidrocompressor 3700 lb/3,675 Kw | F202: unid | G202: 0.00303 | H202: 6.64 | I202: 0.02
B203: der-pr | C203: 341100 | D203: MAT | E203: Trator agrícola BH-174 4x4 | F203: unid | G203: 0.00303 | H203: 237.51 | I203: 0.72
B204: der-pr | C204: 300090 | D204: MAT | E204: Vassoura mecânica rebocável | F204: unid | G204: 0.00303 | H204: 15.15 | I204: 0.05
B205: der-pr | C205: 200130 | D205: SER.AUX | E205: Servente | F205: hr | G205: =G199*6 -> 0.01818 | H205: 28.33 | I205: 0.52
B206: der-pr | C206: 210060 | D206: SER.AUX | E206: Técnico de Campo I | F206: hr | G206: =G199*0.7 -> 0.002121 | H206: 50.16 | I206: =TRUNC(H206*G206,2) -> 0.1
B208: PLANILHA | D208: NOME | E208: DESCRIÇÃO | F208: m2 | G208: COEF. | H208: R$/UNIT. | I208: TOTAL | J208: Material | K208: Mão de obra | L208: Código e Referência da Composição de Custos
B209: DETRAN | D209: COMP.15 | E209: Pintura de faixa com plástico a frio bicomponente à base de resinas metacrílicas por extrusão (plano) - espessura de 1,5 mm com limpeza do pavimento com jato d'água | F209: m² | I209: =SUM(I210:I226) -> 128.36 | J209: =SUM(I210,I214:I224) -> 124.77 | K209: =SUM(I211:I213,I225:I226) -> 3.59 | L209: DENIT/5214009- OUTUBRO 2025 ADAPTADO
B210: dnit | C210: E9693 | D210: MAT | E210: Caminhão de marcador de faixas com sistema de pintura Spray-129kW | F210: unid | G210: 0.016603 | H210: 1058.6068 | I210: =ROUND(H210*G210,2) -> 17.58
B211: dnit | C211: P9853 | D211: SER.AUX | E211: Pré-marcador | F211: hr | G211: =G210*1 -> 0.016603 | H211: 29.6606 | I211: =ROUND(H211*G211,2) -> 0.49
B212: dnit | C212: P9824 | D212: SER.AUX | E212: Servente | F212: hr | G212: =G210*4 -> 0.066412 | H212: 29.7817 | I212: =ROUND(H212*G212,2) -> 1.98
B213: dnit | C213: CustodoFIC: | I213: 0.5
B214: dnit | C214: M2045 | D214: MAT | E214: Microesferas refletivas de vidro tipo II-C | F214: kg | G214: 0.35 | H214: 11.3657 | I214: =ROUND(G214*H214,2) -> 3.98
B215: dnit | C215: M2044 | D215: MAT | E215: Tinta à base de resina acrílica emulsionada em água para pré-marcação viária | F215: l | G215: 0.00097 | H215: 20.0427 | I215: =ROUND(G215*H215,2) -> 0.02
B216: dnit | C216: M1577 | D216: MAT | E216: Tinta plástica à base de resina metacrílica aplicada a frio por dispersão ou extrusão | F216: kg | G216: 3 | H216: 33.7294 | I216: =ROUND(G216*H216,2) -> 101.19
B217: dnit | C217: M2045 | D217: MAT | E217: Microesferas refletivas de vidro tipo II-C- Caminhão carroceria 15t | F217: t | G217: 0.00035 | H217: 39.35 | I217: =ROUND(G217*H217,2) -> 0.01
... 40 more rows

Sheet RESUMO
M4: EDITAR APENAS OS ITENS EM VERMELHO
B6: PLANILHA RESUMO DE SERVIÇOS
C7: DEPARTAMENTO ESTADUAL DE TRÂNSITO - DETRAN PR
C8: COORDENADORIA DE ENGENHARIA E ARQUITETURA - DIVISÃO DE SINALIZAÇÃO
C9: PROJETO DE SINALIZAÇÃO VIÁRIA URBANA | F9: ='FOLHA FECHAMENTO'!D12 -> lote 02 | I9: ART/RRT Nº: | J9: ='FOLHA FECHAMENTO'!M18 -> 16594464
C10: RESPONSÁVEL TÉCNICO: | E10: ='FOLHA FECHAMENTO'!H17 -> Amanda Patricia de Oliveira Henning | H10: REG. CREA/CAU: | I10: ='FOLHA FECHAMENTO'!M17 -> A284127-4
C11: TABELAS DE REFERÊNCIA: SICRO (OUT/2025), DER (AGO/2025) e SCO-RIO (DEZ/2025), SIURB (OUT/2025) S. DESONERAÇÃO | H11: BDI | I11: ='POR LOTE'!H3 -> 0.2092456286
B14: ITEM | C14: DESCRIÇÃO | F14: SEM BDI | I14: TOTAL COM BDI | J14: %
F15: MATERIAL | G15: MÃO DE OBRA | H15: TOTAL
B16: 1 | C16: SINALIZAÇÃO VERTICAL | F16: =PLANILHA_SINTÉTICA!M14 -> 1631246.99 | G16: =PLANILHA_SINTÉTICA!L14 -> 326536.46 | H16: =F16+G16 -> 1957783.45 | I16: =ROUND(H16*(1+I11),2) -> 2367441.08 | J16: =F20 -> 0.8361293881
B17: 2 | C17: SINALIZAÇÃO HORIZONTAL | F17: =PLANILHA_SINTÉTICA!M39 -> 1155975.76 | G17: =PLANILHA_SINTÉTICA!L39 -> 219723.37 | H17: =F17+G17 -> 1375699.13 | I17: =ROUND(H17*(1+I11),2) -> 1663558.16 | J17: =G20 -> 0.1638706119
B19: TOTAL (R$) GERAL DA OBRA | F19: =F16+F17 -> 2787222.75 | G19: =G16+G17 -> 546259.83 | H19: =SUM(H16:H17) -> 3333482.58 | I19: =PLANILHA_SINTÉTICA!N54 -> 4030999.25 | J19: =SUM(J16:J17) -> 1
B20: PERCENTAGEM (%) | F20: =F19/H19 -> 0.8361293881 | G20: =G19/H19 -> 0.1638706119 | H20: 1 | I20: - | J20: -
B22: PRAZO DE EXECUÇÃO (DIAS CORRIDOS): | E22: ='FOLHA FECHAMENTO'!G32 -> 270

Sheet FOLHA FECHAMENTO
P4: EDITAR APENAS OS ITENS EM AMARELO
B10: FOLHA RESUMO PARA FECHAMENTO DE ORÇAMENTO | L10: DATA: | M10: =TODAY() -> 2026-08-05
B11: PRÓPRIO: | D11: EXECUÇÃO DE SERVIÇOS DE SINALIZAÇÃO VIÁRIA
B12: MUNICÍPIO: | D12: =PLANILHA_SINTÉTICA!C11 -> lote 02
B13: ORGÃO: | D13: DETRAN PR
G17: RESPONSÁVEL TÉCNICO: | H17: Amanda Patricia de Oliveira Henning | L17: CREA / CAU: | M17: A284127-4
L18: ART / RRT N°: | M18: 16594464
B19: OBSERVAÇÃO:
F24: Custo total dos serviços: | G24: R$ | H24: =PLANILHA_SINTÉTICA!N52 -> 3333482.59
D26: BDI (%)= | E26: ='POR LOTE'!H3 -> 0.2092456286 | G26: R$ | H26: =PLANILHA_SINTÉTICA!N53 -> 697516.66
F28: Valor total dos serviços com BDI : | G28: R$ | H28: =PLANILHA_SINTÉTICA!N54 -> 4030999.25
F32: Prazo de execução : | G32: =IF(RESUMO!I17<5000,30,IF(RESUMO!I17<4000,60,IF(RESUMO!I17<70000,90,IF(RESUMO!I17<20000000,270)))) -> 270 | H32: DIAS CORRIDOS
F35: Relatório MAT+MO : | G35: MATERIAL = | I35: =RESUMO!F20 -> 0.8361293881
G37: MÃO-DE-OBRA = | I37: =IF(I35=0,"",1-I35) -> 0.1638706119
B41: Referencial utilizado: | F41: SICRO (OUT/2025), DER (AGO/2025) e SCO-RIO (DEZ/2025), SIURB (OUT/2025) S. DESONERAÇÃO
B43: Data-base: | H43: =M10 -> 2026-08-05
C55: _________________________ | H55: _______________________
C56: =H17 -> Amanda Patricia de Oliveira Henning | H56: Salles Barbosa Perreira
C57: Responsável Técnico | H57: Chefe da Divisão
C58: Carimbo e Assinatura | H58: Carimbo e Assinatura

Sheet BDI
B3: DEPARTAMENTO ESTADUAL DE TRÂNSITO COORDENADORIA DE ENGENHARIA E ARQUITETURA DIVISÃO DE SINALIZAÇÃO
B4: COORDENADORIA DE ENGENHARIA E ARQUITETURA
B5: DIVISÃO DE SINALIZAÇÃO
C8: EXECUÇÃO DE SERVIÇOS DE SINALIZAÇÃO VIÁRIA: | D8: lote 02
C9: PRAZO DE OBRA: | D9: ='[2]FOLHA FECHAMENTO'!G32 -> 270 | E9: DIAS CORRIDOS
C10: COMPOSIÇÃO DE BDI PARA SERVIÇOS DE SINALIZAÇÃO VIÁRIA DO LOTE
B12: CUSTO TOTAL DO SERVIÇO SEM BDI DO LOTE (R$): | I12: =PLANILHA_SINTÉTICA!N52 -> 3333482.59
C14: MÉDIA PONDERADA FINANCEIRA (BDI´s) DO LOTE
F39: ='[2]FOLHA FECHAMENTO'!H17 -> Amanda Patricia de Oliveira Henning
F40: Responsável Técnico
F41: Carimbo e Assinatura

Sheet QUANTITATIVO (hidden)
B2: PLACAS
C3: 1 | D3: 2 | E3: 3 | F3: 4 | G3: 5 | H3: TOTAL
B4: R-1
B5: R-2
B6: R-3
B7: R-4a
B8: R-4b
B9: R-6a
B10: R-6b TÁXI INICIO
B11: R-6b TÁXI FIM
B12: R-6b TÁXI 01
B13: R-6b 45°
B14: R-6b EXCETO CAMINHÕES
B15: R-19/20
B16: R-19/30
B17: R-19/40
B18: R-20
B19: R-24a
B20: R-28
B21: R-33
B22: R-35a
B23: R-35b
B24: A-18-SETA-G
B25: A-18-50M-G
B26: A-32b
B27: A-32b-TE
B28: A-33a
B29: A-33b-TE
B30: A-45
B31: SUPORTES | H31: TOTAL
B32: Suporte 3m
B33: Suporte 3,5m
B34: Remoção Placa
B35: Remoção Suporte
B36: Assentamento Suporte
B37: TINTAS | H37: TOTAL
B38: Acrílica Branca
B39: Acrílica Amarela
B40: Acrílica Azul
B41: DISPOSITIVOS | H41: TOTAL
B42: Tachão refletivo monodirecional Branco
B43: Tachão refletivo bidirecional Amarelo

Sheet CURVA ABC
E4: ANEXO X - LOTE 2 | O4: CLIQUE EM "% DO ITEM" E ORGANIZE DO MAIOR PARA O MENOR
B6: CURVA ABC DE SERVIÇOS
B7: DEPARTAMENTO ESTADUAL DE TRÂNSITO - DETRAN PR
B8: COORDENADORIA DE ENGENHARIA E ARQUITETURA - DIVISÃO DE SINALIZAÇÃO
B9: PROJETO DE SINALIZAÇÃO VIÁRIA URBANA | E9: ='FOLHA FECHAMENTO'!D12 -> lote 02 | J9: ART/RRT Nº: | K9: ='FOLHA FECHAMENTO'!M18 -> 16594464
B10: TABELAS DE REFERÊNCIA: SICRO (OUT/2025), DER (AGO/2025) e SCO-RIO (DEZ/2025), SIURB (OUT/2025) S. DESONERAÇÃO | E10: RESPONSÁVEL TÉCNICO: | G10: ='FOLHA FECHAMENTO'!H17 -> Amanda Patricia de Oliveira Henning | J10: REG. CREA/CAU: | K10: ='FOLHA FECHAMENTO'!M17 -> A284127-4
B12: ITEM | C12: CÓDIGO DO SERVIÇO | D12: DESCRIÇÃO DO SERVIÇO | E12: UNIDADE DE MEDIDA | F12: QUANTIDADE TOTAL | G12: CUSTO UNITÁRIO | H12: CUSTO TOTAL | I12: CUSTO TOTAL ACUMULADO | J12: % DO ITEM | K12: % ACUMULADO | L12: FAIXA
B13: 1.9 | C13: =VLOOKUP(Tabela1[[#This Row],[ITEM]],'PLANILHA REFERENCIA DETRAN PR'!$A$6:$I$43,4,FALSE) -> 821300 | D13: =VLOOKUP(Tabela1[[#This Row],[ITEM]],'PLANILHA REFERENCIA DETRAN PR'!$A$6:$I$43,2,FALSE) -> Suporte metál.galv.fogo d=2,5" c/tampa e aletas antigiro h=3,00m | E13: =VLOOKUP(B13,'PLANILHA REFERENCIA DETRAN PR'!$A$6:$I$43,6,FALSE) -> ud | F13: =VLOOKUP(B13,PLANILHA_SINTÉTICA!$B$14:$N$52,7,FALSE) -> 1184 | G13: =VLOOKUP(B13,'PLANILHA REFERENCIA DETRAN PR'!$A$6:$I$43,9,FALSE) -> 409.61 | H13: =VLOOKUP(B13,PLANILHA_SINTÉTICA!$B$14:$N$52,13,FALSE) -> 484978.24 | I13: =IFERROR(IF((ISTEXT(I12))=TRUE,H13,H13+I12),"") -> 484978.24 | J13: =IF(Tabela1[[#This Row],[CUSTO TOTAL ACUMULADO ]]=Tabela1[[#Headers],[CUSTO TOTAL ACUMULADO ]],"",H13/SUM($H$13:$H$47)) -> 0.145486958 | K13: =IFERROR(IF((ISTEXT(K12))=TRUE,J13,K12+J13),"") -> 0.145486958 | L13: =IFERROR(IF(Tabela1[[#This Row],[% DO ITEM]]=0,"",IF((K13-J13)>0.8,"C",IF((K13-J13)<0.5,"A","B"))),"") -> A
B14: 2.2 | C14: =VLOOKUP(Tabela1[[#This Row],[ITEM]],'PLANILHA REFERENCIA DETRAN PR'!$A$6:$I$43,4,FALSE) -> COMP.11 | D14: =VLOOKUP(Tabela1[[#This Row],[ITEM]],'PLANILHA REFERENCIA DETRAN PR'!$A$6:$I$43,2,FALSE) -> Faixa de sinalização horizontal c/tinta resina acrílica base solvente | E14: =VLOOKUP(B14,'PLANILHA REFERENCIA DETRAN PR'!$A$6:$I$43,6,FALSE) -> m² | F14: =VLOOKUP(B14,PLANILHA_SINTÉTICA!$B$14:$N$52,7,FALSE) -> 13274.2 | G14: =VLOOKUP(B14,'PLANILHA REFERENCIA DETRAN PR'!$A$6:$I$43,9,FALSE) -> 30.41 | H14: =VLOOKUP(B14,PLANILHA_SINTÉTICA!$B$14:$N$52,13,FALSE) -> 403668.42 | I14: 888646.66 | J14: =IF(Tabela1[[#This Row],[CUSTO TOTAL ACUMULADO ]]=Tabela1[[#Headers],[CUSTO TOTAL ACUMULADO ]],"",H14/SUM($H$13:$H$47)) -> 0.1210951041 | K14: 0.2665820621 | L14: =IFERROR(IF(Tabela1[[#This Row],[% DO ITEM]]=0,"",IF((K14-J14)>0.8,"C",IF((K14-J14)<0.5,"A","B"))),"") -> A
B15: 1.21 | C15: =VLOOKUP(Tabela1[[#This Row],[ITEM]],'PLANILHA REFERENCIA DETRAN PR'!$A$6:$I$43,4,FALSE) -> COMP.17 | D15: =VLOOKUP(Tabela1[[#This Row],[ITEM]],'PLANILHA REFERENCIA DETRAN PR'!$A$6:$I$43,2,FALSE) -> Placa sinalização ativa inteligente com iluminação interna, duplo módulo de iluminação de faixa, detecção automática de pedestres e alimentação híbrida (fotovoltaica e rede elétrica - A = 0,84m² | E15: =VLOOKUP(B15,'PLANILHA REFERENCIA DETRAN PR'!$A$6:$I$43,6,FALSE) -> Unid. | F15: =VLOOKUP(B15,PLANILHA_SINTÉTICA!$B$14:$N$52,7,FALSE) -> 17 | G15: =VLOOKUP(B15,'PLANILHA REFERENCIA DETRAN PR'!$A$6:$I$43,9,FALSE) -> 23343.1 | H15: =VLOOKUP(B15,PLANILHA_SINTÉTICA!$B$14:$N$52,13,FALSE) -> 396832.7 | I15: 1285479.36 | J15: =IF(Tabela1[[#This Row],[CUSTO TOTAL ACUMULADO ]]=Tabela1[[#Headers],[CUSTO TOTAL ACUMULADO ]],"",H15/SUM($H$13:$H$47)) -> 0.1190444799 | K15: 0.385626542 | L15: =IFERROR(IF(Tabela1[[#This Row],[% DO ITEM]]=0,"",IF((K15-J15)>0.8,"C",IF((K15-J15)<0.5,"A","B"))),"") -> A
B16: 2.4 | C16: =VLOOKUP(Tabela1[[#This Row],[ITEM]],'PLANILHA REFERENCIA DETRAN PR'!$A$6:$I$43,4,FALSE) -> COMP.13 | D16: =VLOOKUP(Tabela1[[#This Row],[ITEM]],'PLANILHA REFERENCIA DETRAN PR'!$A$6:$I$43,2,FALSE) -> Pintura de setas e zebrados - termoplástico por extrusão - e=3mm | E16: =VLOOKUP(B16,'PLANILHA REFERENCIA DETRAN PR'!$A$6:$I$43,6,FALSE) -> m² | F16: =VLOOKUP(B16,PLANILHA_SINTÉTICA!$B$14:$N$52,7,FALSE) -> 6530.96 | G16: =VLOOKUP(B16,'PLANILHA REFERENCIA DETRAN PR'!$A$6:$I$43,9,FALSE) -> 56.89 | H16: =VLOOKUP(B16,PLANILHA_SINTÉTICA!$B$14:$N$52,13,FALSE) -> 371546.31 | I16: 1657025.67 | J16: =IF(Tabela1[[#This Row],[CUSTO TOTAL ACUMULADO ]]=Tabela1[[#Headers],[CUSTO TOTAL ACUMULADO ]],"",H16/SUM($H$13:$H$47)) -> 0.1114589025 | K16: 0.4970854445 | L16: =IFERROR(IF(Tabela1[[#This Row],[% DO ITEM]]=0,"",IF((K16-J16)>0.8,"C",IF((K16-J16)<0.5,"A","B"))),"") -> A
B17: 1.14 | C17: =VLOOKUP(Tabela1[[#This Row],[ITEM]],'PLANILHA REFERENCIA DETRAN PR'!$A$6:$I$43,4,FALSE) -> COMP.04 | D17: =VLOOKUP(Tabela1[[#This Row],[ITEM]],'PLANILHA REFERENCIA DETRAN PR'!$A$6:$I$43,2,FALSE) -> Conjunto para placa indicativa (Coluna, Braço, Montagem, Fundação) para placas até 4,50m² - Coluna Tipo II com projeção de 6,00m | E17: =VLOOKUP(B17,'PLANILHA REFERENCIA DETRAN PR'!$A$6:$I$43,6,FALSE) -> unid | F17: =VLOOKUP(B17,PLANILHA_SINTÉTICA!$B$14:$N$52,7,FALSE) -> 12 | G17: =VLOOKUP(B17,'PLANILHA REFERENCIA DETRAN PR'!$A$6:$I$43,9,FALSE) -> 18439.76 | H17: =VLOOKUP(B17,PLANILHA_SINTÉTICA!$B$14:$N$52,13,FALSE) -> 221277.12 | I17: 1878302.79 | J17: =IF(Tabela1[[#This Row],[CUSTO TOTAL ACUMULADO ]]=Tabela1[[#Headers],[CUSTO TOTAL ACUMULADO ]],"",H17/SUM($H$13:$H$47)) -> 0.06638016389 | K17: 0.5634656084 | L17: =IFERROR(IF(Tabela1[[#This Row],[% DO ITEM]]=0,"",IF((K17-J17)>0.8,"C",IF((K17-J17)<0.5,"A","B"))),"") -> A
B18: 2.1 | C18: =VLOOKUP(Tabela1[[#This Row],[ITEM]],'PLANILHA REFERENCIA DETRAN PR'!$A$6:$I$43,4,FALSE) -> COMP.10 | D18: =VLOOKUP(Tabela1[[#This Row],[ITEM]],'PLANILHA REFERENCIA DETRAN PR'!$A$6:$I$43,2,FALSE) -> Faixa de sinalização horizontal c/tinta resina acrílica base água com limpeza do pavimento com jato d'água | E18: =VLOOKUP(B18,'PLANILHA REFERENCIA DETRAN PR'!$A$6:$I$43,6,FALSE) -> m² | F18: =VLOOKUP(B18,PLANILHA_SINTÉTICA!$B$14:$N$52,7,FALSE) -> 8480.81 | G18: =VLOOKUP(B18,'PLANILHA REFERENCIA DETRAN PR'!$A$6:$I$43,9,FALSE) -> 24.73 | H18: =VLOOKUP(B18,PLANILHA_SINTÉTICA!$B$14:$N$52,13,FALSE) -> 209730.43 | I18: 2088033.22 | J18: =IF(Tabela1[[#This Row],[CUSTO TOTAL ACUMULADO ]]=Tabela1[[#Headers],[CUSTO TOTAL ACUMULADO ]],"",H18/SUM($H$13:$H$47)) -> 0.06291631199 | K18: 0.6263819204 | L18: =IFERROR(IF(Tabela1[[#This Row],[% DO ITEM]]=0,"",IF((K18-J18)>0.8,"C",IF((K18-J18)<0.5,"A","B"))),"") -> B
B19: 2.6 | C19: =VLOOKUP(Tabela1[[#This Row],[ITEM]],'PLANILHA REFERENCIA DETRAN PR'!$A$6:$I$43,4,FALSE) -> COMP.16 | D19: =VLOOKUP(Tabela1[[#This Row],[ITEM]],'PLANILHA REFERENCIA DETRAN PR'!$A$6:$I$43,2,FALSE) -> Pintura de faixa - plástico a frio tricomponente à base de resinas metacrílicas - espessura de 0,6 mm - aspersão | E19: =VLOOKUP(B19,'PLANILHA REFERENCIA DETRAN PR'!$A$6:$I$43,6,FALSE) -> m² | F19: =VLOOKUP(B19,PLANILHA_SINTÉTICA!$B$14:$N$52,7,FALSE) -> 2699.56 | G19: =VLOOKUP(B19,'PLANILHA REFERENCIA DETRAN PR'!$A$6:$I$43,9,FALSE) -> 71.45 | H19: =VLOOKUP(B19,PLANILHA_SINTÉTICA!$B$14:$N$52,13,FALSE) -> 192883.56 | I19: 2280916.78 | J19: =IF(Tabela1[[#This Row],[CUSTO TOTAL ACUMULADO ]]=Tabela1[[#Headers],[CUSTO TOTAL ACUMULADO ]],"",H19/SUM($H$13:$H$47)) -> 0.05786247727 | K19: 0.6842443976 | L19: =IFERROR(IF(Tabela1[[#This Row],[% DO ITEM]]=0,"",IF((K19-J19)>0.8,"C",IF((K19-J19)<0.5,"A","B"))),"") -> B
B20: 2.3 | C20: =VLOOKUP(Tabela1[[#This Row],[ITEM]],'PLANILHA REFERENCIA DETRAN PR'!$A$6:$I$43,4,FALSE) -> COMP.12 | D20: =VLOOKUP(Tabela1[[#This Row],[ITEM]],'PLANILHA REFERENCIA DETRAN PR'!$A$6:$I$43,2,FALSE) -> Faixa de sinalização horizontal - termoplástico por aspersão - e=1,5mm | E20: =VLOOKUP(B20,'PLANILHA REFERENCIA DETRAN PR'!$A$6:$I$43,6,FALSE) -> m² | F20: =VLOOKUP(B20,PLANILHA_SINTÉTICA!$B$14:$N$52,7,FALSE) -> 3705.57 | G20: =VLOOKUP(B20,'PLANILHA REFERENCIA DETRAN PR'!$A$6:$I$43,9,FALSE) -> 42.58 | H20: =VLOOKUP(B20,PLANILHA_SINTÉTICA!$B$14:$N$52,13,FALSE) -> 157783.17 | I20: 2438699.95 | J20: =IF(Tabela1[[#This Row],[CUSTO TOTAL ACUMULADO ]]=Tabela1[[#Headers],[CUSTO TOTAL ACUMULADO ]],"",H20/SUM($H$13:$H$47)) -> 0.04733283172 | K20: 0.7315772294 | L20: =IFERROR(IF(Tabela1[[#This Row],[% DO ITEM]]=0,"",IF((K20-J20)>0.8,"C",IF((K20-J20)<0.5,"A","B"))),"") -> B
B21: 1.10 | C21: =VLOOKUP(Tabela1[[#This Row],[ITEM]],'PLANILHA REFERENCIA DETRAN PR'!$A$6:$I$43,4,FALSE) -> 821350 | D21: =VLOOKUP(Tabela1[[#This Row],[ITEM]],'PLANILHA REFERENCIA DETRAN PR'!$A$6:$I$43,2,FALSE) -> Suporte metál.galv.fogo d=2,5" c/tampa e aletas antigiro h=3,50m | E21: =VLOOKUP(B21,'PLANILHA REFERENCIA DETRAN PR'!$A$6:$I$43,6,FALSE) -> ud | F21: =VLOOKUP(B21,PLANILHA_SINTÉTICA!$B$14:$N$52,7,FALSE) -> 298 | G21: =VLOOKUP(B21,'PLANILHA REFERENCIA DETRAN PR'!$A$6:$I$43,9,FALSE) -> 465.61 | H21: =VLOOKUP(B21,PLANILHA_SINTÉTICA!$B$14:$N$52,13,FALSE) -> 138751.78 | I21: 2577451.73 | J21: =IF(Tabela1[[#This Row],[CUSTO TOTAL ACUMULADO ]]=Tabela1[[#Headers],[CUSTO TOTAL ACUMULADO ]],"",H21/SUM($H$13:$H$47)) -> 0.04162367034 | K21: 0.7732008997 | L21: =IFERROR(IF(Tabela1[[#This Row],[% DO ITEM]]=0,"",IF((K21-J21)>0.8,"C",IF((K21-J21)<0.5,"A","B"))),"") -> B
B22: 1.13 | C22: =VLOOKUP(Tabela1[[#This Row],[ITEM]],'PLANILHA REFERENCIA DETRAN PR'!$A$6:$I$43,4,FALSE) -> COMP.03 | D22: =VLOOKUP(Tabela1[[#This Row],[ITEM]],'PLANILHA REFERENCIA DETRAN PR'!$A$6:$I$43,2,FALSE) -> Conjunto para placa indicativa (Coluna, Braço, Montagem, Fundação) para placas até 3,00m² - Coluna Tipo I com projeção de 3,70m | E22: =VLOOKUP(B22,'PLANILHA REFERENCIA DETRAN PR'!$A$6:$I$43,6,FALSE) -> unid | F22: =VLOOKUP(B22,PLANILHA_SINTÉTICA!$B$14:$N$52,7,FALSE) -> 9 | G22: =VLOOKUP(B22,'PLANILHA REFERENCIA DETRAN PR'!$A$6:$I$43,9,FALSE) -> 12814.63 | H22: =VLOOKUP(B22,PLANILHA_SINTÉTICA!$B$14:$N$52,13,FALSE) -> 115331.67 | I22: 2692783.4 | J22: =IF(Tabela1[[#This Row],[CUSTO TOTAL ACUMULADO ]]=Tabela1[[#Headers],[CUSTO TOTAL ACUMULADO ]],"",H22/SUM($H$13:$H$47)) -> 0.03459795191 | K22: 0.8077988516 | L22: =IFERROR(IF(Tabela1[[#This Row],[% DO ITEM]]=0,"",IF((K22-J22)>0.8,"C",IF((K22-J22)<0.5,"A","B"))),"") -> B
B23: 1.6 | C23: =VLOOKUP(Tabela1[[#This Row],[ITEM]],'PLANILHA REFERENCIA DETRAN PR'!$A$6:$I$43,4,FALSE) -> 820000 | D23: =VLOOKUP(Tabela1[[#This Row],[ITEM]],'PLANILHA REFERENCIA DETRAN PR'!$A$6:$I$43,2,FALSE) -> Placa sinalização em chapa de aço nº18 galvanizada c/ película refletiva Tipo I A (prismática) - Utilizar apenas para placas não listadas no orçamento | E23: =VLOOKUP(B23,'PLANILHA REFERENCIA DETRAN PR'!$A$6:$I$43,6,FALSE) -> m2 | F23: =VLOOKUP(B23,PLANILHA_SINTÉTICA!$B$14:$N$52,7,FALSE) -> 173.47 | G23: =VLOOKUP(B23,'PLANILHA REFERENCIA DETRAN PR'!$A$6:$I$43,9,FALSE) -> 537.82 | H23: =VLOOKUP(B23,PLANILHA_SINTÉTICA!$B$14:$N$52,13,FALSE) -> 93295.64 | I23: 2786079.04 | J23: =IF(Tabela1[[#This Row],[CUSTO TOTAL ACUMULADO ]]=Tabela1[[#Headers],[CUSTO TOTAL ACUMULADO ]],"",H23/SUM($H$13:$H$47)) -> 0.02798743889 | K23: 0.8357862905 | L23: =IFERROR(IF(Tabela1[[#This Row],[% DO ITEM]]=0,"",IF((K23-J23)>0.8,"C",IF((K23-J23)<0.5,"A","B"))),"") -> C
B24: 1.5 | C24: =VLOOKUP(Tabela1[[#This Row],[ITEM]],'PLANILHA REFERENCIA DETRAN PR'!$A$6:$I$43,4,FALSE) -> COMP.09 | D24: =VLOOKUP(Tabela1[[#This Row],[ITEM]],'PLANILHA REFERENCIA DETRAN PR'!$A$6:$I$43,2,FALSE) -> Placa tipo retangular - L = 0,50m x h= 1,00 m. Com película refletiva tipo I A (prismática) | E24: =VLOOKUP(B24,'PLANILHA REFERENCIA DETRAN PR'!$A$6:$I$43,6,FALSE) -> m² | F24: =VLOOKUP(B24,PLANILHA_SINTÉTICA!$B$14:$N$52,7,FALSE) -> 318 | G24: =VLOOKUP(B24,'PLANILHA REFERENCIA DETRAN PR'!$A$6:$I$43,9,FALSE) -> 268.91 | H24: =VLOOKUP(B24,PLANILHA_SINTÉTICA!$B$14:$N$52,13,FALSE) -> 85516.56 | I24: 2871595.6 | J24: =IF(Tabela1[[#This Row],[CUSTO TOTAL ACUMULADO ]]=Tabela1[[#Headers],[CUSTO TOTAL ACUMULADO ]],"",H24/SUM($H$13:$H$47)) -> 0.02565381938 | K24: 0.8614401099 | L24: =IFERROR(IF(Tabela1[[#This Row],[% DO ITEM]]=0,"",IF((K24-J24)>0.8,"C",IF((K24-J24)<0.5,"A","B"))),"") -> C
B25: 1.12 | C25: =VLOOKUP(Tabela1[[#This Row],[ITEM]],'PLANILHA REFERENCIA DETRAN PR'!$A$6:$I$43,4,FALSE) -> COMP.02 | D25: =VLOOKUP(Tabela1[[#This Row],[ITEM]],'PLANILHA REFERENCIA DETRAN PR'!$A$6:$I$43,2,FALSE) -> Conjunto para placa indicativa (Coluna, Braço, Montagem, Fundação) para placas até 3,00m² - Coluna Tipo I com projeção de 2,80m | E25: =VLOOKUP(B25,'PLANILHA REFERENCIA DETRAN PR'!$A$6:$I$43,6,FALSE) -> unid | F25: =VLOOKUP(B25,PLANILHA_SINTÉTICA!$B$14:$N$52,7,FALSE) -> 6 | G25: =VLOOKUP(B25,'PLANILHA REFERENCIA DETRAN PR'!$A$6:$I$43,9,FALSE) -> 12422.95 | H25: =VLOOKUP(B25,PLANILHA_SINTÉTICA!$B$14:$N$52,13,FALSE) -> 74537.7 | I25: 2946133.3 | J25: =IF(Tabela1[[#This Row],[CUSTO TOTAL ACUMULADO ]]=Tabela1[[#Headers],[CUSTO TOTAL ACUMULADO ]],"",H25/SUM($H$13:$H$47)) -> 0.02236030884 | K25: 0.8838004187 | L25: =IFERROR(IF(Tabela1[[#This Row],[% DO ITEM]]=0,"",IF((K25-J25)>0.8,"C",IF((K25-J25)<0.5,"A","B"))),"") -> C
B26: 1.3 | C26: =VLOOKUP(Tabela1[[#This Row],[ITEM]],'PLANILHA REFERENCIA DETRAN PR'!$A$6:$I$43,4,FALSE) -> COMP.07 | D26: =VLOOKUP(Tabela1[[#This Row],[ITEM]],'PLANILHA REFERENCIA DETRAN PR'!$A$6:$I$43,2,FALSE) -> Placa tipo circular - D = 0,50m. Com película refletiva tipo I A (prismática) - Área: 0,21m² | E26: =VLOOKUP(B26,'PLANILHA REFERENCIA DETRAN PR'!$A$6:$I$43,6,FALSE) -> m² | F26: =VLOOKUP(B26,PLANILHA_SINTÉTICA!$B$14:$N$52,7,FALSE) -> 497 | G26: =VLOOKUP(B26,'PLANILHA REFERENCIA DETRAN PR'!$A$6:$I$43,9,FALSE) -> 112.94 | H26: =VLOOKUP(B26,PLANILHA_SINTÉTICA!$B$14:$N$52,13,FALSE) -> 56131.18 | I26: 3002264.48 | J26: =IF(Tabela1[[#This Row],[CUSTO TOTAL ACUMULADO ]]=Tabela1[[#Headers],[CUSTO TOTAL ACUMULADO ]],"",H26/SUM($H$13:$H$47)) -> 0.01683860007 | K26: 0.9006390188 | L26: =IFERROR(IF(Tabela1[[#This Row],[% DO ITEM]]=0,"",IF((K26-J26)>0.8,"C",IF((K26-J26)<0.5,"A","B"))),"") -> C
B27: 1.1 | C27: =VLOOKUP(Tabela1[[#This Row],[ITEM]],'PLANILHA REFERENCIA DETRAN PR'!$A$6:$I$43,4,FALSE) -> COMP.05 | D27: =VLOOKUP(Tabela1[[#This Row],[ITEM]],'PLANILHA REFERENCIA DETRAN PR'!$A$6:$I$43,2,FALSE) -> Placa tipo R-1 - L = 0,25m. Com película refletiva tipo I A (prismática) - Área: 0,32 m² | E27: =VLOOKUP(B27,'PLANILHA REFERENCIA DETRAN PR'!$A$6:$I$43,6,FALSE) -> m² | F27: =VLOOKUP(B27,PLANILHA_SINTÉTICA!$B$14:$N$52,7,FALSE) -> 316 | G27: =VLOOKUP(B27,'PLANILHA REFERENCIA DETRAN PR'!$A$6:$I$43,9,FALSE) -> 172.1 | H27: =VLOOKUP(B27,PLANILHA_SINTÉTICA!$B$14:$N$52,13,FALSE) -> 54383.6 | I27: 3056648.08 | J27: =IF(Tabela1[[#This Row],[CUSTO TOTAL ACUMULADO ]]=Tabela1[[#Headers],[CUSTO TOTAL ACUMULADO ]],"",H27/SUM($H$13:$H$47)) -> 0.01631434954 | K27: 0.9169533683 | L27: =IFERROR(IF(Tabela1[[#This Row],[% DO ITEM]]=0,"",IF((K27-J27)>0.8,"C",IF((K27-J27)<0.5,"A","B"))),"") -> C
B28: 1.24 | C28: =VLOOKUP(Tabela1[[#This Row],[ITEM]],'PLANILHA REFERENCIA DETRAN PR'!$A$6:$I$43,4,FALSE) -> COMP.20 | D28: =VLOOKUP(Tabela1[[#This Row],[ITEM]],'PLANILHA REFERENCIA DETRAN PR'!$A$6:$I$43,2,FALSE) -> Placa sinalização piscante mono ativa, em chapa de aço nº 18 galvanizada c/ película refletiva Tipo A (prismática) - A = 0,84m² | E28: =VLOOKUP(B28,'PLANILHA REFERENCIA DETRAN PR'!$A$6:$I$43,6,FALSE) -> Unid. | F28: =VLOOKUP(B28,PLANILHA_SINTÉTICA!$B$14:$N$52,7,FALSE) -> 17 | G28: =VLOOKUP(B28,'PLANILHA REFERENCIA DETRAN PR'!$A$6:$I$43,9,FALSE) -> 3134.76 | H28: =VLOOKUP(B28,PLANILHA_SINTÉTICA!$B$14:$N$52,13,FALSE) -> 53290.92 | I28: 3109939 | J28: =IF(Tabela1[[#This Row],[CUSTO TOTAL ACUMULADO ]]=Tabela1[[#Headers],[CUSTO TOTAL ACUMULADO ]],"",H28/SUM($H$13:$H$47)) -> 0.01598656022 | K28: 0.9329399285 | L28: =IFERROR(IF(Tabela1[[#This Row],[% DO ITEM]]=0,"",IF((K28-J28)>0.8,"C",IF((K28-J28)<0.5,"A","B"))),"") -> C
B29: 1.4 | C29: =VLOOKUP(Tabela1[[#This Row],[ITEM]],'PLANILHA REFERENCIA DETRAN PR'!$A$6:$I$43,4,FALSE) -> COMP.08 | D29: =VLOOKUP(Tabela1[[#This Row],[ITEM]],'PLANILHA REFERENCIA DETRAN PR'!$A$6:$I$43,2,FALSE) -> Placa tipo de advertência - L = 0,50m. Com película refletiva tipo I A (prismática) - Área: 0,27 m² | E29: =VLOOKUP(B29,'PLANILHA REFERENCIA DETRAN PR'!$A$6:$I$43,6,FALSE) -> m² | F29: =VLOOKUP(B29,PLANILHA_SINTÉTICA!$B$14:$N$52,7,FALSE) -> 210 | G29: =VLOOKUP(B29,'PLANILHA REFERENCIA DETRAN PR'!$A$6:$I$43,9,FALSE) -> 145.21 | H29: =VLOOKUP(B29,PLANILHA_SINTÉTICA!$B$14:$N$52,13,FALSE) -> 30494.1 | I29: 3140433.1 | J29: =IF(Tabela1[[#This Row],[CUSTO TOTAL ACUMULADO ]]=Tabela1[[#Headers],[CUSTO TOTAL ACUMULADO ]],"",H29/SUM($H$13:$H$47)) -> 0.009147820415 | K29: 0.942087749 | L29: =IFERROR(IF(Tabela1[[#This Row],[% DO ITEM]]=0,"",IF((K29-J29)>0.8,"C",IF((K29-J29)<0.5,"A","B"))),"") -> C
B30: 2.9 | C30: =VLOOKUP(Tabela1[[#This Row],[ITEM]],'PLANILHA REFERENCIA DETRAN PR'!$A$6:$I$43,4,FALSE) -> 872000 | D30: =VLOOKUP(Tabela1[[#This Row],[ITEM]],'PLANILHA REFERENCIA DETRAN PR'!$A$6:$I$43,2,FALSE) -> Tachão refletivo monodirecional | E30: =VLOOKUP(B30,'PLANILHA REFERENCIA DETRAN PR'!$A$6:$I$43,6,FALSE) -> ud | F30: =VLOOKUP(B30,PLANILHA_SINTÉTICA!$B$14:$N$52,7,FALSE) -> 712 | G30: =VLOOKUP(B30,'PLANILHA REFERENCIA DETRAN PR'!$A$6:$I$43,9,FALSE) -> 38.28 | H30: =VLOOKUP(B30,PLANILHA_SINTÉTICA!$B$14:$N$52,13,FALSE) -> 27255.36 | I30: 3167688.46 | J30: =IF(Tabela1[[#This Row],[CUSTO TOTAL ACUMULADO ]]=Tabela1[[#Headers],[CUSTO TOTAL ACUMULADO ]],"",H30/SUM($H$13:$H$47)) -> 0.008176241917 | K30: 0.9502639909 | L30: =IFERROR(IF(Tabela1[[#This Row],[% DO ITEM]]=0,"",IF((K30-J30)>0.8,"C",IF((K30-J30)<0.5,"A","B"))),"") -> C
B31: 1.11 | C31: =VLOOKUP(Tabela1[[#This Row],[ITEM]],'PLANILHA REFERENCIA DETRAN PR'!$A$6:$I$43,4,FALSE) -> 821400 | D31: =VLOOKUP(Tabela1[[#This Row],[ITEM]],'PLANILHA REFERENCIA DETRAN PR'!$A$6:$I$43,2,FALSE) -> Suporte metál.galv.fogo d=2,5" c/tampa e aletas anti-giro h=4,00m | E31: =VLOOKUP(B31,'PLANILHA REFERENCIA DETRAN PR'!$A$6:$I$43,6,FALSE) -> ud | F31: =VLOOKUP(B31,PLANILHA_SINTÉTICA!$B$14:$N$52,7,FALSE) -> 52 | G31: =VLOOKUP(B31,'PLANILHA REFERENCIA DETRAN PR'!$A$6:$I$43,9,FALSE) -> 520.75 | H31: =VLOOKUP(B31,PLANILHA_SINTÉTICA!$B$14:$N$52,13,FALSE) -> 27079 | I31: 3194767.46 | J31: =IF(Tabela1[[#This Row],[CUSTO TOTAL ACUMULADO ]]=Tabela1[[#Headers],[CUSTO TOTAL ACUMULADO ]],"",H31/SUM($H$13:$H$47)) -> 0.008123336286 | K31: 0.9583873272 | L31: =IFERROR(IF(Tabela1[[#This Row],[% DO ITEM]]=0,"",IF((K31-J31)>0.8,"C",IF((K31-J31)<0.5,"A","B"))),"") -> C
B32: 1.22 | C32: =VLOOKUP(Tabela1[[#This Row],[ITEM]],'PLANILHA REFERENCIA DETRAN PR'!$A$6:$I$43,4,FALSE) -> COMP.18 | D32: =VLOOKUP(Tabela1[[#This Row],[ITEM]],'PLANILHA REFERENCIA DETRAN PR'!$A$6:$I$43,2,FALSE) -> Placa sinalização piscante dupla ativa, alimentação fotovoltaica, em chapa de aço nº 18 galvanizada c/ película refletiva Tipo A (prismática) - A = 2m² | E32: =VLOOKUP(B32,'PLANILHA REFERENCIA DETRAN PR'!$A$6:$I$43,6,FALSE) -> Unid. | F32: =VLOOKUP(B32,PLANILHA_SINTÉTICA!$B$14:$N$52,7,FALSE) -> 2 | G32: =VLOOKUP(B32,'PLANILHA REFERENCIA DETRAN PR'!$A$6:$I$43,9,FALSE) -> 13055.81 | H32: =VLOOKUP(B32,PLANILHA_SINTÉTICA!$B$14:$N$52,13,FALSE) -> 26111.62 | I32: 3220879.08 | J32: =IF(Tabela1[[#This Row],[CUSTO TOTAL ACUMULADO ]]=Tabela1[[#Headers],[CUSTO TOTAL ACUMULADO ]],"",H32/SUM($H$13:$H$47)) -> 0.007833135279 | K32: 0.9662204624 | L32: =IFERROR(IF(Tabela1[[#This Row],[% DO ITEM]]=0,"",IF((K32-J32)>0.8,"C",IF((K32-J32)<0.5,"A","B"))),"") -> C
B33: 1.16 | C33: =VLOOKUP(Tabela1[[#This Row],[ITEM]],'PLANILHA REFERENCIA DETRAN PR'!$A$6:$I$43,4,FALSE) -> ST 64.15.0200 (A) | D33: =VLOOKUP(Tabela1[[#This Row],[ITEM]],'PLANILHA REFERENCIA DETRAN PR'!$A$6:$I$43,2,FALSE) -> Retirada de poste simples de aço, diâmetro de 2" (desonerado) | E33: =VLOOKUP(B33,'PLANILHA REFERENCIA DETRAN PR'!$A$6:$I$43,6,FALSE) -> un | F33: =VLOOKUP(B33,PLANILHA_SINTÉTICA!$B$14:$N$52,7,FALSE) -> 457 | G33: =VLOOKUP(B33,'PLANILHA REFERENCIA DETRAN PR'!$A$6:$I$43,9,FALSE) -> 53.26 | H33: =VLOOKUP(B33,PLANILHA_SINTÉTICA!$B$14:$N$52,13,FALSE) -> 24339.82 | I33: 3245218.9 | J33: =IF(Tabela1[[#This Row],[CUSTO TOTAL ACUMULADO ]]=Tabela1[[#Headers],[CUSTO TOTAL ACUMULADO ]],"",H33/SUM($H$13:$H$47)) -> 0.007301619077 | K33: 0.9735220815 | L33: =IFERROR(IF(Tabela1[[#This Row],[% DO ITEM]]=0,"",IF((K33-J33)>0.8,"C",IF((K33-J33)<0.5,"A","B"))),"") -> C
B34: 1.7 | C34: =VLOOKUP(Tabela1[[#This Row],[ITEM]],'PLANILHA REFERENCIA DETRAN PR'!$A$6:$I$43,4,FALSE) -> 5213351-ed | D34: =VLOOKUP(Tabela1[[#This Row],[ITEM]],'PLANILHA REFERENCIA DETRAN PR'!$A$6:$I$43,2,FALSE) -> Suporte polimérico ecológico maciço colapsível D = 6,5 cm para placa de sinalização - fornecimento e implantação - 3,00 m | E34: =VLOOKUP(B34,'PLANILHA REFERENCIA DETRAN PR'!$A$6:$I$43,6,FALSE) -> un | F34: =VLOOKUP(B34,PLANILHA_SINTÉTICA!$B$14:$N$52,7,FALSE) -> 28 | G34: =VLOOKUP(B34,'PLANILHA REFERENCIA DETRAN PR'!$A$6:$I$43,9,FALSE) -> 810.79 | H34: =VLOOKUP(B34,PLANILHA_SINTÉTICA!$B$14:$N$52,13,FALSE) -> 22702.12 | I34: 3267921.02 | J34: =IF(Tabela1[[#This Row],[CUSTO TOTAL ACUMULADO ]]=Tabela1[[#Headers],[CUSTO TOTAL ACUMULADO ]],"",H34/SUM($H$13:$H$47)) -> 0.006810331074 | K34: 0.9803324126 | L34: =IFERROR(IF(Tabela1[[#This Row],[% DO ITEM]]=0,"",IF((K34-J34)>0.8,"C",IF((K34-J34)<0.5,"A","B"))),"") -> C
B35: 1.8 | C35: =VLOOKUP(Tabela1[[#This Row],[ITEM]],'PLANILHA REFERENCIA DETRAN PR'!$A$6:$I$43,4,FALSE) -> 5213351 | D35: =VLOOKUP(Tabela1[[#This Row],[ITEM]],'PLANILHA REFERENCIA DETRAN PR'!$A$6:$I$43,2,FALSE) -> Suporte polimérico ecológico maciço colapsível D = 6,5 cm para placa de sinalização - fornecimento e implantação - 3,60 m | E35: =VLOOKUP(B35,'PLANILHA REFERENCIA DETRAN PR'!$A$6:$I$43,6,FALSE) -> un | F35: =VLOOKUP(B35,PLANILHA_SINTÉTICA!$B$14:$N$52,7,FALSE) -> 28 | G35: =VLOOKUP(B35,'PLANILHA REFERENCIA DETRAN PR'!$A$6:$I$43,9,FALSE) -> 675.66 | H35: =VLOOKUP(B35,PLANILHA_SINTÉTICA!$B$14:$N$52,13,FALSE) -> 18918.48 | I35: 3286839.5 | J35: =IF(Tabela1[[#This Row],[CUSTO TOTAL ACUMULADO ]]=Tabela1[[#Headers],[CUSTO TOTAL ACUMULADO ]],"",H35/SUM($H$13:$H$47)) -> 0.005675289895 | K35: 0.9860077025 | L35: =IFERROR(IF(Tabela1[[#This Row],[% DO ITEM]]=0,"",IF((K35-J35)>0.8,"C",IF((K35-J35)<0.5,"A","B"))),"") -> C
B36: 1.2 | C36: =VLOOKUP(Tabela1[[#This Row],[ITEM]],'PLANILHA REFERENCIA DETRAN PR'!$A$6:$I$43,4,FALSE) -> COMP.06 | D36: =VLOOKUP(Tabela1[[#This Row],[ITEM]],'PLANILHA REFERENCIA DETRAN PR'!$A$6:$I$43,2,FALSE) -> Placa tipo R-2 - L = 0,75m. Com película refletiva tipo I A (prismática) - Área: 0,24m² | E36: =VLOOKUP(B36,'PLANILHA REFERENCIA DETRAN PR'!$A$6:$I$43,6,FALSE) -> m² | F36: =VLOOKUP(B36,PLANILHA_SINTÉTICA!$B$14:$N$52,7,FALSE) -> 145 | G36: =VLOOKUP(B36,'PLANILHA REFERENCIA DETRAN PR'!$A$6:$I$43,9,FALSE) -> 129.08 | H36: =VLOOKUP(B36,PLANILHA_SINTÉTICA!$B$14:$N$52,13,FALSE) -> 18716.6 | I36: 3305556.1 | J36: =IF(Tabela1[[#This Row],[CUSTO TOTAL ACUMULADO ]]=Tabela1[[#Headers],[CUSTO TOTAL ACUMULADO ]],"",H36/SUM($H$13:$H$47)) -> 0.005614728606 | K36: 0.9916224311 | L36: =IFERROR(IF(Tabela1[[#This Row],[% DO ITEM]]=0,"",IF((K36-J36)>0.8,"C",IF((K36-J36)<0.5,"A","B"))),"") -> C
B37: 2.11 | C37: =VLOOKUP(Tabela1[[#This Row],[ITEM]],'PLANILHA REFERENCIA DETRAN PR'!$A$6:$I$43,4,FALSE) -> 09.04.00 | D37: =VLOOKUP(Tabela1[[#This Row],[ITEM]],'PLANILHA REFERENCIA DETRAN PR'!$A$6:$I$43,2,FALSE) -> Fresagem de pavimento asfáltico com espessura de até 5cm, em vias arteriais, inclusive remoção do material fresado até 10km e varrição | E37: =VLOOKUP(B37,'PLANILHA REFERENCIA DETRAN PR'!$A$6:$I$43,6,FALSE) -> M2 | F37: =VLOOKUP(B37,PLANILHA_SINTÉTICA!$B$14:$N$52,7,FALSE) -> 376.81 | G37: =VLOOKUP(B37,'PLANILHA REFERENCIA DETRAN PR'!$A$6:$I$43,9,FALSE) -> 20.04 | H37: =VLOOKUP(B37,PLANILHA_SINTÉTICA!$B$14:$N$52,13,FALSE) -> 7551.27 | I37: 3313107.37 | J37: =IF(Tabela1[[#This Row],[CUSTO TOTAL ACUMULADO ]]=Tabela1[[#Headers],[CUSTO TOTAL ACUMULADO ]],"",H37/SUM($H$13:$H$47)) -> 0.002265279574 | K37: 0.9938877107 | L37: =IFERROR(IF(Tabela1[[#This Row],[% DO ITEM]]=0,"",IF((K37-J37)>0.8,"C",IF((K37-J37)<0.5,"A","B"))),"") -> C
B38: 1.23 | C38: =VLOOKUP(Tabela1[[#This Row],[ITEM]],'PLANILHA REFERENCIA DETRAN PR'!$A$6:$I$43,4,FALSE) -> COMP.19 | D38: =VLOOKUP(Tabela1[[#This Row],[ITEM]],'PLANILHA REFERENCIA DETRAN PR'!$A$6:$I$43,2,FALSE) -> Placa sinalização piscante mono ativa, em chapa de aço nº 18 galvanizada c/ película refletiva Tipo A (prismática) - A = 0,72m² | E38: =VLOOKUP(B38,'PLANILHA REFERENCIA DETRAN PR'!$A$6:$I$43,6,FALSE) -> Unid. | F38: =VLOOKUP(B38,PLANILHA_SINTÉTICA!$B$14:$N$52,7,FALSE) -> 2 | G38: =VLOOKUP(B38,'PLANILHA REFERENCIA DETRAN PR'!$A$6:$I$43,9,FALSE) -> 3523.7 | H38: =VLOOKUP(B38,PLANILHA_SINTÉTICA!$B$14:$N$52,13,FALSE) -> 7047.4 | I38: 3320154.77 | J38: =IF(Tabela1[[#This Row],[CUSTO TOTAL ACUMULADO ]]=Tabela1[[#Headers],[CUSTO TOTAL ACUMULADO ]],"",H38/SUM($H$13:$H$47)) -> 0.002114125342 | K38: 0.996001836 | L38: =IFERROR(IF(Tabela1[[#This Row],[% DO ITEM]]=0,"",IF((K38-J38)>0.8,"C",IF((K38-J38)<0.5,"A","B"))),"") -> C
B39: 2.10 | C39: =VLOOKUP(Tabela1[[#This Row],[ITEM]],'PLANILHA REFERENCIA DETRAN PR'!$A$6:$I$43,4,FALSE) -> 873000 | D39: =VLOOKUP(Tabela1[[#This Row],[ITEM]],'PLANILHA REFERENCIA DETRAN PR'!$A$6:$I$43,2,FALSE) -> Tachão refletivo bidirecional | E39: =VLOOKUP(B39,'PLANILHA REFERENCIA DETRAN PR'!$A$6:$I$43,6,FALSE) -> ud | F39: =VLOOKUP(B39,PLANILHA_SINTÉTICA!$B$14:$N$52,7,FALSE) -> 110 | G39: =VLOOKUP(B39,'PLANILHA REFERENCIA DETRAN PR'!$A$6:$I$43,9,FALSE) -> 40.9 | H39: =VLOOKUP(B39,PLANILHA_SINTÉTICA!$B$14:$N$52,13,FALSE) -> 4499 | I39: 3324653.77 | J39: =IF(Tabela1[[#This Row],[CUSTO TOTAL ACUMULADO ]]=Tabela1[[#Headers],[CUSTO TOTAL ACUMULADO ]],"",H39/SUM($H$13:$H$47)) -> 0.001349639571 | K39: 0.9973514756 | L39: =IFERROR(IF(Tabela1[[#This Row],[% DO ITEM]]=0,"",IF((K39-J39)>0.8,"C",IF((K39-J39)<0.5,"A","B"))),"") -> C
B40: 1.17 | C40: =VLOOKUP(Tabela1[[#This Row],[ITEM]],'PLANILHA REFERENCIA DETRAN PR'!$A$6:$I$43,4,FALSE) -> 5213364 | D40: =VLOOKUP(Tabela1[[#This Row],[ITEM]],'PLANILHA REFERENCIA DETRAN PR'!$A$6:$I$43,2,FALSE) -> Remoção de placa de sinalização | E40: =VLOOKUP(B40,'PLANILHA REFERENCIA DETRAN PR'!$A$6:$I$43,6,FALSE) -> m² | F40: =VLOOKUP(B40,PLANILHA_SINTÉTICA!$B$14:$N$52,7,FALSE) -> 170.99 | G40: =VLOOKUP(B40,'PLANILHA REFERENCIA DETRAN PR'!$A$6:$I$43,9,FALSE) -> 26.2 | H40: =VLOOKUP(B40,PLANILHA_SINTÉTICA!$B$14:$N$52,13,FALSE) -> 4479.94 | I40: 3329133.71 | J40: =IF(Tabela1[[#This Row],[CUSTO TOTAL ACUMULADO ]]=Tabela1[[#Headers],[CUSTO TOTAL ACUMULADO ]],"",H40/SUM($H$13:$H$47)) -> 0.001343921827 | K40: 0.9986953974 | L40: =IFERROR(IF(Tabela1[[#This Row],[% DO ITEM]]=0,"",IF((K40-J40)>0.8,"C",IF((K40-J40)<0.5,"A","B"))),"") -> C
B41: 1.18 | C41: =VLOOKUP(Tabela1[[#This Row],[ITEM]],'PLANILHA REFERENCIA DETRAN PR'!$A$6:$I$43,4,FALSE) -> COMP.01 | D41: =VLOOKUP(Tabela1[[#This Row],[ITEM]],'PLANILHA REFERENCIA DETRAN PR'!$A$6:$I$43,2,FALSE) -> Suporte metálico galv. fogo d=2,5" c/tampa e aletas anti-giro, h=2,00 | E41: =VLOOKUP(B41,'PLANILHA REFERENCIA DETRAN PR'!$A$6:$I$43,6,FALSE) -> unid | F41: =VLOOKUP(B41,PLANILHA_SINTÉTICA!$B$14:$N$52,7,FALSE) -> 9 | G41: =VLOOKUP(B41,'PLANILHA REFERENCIA DETRAN PR'!$A$6:$I$43,9,FALSE) -> 299.65 | H41: =VLOOKUP(B41,PLANILHA_SINTÉTICA!$B$14:$N$52,13,FALSE) -> 2696.85 | I41: 3331830.56 | J41: =IF(Tabela1[[#This Row],[CUSTO TOTAL ACUMULADO ]]=Tabela1[[#Headers],[CUSTO TOTAL ACUMULADO ]],"",H41/SUM($H$13:$H$47)) -> 0.000809018777 | K41: 0.9995044162 | L41: =IFERROR(IF(Tabela1[[#This Row],[% DO ITEM]]=0,"",IF((K41-J41)>0.8,"C",IF((K41-J41)<0.5,"A","B"))),"") -> C
B42: 1.15 | C42: =VLOOKUP(Tabela1[[#This Row],[ITEM]],'PLANILHA REFERENCIA DETRAN PR'!$A$6:$I$43,4,FALSE) -> ST 64.15.0300 (/) | D42: =VLOOKUP(Tabela1[[#This Row],[ITEM]],'PLANILHA REFERENCIA DETRAN PR'!$A$6:$I$43,2,FALSE) -> Retirada de poste simples de aco, diametro maior que 4".(desonerado) | E42: =VLOOKUP(B42,'PLANILHA REFERENCIA DETRAN PR'!$A$6:$I$43,6,FALSE) -> un | F42: =VLOOKUP(B42,PLANILHA_SINTÉTICA!$B$14:$N$52,7,FALSE) -> 2 | G42: =VLOOKUP(B42,'PLANILHA REFERENCIA DETRAN PR'!$A$6:$I$43,9,FALSE) -> 435.21 | H42: =VLOOKUP(B42,PLANILHA_SINTÉTICA!$B$14:$N$52,13,FALSE) -> 870.42 | I42: 3332700.98 | J42: =IF(Tabela1[[#This Row],[CUSTO TOTAL ACUMULADO ]]=Tabela1[[#Headers],[CUSTO TOTAL ACUMULADO ]],"",H42/SUM($H$13:$H$47)) -> 0.0002611143089 | K42: 0.9997655305 | L42: =IFERROR(IF(Tabela1[[#This Row],[% DO ITEM]]=0,"",IF((K42-J42)>0.8,"C",IF((K42-J42)<0.5,"A","B"))),"") -> C
B43: 2.8 | C43: =VLOOKUP(Tabela1[[#This Row],[ITEM]],'PLANILHA REFERENCIA DETRAN PR'!$A$6:$I$43,4,FALSE) -> 871000 | D43: =VLOOKUP(Tabela1[[#This Row],[ITEM]],'PLANILHA REFERENCIA DETRAN PR'!$A$6:$I$43,2,FALSE) -> Tacha refletiva bidirecional | E43: =VLOOKUP(B43,'PLANILHA REFERENCIA DETRAN PR'!$A$6:$I$43,6,FALSE) -> ud | F43: =VLOOKUP(B43,PLANILHA_SINTÉTICA!$B$14:$N$52,7,FALSE) -> 27 | G43: =VLOOKUP(B43,'PLANILHA REFERENCIA DETRAN PR'!$A$6:$I$43,9,FALSE) -> 16.8 | H43: =VLOOKUP(B43,PLANILHA_SINTÉTICA!$B$14:$N$52,13,FALSE) -> 453.6 | I43: 3333154.58 | J43: =IF(Tabela1[[#This Row],[CUSTO TOTAL ACUMULADO ]]=Tabela1[[#Headers],[CUSTO TOTAL ACUMULADO ]],"",H43/SUM($H$13:$H$47)) -> 0.0001360739074 | K43: 0.9999016044 | L43: =IFERROR(IF(Tabela1[[#This Row],[% DO ITEM]]=0,"",IF((K43-J43)>0.8,"C",IF((K43-J43)<0.5,"A","B"))),"") -> C
B44: 2.7 | C44: =VLOOKUP(Tabela1[[#This Row],[ITEM]],'PLANILHA REFERENCIA DETRAN PR'!$A$6:$I$43,4,FALSE) -> 870000 | D44: =VLOOKUP(Tabela1[[#This Row],[ITEM]],'PLANILHA REFERENCIA DETRAN PR'!$A$6:$I$43,2,FALSE) -> Tacha refletiva monodirecional | E44: =VLOOKUP(B44,'PLANILHA REFERENCIA DETRAN PR'!$A$6:$I$43,6,FALSE) -> ud | F44: =VLOOKUP(B44,PLANILHA_SINTÉTICA!$B$14:$N$52,7,FALSE) -> 20 | G44: =VLOOKUP(B44,'PLANILHA REFERENCIA DETRAN PR'!$A$6:$I$43,9,FALSE) -> 16.4 | H44: =VLOOKUP(B44,PLANILHA_SINTÉTICA!$B$14:$N$52,13,FALSE) -> 328 | I44: 3333482.58 | J44: =IF(Tabela1[[#This Row],[CUSTO TOTAL ACUMULADO ]]=Tabela1[[#Headers],[CUSTO TOTAL ACUMULADO ]],"",H44/SUM($H$13:$H$47)) -> 9.839559444e-05 | K44: 1 | L44: =IFERROR(IF(Tabela1[[#This Row],[% DO ITEM]]=0,"",IF((K44-J44)>0.8,"C",IF((K44-J44)<0.5,"A","B"))),"") -> C
B45: 1.19 | C45: =VLOOKUP(Tabela1[[#This Row],[ITEM]],'PLANILHA REFERENCIA DETRAN PR'!$A$6:$I$43,4,FALSE) -> 822030 | D45: =VLOOKUP(Tabela1[[#This Row],[ITEM]],'PLANILHA REFERENCIA DETRAN PR'!$A$6:$I$43,2,FALSE) -> Suporte metálico galv. fogo perfil "C" 250x85x25x2,70mm, h=5,00m | E45: =VLOOKUP(B45,'PLANILHA REFERENCIA DETRAN PR'!$A$6:$I$43,6,FALSE) -> ud | F45: =VLOOKUP(B45,PLANILHA_SINTÉTICA!$B$14:$N$52,7,FALSE) -> 0 | G45: =VLOOKUP(B45,'PLANILHA REFERENCIA DETRAN PR'!$A$6:$I$43,9,FALSE) -> 1439.15 | H45: =VLOOKUP(B45,PLANILHA_SINTÉTICA!$B$14:$N$52,13,FALSE) -> 0 | I45: 3333482.58 | J45: =IF(Tabela1[[#This Row],[CUSTO TOTAL ACUMULADO ]]=Tabela1[[#Headers],[CUSTO TOTAL ACUMULADO ]],"",H45/SUM($H$13:$H$47)) -> 0 | K45: 1 | L45: =IFERROR(IF(Tabela1[[#This Row],[% DO ITEM]]=0,"",IF((K45-J45)>0.8,"C",IF((K45-J45)<0.5,"A","B"))),"") -> 
B46: 1.20 | C46: =VLOOKUP(Tabela1[[#This Row],[ITEM]],'PLANILHA REFERENCIA DETRAN PR'!$A$6:$I$43,4,FALSE) -> 5213837 | D46: =VLOOKUP(Tabela1[[#This Row],[ITEM]],'PLANILHA REFERENCIA DETRAN PR'!$A$6:$I$43,2,FALSE) -> Cilindro flexível delimitador de tráfego com duas faixas refletivas e chumbador - D = 20 cm e H = 80 cm | E46: =VLOOKUP(B46,'PLANILHA REFERENCIA DETRAN PR'!$A$6:$I$43,6,FALSE) -> un | F46: =VLOOKUP(B46,PLANILHA_SINTÉTICA!$B$14:$N$52,7,FALSE) -> 0 | G46: =VLOOKUP(B46,'PLANILHA REFERENCIA DETRAN PR'!$A$6:$I$43,9,FALSE) -> 203.93 | H46: =VLOOKUP(B46,PLANILHA_SINTÉTICA!$B$14:$N$52,13,FALSE) -> 0 | I46: 3333482.58 | J46: =IF(Tabela1[[#This Row],[CUSTO TOTAL ACUMULADO ]]=Tabela1[[#Headers],[CUSTO TOTAL ACUMULADO ]],"",H46/SUM($H$13:$H$47)) -> 0 | K46: 1 | L46: =IFERROR(IF(Tabela1[[#This Row],[% DO ITEM]]=0,"",IF((K46-J46)>0.8,"C",IF((K46-J46)<0.5,"A","B"))),"") -> 
B47: 2.5 | C47: =VLOOKUP(Tabela1[[#This Row],[ITEM]],'PLANILHA REFERENCIA DETRAN PR'!$A$6:$I$43,4,FALSE) -> COMP.15 | D47: =VLOOKUP(Tabela1[[#This Row],[ITEM]],'PLANILHA REFERENCIA DETRAN PR'!$A$6:$I$43,2,FALSE) -> Pintura de faixa - plástico a frio bicomponente à base de resinas metacrílicas - espessura de 1,5 mm - plano | E47: =VLOOKUP(B47,'PLANILHA REFERENCIA DETRAN PR'!$A$6:$I$43,6,FALSE) -> m² | F47: =VLOOKUP(B47,PLANILHA_SINTÉTICA!$B$14:$N$52,7,FALSE) -> 0 | G47: =VLOOKUP(B47,'PLANILHA REFERENCIA DETRAN PR'!$A$6:$I$43,9,FALSE) -> 128.36 | H47: =VLOOKUP(B47,PLANILHA_SINTÉTICA!$B$14:$N$52,13,FALSE) -> 0 | I47: 3333482.58 | J47: =IF(Tabela1[[#This Row],[CUSTO TOTAL ACUMULADO ]]=Tabela1[[#Headers],[CUSTO TOTAL ACUMULADO ]],"",H47/SUM($H$13:$H$47)) -> 0 | K47: 1 | L47: =IFERROR(IF(Tabela1[[#This Row],[% DO ITEM]]=0,"",IF((K47-J47)>0.8,"C",IF((K47-J47)<0.5,"A","B"))),"") -> 

Sheet DECLARAÇÃO (hidden)
L4: EDITAR APENAS OS ITENS EM VERMELHO
C9: PRÓPRIO: | D9: EXECUÇÃO DE SERVIÇOS DE SINALIZAÇÃO VIÁRIA
C10: MUNICÍPIO: | D10: ='FOLHA FECHAMENTO'!D12:I12 -> lote 02
C11: EMPRESA: | D11: =IF([3]DADOS!D32<>"",[3]DADOS!D32," ") -> DETRAN
D16: TERMO DE RESPONSABILIDADE
C18: O profissional signatário deste, abaixo identificado, se responsabiliza pelo atendimento integral do contido na Portaria PRED, que determina os procedimentos para elaboração e apresentação de orçamentos/projetos, bem como pelo correto uso dos modelos e tabelas DER PR / SICRO / SCO RJ vigentes. O objeto deste Termo refere-se à correspondente ART abaixo
C26: ART/RRT nº : | F26: ='FOLHA FECHAMENTO'!M18 -> 16594464
C27: CREA: | F27: ='FOLHA FECHAMENTO'!M17 -> A284127-4
F29: ______________________________
G30: ='FOLHA FECHAMENTO'!H17 -> Amanda Patricia de Oliveira Henning
C32: TERMO DE LIBERAÇÃO DOS DIREITOS AUTORAIS
C34: O profissional signatário deste, abaixo identificado, concede ao DETRAN PR a liberação dos direitos autorais relativos às composições de serviços por ele elaboradas correspondente a ART/RRT abaixo
C39: ART/RRT nº : | F39: ='FOLHA FECHAMENTO'!M18 -> 16594464
C40: CREA: | F40: ='FOLHA FECHAMENTO'!M17 -> A284127-4
F42: ______________________________
F43: =G30 -> Amanda Patricia de Oliveira Henning

Sheet PLANILHA REFERENCIA DETRAN PR (hidden)
A1: PLANILHA DE CUSTOS DETRAN/PR
A4: ITEM | B4: DESCRIÇÃO | C4: FONTE | F4: UNIDADE | G4: MÃO DE OBRA | H4: MATERIAL | I4: CUSTO UNITÁRIO
C5: ÓRGÃO | D5: CÓDIGO | E5: DATA BASE
A6: 1 | B6: SINALIZAÇÃO VERTICAL
A7: 1.1 | B7: =IF(C7="derpr",VLOOKUP(D7,der!A:J,3,FALSE),IF(C7="dnit",VLOOKUP(D7,dnit!A:D,3,FALSE),IF(C7="detran-pr",VLOOKUP(D7,Composições!D:K,2,FALSE),IF(C7="sco/rj",VLOOKUP(D7,scorj!B:G,3,FALSE))))) -> Placa tipo R-1 - L = 0,25m. Com película refletiva tipo I A (prismática) - Área: 0,32 m² | C7: DETRAN-PR | D7: COMP.05 | E7: =IF(C7="derpr",der!$L$1,IF(C7="dnit",dnit!$A$1,IF(C7="detran-pr",scorj!$B$1,IF(C7="sco/rj",scorj!$B$1)))) -> 2025-12-30 | F7: =IF(C7="derpr",VLOOKUP(D7,der!A:J,3,FALSE),IF(C7="dnit",VLOOKUP(D7,dnit!A:D,3,FALSE),IF(C7="detran-pr",VLOOKUP(D7,Composições!D:K,3,FALSE),IF(C7="sco/rj",VLOOKUP(D7,scorj!B:G,3,FALSE))))) -> m² | G7: =IF(C7="derpr",VLOOKUP(D7,der!A:J,9,FALSE),IF(C7="dnit",VLOOKUP(D7,dnit!A:E,5,FALSE),IF(C7="detran-pr",VLOOKUP(D7,Composições!D:K,8,FALSE),IF(C7="sco/rj",VLOOKUP(D7,scorj!B:G,5,FALSE))))) -> 16.85 | H7: =IF(C7="derpr",VLOOKUP(D7,der!A:J,10,FALSE),IF(C7="dnit",VLOOKUP(D7,dnit!A:E,4,FALSE),IF(C7="detran-pr",VLOOKUP(D7,Composições!D:K,7,FALSE),IF(C7="sco/rj",VLOOKUP(D7,scorj!B:G,4,FALSE))))) -> 155.25 | I7: =IF(C7="derpr",VLOOKUP(D7,der!A:J,7,FALSE),IF(C7="dnit",VLOOKUP(D7,dnit!A:E,4,FALSE),IF(C7="detran-pr",VLOOKUP(D7,Composições!D:K,6,FALSE),IF(C7="sco/rj",VLOOKUP(D7,scorj!B:G,4,FALSE))))) -> 172.1
A8: 1.2 | B8: =IF(C8="derpr",VLOOKUP(D8,der!A:J,3,FALSE),IF(C8="dnit",VLOOKUP(D8,dnit!A:D,3,FALSE),IF(C8="detran-pr",VLOOKUP(D8,Composições!D:K,2,FALSE),IF(C8="sco/rj",VLOOKUP(D8,scorj!B:G,3,FALSE))))) -> Placa tipo R-2 - L = 0,75m. Com película refletiva tipo I A (prismática) - Área: 0,24m² | C8: DETRAN-PR | D8: COMP.06 | E8: =IF(C8="derpr",der!$L$1,IF(C8="dnit",dnit!$A$1,IF(C8="detran-pr",scorj!$B$1,IF(C8="sco/rj",scorj!$B$1)))) -> 2025-12-30 | F8: =IF(C8="derpr",VLOOKUP(D8,der!A:J,3,FALSE),IF(C8="dnit",VLOOKUP(D8,dnit!A:D,3,FALSE),IF(C8="detran-pr",VLOOKUP(D8,Composições!D:K,3,FALSE),IF(C8="sco/rj",VLOOKUP(D8,scorj!B:G,3,FALSE))))) -> m² | G8: =IF(C8="derpr",VLOOKUP(D8,der!A:J,9,FALSE),IF(C8="dnit",VLOOKUP(D8,dnit!A:E,5,FALSE),IF(C8="detran-pr",VLOOKUP(D8,Composições!D:K,8,FALSE),IF(C8="sco/rj",VLOOKUP(D8,scorj!B:G,5,FALSE))))) -> 12.64 | H8: =IF(C8="derpr",VLOOKUP(D8,der!A:J,10,FALSE),IF(C8="dnit",VLOOKUP(D8,dnit!A:E,4,FALSE),IF(C8="detran-pr",VLOOKUP(D8,Composições!D:K,7,FALSE),IF(C8="sco/rj",VLOOKUP(D8,scorj!B:G,4,FALSE))))) -> 116.44 | I8: =IF(C8="derpr",VLOOKUP(D8,der!A:J,7,FALSE),IF(C8="dnit",VLOOKUP(D8,dnit!A:E,4,FALSE),IF(C8="detran-pr",VLOOKUP(D8,Composições!D:K,6,FALSE),IF(C8="sco/rj",VLOOKUP(D8,scorj!B:G,4,FALSE))))) -> 129.08
A9: 1.3 | B9: =IF(C9="derpr",VLOOKUP(D9,der!A:J,3,FALSE),IF(C9="dnit",VLOOKUP(D9,dnit!A:D,3,FALSE),IF(C9="detran-pr",VLOOKUP(D9,Composições!D:K,2,FALSE),IF(C9="sco/rj",VLOOKUP(D9,scorj!B:G,3,FALSE))))) -> Placa tipo circular - D = 0,50m. Com película refletiva tipo I A (prismática) - Área: 0,21m² | C9: DETRAN-PR | D9: COMP.07 | E9: =IF(C9="derpr",der!$L$1,IF(C9="dnit",dnit!$A$1,IF(C9="detran-pr",scorj!$B$1,IF(C9="sco/rj",scorj!$B$1)))) -> 2025-12-30 | F9: =IF(C9="derpr",VLOOKUP(D9,der!A:J,3,FALSE),IF(C9="dnit",VLOOKUP(D9,dnit!A:D,3,FALSE),IF(C9="detran-pr",VLOOKUP(D9,Composições!D:K,3,FALSE),IF(C9="sco/rj",VLOOKUP(D9,scorj!B:G,3,FALSE))))) -> m² | G9: =IF(C9="derpr",VLOOKUP(D9,der!A:J,9,FALSE),IF(C9="dnit",VLOOKUP(D9,dnit!A:E,5,FALSE),IF(C9="detran-pr",VLOOKUP(D9,Composições!D:K,8,FALSE),IF(C9="sco/rj",VLOOKUP(D9,scorj!B:G,5,FALSE))))) -> 11.06 | H9: =IF(C9="derpr",VLOOKUP(D9,der!A:J,10,FALSE),IF(C9="dnit",VLOOKUP(D9,dnit!A:E,4,FALSE),IF(C9="detran-pr",VLOOKUP(D9,Composições!D:K,7,FALSE),IF(C9="sco/rj",VLOOKUP(D9,scorj!B:G,4,FALSE))))) -> 101.88 | I9: =IF(C9="derpr",VLOOKUP(D9,der!A:J,7,FALSE),IF(C9="dnit",VLOOKUP(D9,dnit!A:E,4,FALSE),IF(C9="detran-pr",VLOOKUP(D9,Composições!D:K,6,FALSE),IF(C9="sco/rj",VLOOKUP(D9,scorj!B:G,4,FALSE))))) -> 112.94
A10: 1.4 | B10: =IF(C10="derpr",VLOOKUP(D10,der!A:J,3,FALSE),IF(C10="dnit",VLOOKUP(D10,dnit!A:D,3,FALSE),IF(C10="detran-pr",VLOOKUP(D10,Composições!D:K,2,FALSE),IF(C10="sco/rj",VLOOKUP(D10,scorj!B:G,3,FALSE))))) -> Placa tipo de advertência - L = 0,50m. Com película refletiva tipo I A (prismática) - Área: 0,27 m² | C10: DETRAN-PR | D10: COMP.08 | E10: =IF(C10="derpr",der!$L$1,IF(C10="dnit",dnit!$A$1,IF(C10="detran-pr",scorj!$B$1,IF(C10="sco/rj",scorj!$B$1)))) -> 2025-12-30 | F10: =IF(C10="derpr",VLOOKUP(D10,der!A:J,3,FALSE),IF(C10="dnit",VLOOKUP(D10,dnit!A:D,3,FALSE),IF(C10="detran-pr",VLOOKUP(D10,Composições!D:K,3,FALSE),IF(C10="sco/rj",VLOOKUP(D10,scorj!B:G,3,FALSE))))) -> m² | G10: =IF(C10="derpr",VLOOKUP(D10,der!A:J,9,FALSE),IF(C10="dnit",VLOOKUP(D10,dnit!A:E,5,FALSE),IF(C10="detran-pr",VLOOKUP(D10,Composições!D:K,8,FALSE),IF(C10="sco/rj",VLOOKUP(D10,scorj!B:G,5,FALSE))))) -> 14.22 | H10: =IF(C10="derpr",VLOOKUP(D10,der!A:J,10,FALSE),IF(C10="dnit",VLOOKUP(D10,dnit!A:E,4,FALSE),IF(C10="detran-pr",VLOOKUP(D10,Composições!D:K,7,FALSE),IF(C10="sco/rj",VLOOKUP(D10,scorj!B:G,4,FALSE))))) -> 130.99 | I10: =IF(C10="derpr",VLOOKUP(D10,der!A:J,7,FALSE),IF(C10="dnit",VLOOKUP(D10,dnit!A:E,4,FALSE),IF(C10="detran-pr",VLOOKUP(D10,Composições!D:K,6,FALSE),IF(C10="sco/rj",VLOOKUP(D10,scorj!B:G,4,FALSE))))) -> 145.21
A11: 1.5 | B11: =IF(C11="derpr",VLOOKUP(D11,der!A:J,3,FALSE),IF(C11="dnit",VLOOKUP(D11,dnit!A:D,3,FALSE),IF(C11="detran-pr",VLOOKUP(D11,Composições!D:K,2,FALSE),IF(C11="sco/rj",VLOOKUP(D11,scorj!B:G,3,FALSE))))) -> Placa tipo retangular - L = 0,50m x h= 1,00 m. Com película refletiva tipo I A (prismática) | C11: DETRAN-PR | D11: COMP.09 | E11: =IF(C11="derpr",der!$L$1,IF(C11="dnit",dnit!$A$1,IF(C11="detran-pr",scorj!$B$1,IF(C11="sco/rj",scorj!$B$1)))) -> 2025-12-30 | F11: =IF(C11="derpr",VLOOKUP(D11,der!A:J,3,FALSE),IF(C11="dnit",VLOOKUP(D11,dnit!A:D,3,FALSE),IF(C11="detran-pr",VLOOKUP(D11,Composições!D:K,3,FALSE),IF(C11="sco/rj",VLOOKUP(D11,scorj!B:G,3,FALSE))))) -> m² | G11: =IF(C11="derpr",VLOOKUP(D11,der!A:J,9,FALSE),IF(C11="dnit",VLOOKUP(D11,dnit!A:E,5,FALSE),IF(C11="detran-pr",VLOOKUP(D11,Composições!D:K,8,FALSE),IF(C11="sco/rj",VLOOKUP(D11,scorj!B:G,5,FALSE))))) -> 26.34 | H11: =IF(C11="derpr",VLOOKUP(D11,der!A:J,10,FALSE),IF(C11="dnit",VLOOKUP(D11,dnit!A:E,4,FALSE),IF(C11="detran-pr",VLOOKUP(D11,Composições!D:K,7,FALSE),IF(C11="sco/rj",VLOOKUP(D11,scorj!B:G,4,FALSE))))) -> 242.58 | I11: =IF(C11="derpr",VLOOKUP(D11,der!A:J,7,FALSE),IF(C11="dnit",VLOOKUP(D11,dnit!A:E,4,FALSE),IF(C11="detran-pr",VLOOKUP(D11,Composições!D:K,6,FALSE),IF(C11="sco/rj",VLOOKUP(D11,scorj!B:G,4,FALSE))))) -> 268.91
A12: 1.6 | B12: Placa sinalização em chapa de aço nº18 galvanizada c/ película refletiva Tipo I A (prismática) - Utilizar apenas para placas não listadas no orçamento | C12: DERPR | D12: 820000 | E12: =IF(C12="derpr",der!$L$1,IF(C12="dnit",dnit!$A$1,IF(C12="detran-pr",scorj!$B$1,IF(C12="sco/rj",scorj!$B$1)))) -> 2025-08-31 | F12: =IF(C12="derpr",VLOOKUP(D12,der!A:J,3,FALSE),IF(C12="dnit",VLOOKUP(D12,dnit!A:D,3,FALSE),IF(C12="detran-pr",VLOOKUP(D12,Composições!D:K,3,FALSE),IF(C12="sco/rj",VLOOKUP(D12,scorj!B:G,3,FALSE))))) -> m2 | G12: =IF(C12="derpr",VLOOKUP(D12,der!A:J,9,FALSE),IF(C12="dnit",VLOOKUP(D12,dnit!A:E,5,FALSE),IF(C12="detran-pr",VLOOKUP(D12,Composições!D:K,8,FALSE),IF(C12="sco/rj",VLOOKUP(D12,scorj!B:G,5,FALSE))))) -> 190.97 | H12: =IF(C12="derpr",VLOOKUP(D12,der!A:J,10,FALSE),IF(C12="dnit",VLOOKUP(D12,dnit!A:E,4,FALSE),IF(C12="detran-pr",VLOOKUP(D12,Composições!D:K,7,FALSE),IF(C12="sco/rj",VLOOKUP(D12,scorj!B:G,4,FALSE))))) -> 346.85 | I12: =IF(C12="derpr",VLOOKUP(D12,der!A:J,7,FALSE),IF(C12="dnit",VLOOKUP(D12,dnit!A:E,4,FALSE),IF(C12="detran-pr",VLOOKUP(D12,Composições!D:K,6,FALSE),IF(C12="sco/rj",VLOOKUP(D12,scorj!B:G,4,FALSE))))) -> 537.82
A13: 1.7 | B13: Suporte polimérico ecológico maciço colapsível D = 6,5 cm para placa de sinalização - fornecimento e implantação - 3,00 m | C13: DNIT | D13: 5213351-ed | E13: =IF(C13="derpr",der!$L$1,IF(C13="dnit",dnit!$A$1,IF(C13="detran-pr",scorj!$B$1,IF(C13="sco/rj",scorj!$B$1)))) -> 2025-10-01 | F13: =IF(C13="derpr",VLOOKUP(D13,der!A:J,3,FALSE),IF(C13="dnit",VLOOKUP(D13,dnit!A:D,3,FALSE),IF(C13="detran-pr",VLOOKUP(D13,Composições!D:K,3,FALSE),IF(C13="sco/rj",VLOOKUP(D13,scorj!B:G,3,FALSE))))) -> un | G13: =IF(C13="derpr",VLOOKUP(D13,der!A:J,9,FALSE),IF(C13="dnit",VLOOKUP(D13,dnit!A:E,5,FALSE),IF(C13="detran-pr",VLOOKUP(D13,Composições!D:K,8,FALSE),IF(C13="sco/rj",VLOOKUP(D13,scorj!B:G,5,FALSE))))) -> 0 | H13: =IF(C13="derpr",VLOOKUP(D13,der!A:J,10,FALSE),IF(C13="dnit",VLOOKUP(D13,dnit!A:E,4,FALSE),IF(C13="detran-pr",VLOOKUP(D13,Composições!D:K,7,FALSE),IF(C13="sco/rj",VLOOKUP(D13,scorj!B:G,4,FALSE))))) -> 810.79 | I13: =IF(C13="derpr",VLOOKUP(D13,der!A:J,7,FALSE),IF(C13="dnit",VLOOKUP(D13,dnit!A:E,4,FALSE),IF(C13="detran-pr",VLOOKUP(D13,Composições!D:K,6,FALSE),IF(C13="sco/rj",VLOOKUP(D13,scorj!B:G,4,FALSE))))) -> 810.79
A14: 1.8 | B14: Suporte polimérico ecológico maciço colapsível D = 6,5 cm para placa de sinalização - fornecimento e implantação - 3,60 m | C14: DNIT | D14: 5213351 | E14: =IF(C14="derpr",der!$L$1,IF(C14="dnit",dnit!$A$1,IF(C14="detran-pr",scorj!$B$1,IF(C14="sco/rj",scorj!$B$1)))) -> 2025-10-01 | F14: =IF(C14="derpr",VLOOKUP(D14,der!A:J,3,FALSE),IF(C14="dnit",VLOOKUP(D14,dnit!A:D,3,FALSE),IF(C14="detran-pr",VLOOKUP(D14,Composições!D:K,3,FALSE),IF(C14="sco/rj",VLOOKUP(D14,scorj!B:G,3,FALSE))))) -> un | G14: =IF(C14="derpr",VLOOKUP(D14,der!A:J,9,FALSE),IF(C14="dnit",VLOOKUP(D14,dnit!A:E,5,FALSE),IF(C14="detran-pr",VLOOKUP(D14,Composições!D:K,8,FALSE),IF(C14="sco/rj",VLOOKUP(D14,scorj!B:G,5,FALSE))))) -> 0 | H14: =IF(C14="derpr",VLOOKUP(D14,der!A:J,10,FALSE),IF(C14="dnit",VLOOKUP(D14,dnit!A:E,4,FALSE),IF(C14="detran-pr",VLOOKUP(D14,Composições!D:K,7,FALSE),IF(C14="sco/rj",VLOOKUP(D14,scorj!B:G,4,FALSE))))) -> 675.66 | I14: =IF(C14="derpr",VLOOKUP(D14,der!A:J,7,FALSE),IF(C14="dnit",VLOOKUP(D14,dnit!A:E,4,FALSE),IF(C14="detran-pr",VLOOKUP(D14,Composições!D:K,6,FALSE),IF(C14="sco/rj",VLOOKUP(D14,scorj!B:G,4,FALSE))))) -> 675.66
A15: 1.9 | B15: Suporte metál.galv.fogo d=2,5" c/tampa e aletas antigiro h=3,00m | C15: DERPR | D15: 821300 | E15: =IF(C15="derpr",der!$L$1,IF(C15="dnit",dnit!$A$1,IF(C15="detran-pr",scorj!$B$1,IF(C15="sco/rj",scorj!$B$1)))) -> 2025-08-31 | F15: =IF(C15="derpr",VLOOKUP(D15,der!A:J,3,FALSE),IF(C15="dnit",VLOOKUP(D15,dnit!A:D,3,FALSE),IF(C15="detran-pr",VLOOKUP(D15,Composições!D:K,3,FALSE),IF(C15="sco/rj",VLOOKUP(D15,scorj!B:G,3,FALSE))))) -> ud | G15: =IF(C15="derpr",VLOOKUP(D15,der!A:J,9,FALSE),IF(C15="dnit",VLOOKUP(D15,dnit!A:E,5,FALSE),IF(C15="detran-pr",VLOOKUP(D15,Composições!D:K,8,FALSE),IF(C15="sco/rj",VLOOKUP(D15,scorj!B:G,5,FALSE))))) -> 72.92 | H15: =IF(C15="derpr",VLOOKUP(D15,der!A:J,10,FALSE),IF(C15="dnit",VLOOKUP(D15,dnit!A:E,4,FALSE),IF(C15="detran-pr",VLOOKUP(D15,Composições!D:K,7,FALSE),IF(C15="sco/rj",VLOOKUP(D15,scorj!B:G,4,FALSE))))) -> 336.69 | I15: =IF(C15="derpr",VLOOKUP(D15,der!A:J,7,FALSE),IF(C15="dnit",VLOOKUP(D15,dnit!A:E,4,FALSE),IF(C15="detran-pr",VLOOKUP(D15,Composições!D:K,6,FALSE),IF(C15="sco/rj",VLOOKUP(D15,scorj!B:G,4,FALSE))))) -> 409.61
A16: 1.10 | B16: Suporte metál.galv.fogo d=2,5" c/tampa e aletas antigiro h=3,50m | C16: DERPR | D16: 821350 | E16: =IF(C16="derpr",der!$L$1,IF(C16="dnit",dnit!$A$1,IF(C16="detran-pr",scorj!$B$1,IF(C16="sco/rj",scorj!$B$1)))) -> 2025-08-31 | F16: =IF(C16="derpr",VLOOKUP(D16,der!A:J,3,FALSE),IF(C16="dnit",VLOOKUP(D16,dnit!A:D,3,FALSE),IF(C16="detran-pr",VLOOKUP(D16,Composições!D:K,3,FALSE),IF(C16="sco/rj",VLOOKUP(D16,scorj!B:G,3,FALSE))))) -> ud | G16: =IF(C16="derpr",VLOOKUP(D16,der!A:J,9,FALSE),IF(C16="dnit",VLOOKUP(D16,dnit!A:E,5,FALSE),IF(C16="detran-pr",VLOOKUP(D16,Composições!D:K,8,FALSE),IF(C16="sco/rj",VLOOKUP(D16,scorj!B:G,5,FALSE))))) -> 72.92 | H16: =IF(C16="derpr",VLOOKUP(D16,der!A:J,10,FALSE),IF(C16="dnit",VLOOKUP(D16,dnit!A:E,4,FALSE),IF(C16="detran-pr",VLOOKUP(D16,Composições!D:K,7,FALSE),IF(C16="sco/rj",VLOOKUP(D16,scorj!B:G,4,FALSE))))) -> 392.69 | I16: =IF(C16="derpr",VLOOKUP(D16,der!A:J,7,FALSE),IF(C16="dnit",VLOOKUP(D16,dnit!A:E,4,FALSE),IF(C16="detran-pr",VLOOKUP(D16,Composições!D:K,6,FALSE),IF(C16="sco/rj",VLOOKUP(D16,scorj!B:G,4,FALSE))))) -> 465.61
A17: 1.11 | B17: Suporte metál.galv.fogo d=2,5" c/tampa e aletas anti-giro h=4,00m | C17: DERPR | D17: 821400 | E17: =IF(C17="derpr",der!$L$1,IF(C17="dnit",dnit!$A$1,IF(C17="detran-pr",scorj!$B$1,IF(C17="sco/rj",scorj!$B$1)))) -> 2025-08-31 | F17: =IF(C17="derpr",VLOOKUP(D17,der!A:J,3,FALSE),IF(C17="dnit",VLOOKUP(D17,dnit!A:D,3,FALSE),IF(C17="detran-pr",VLOOKUP(D17,Composições!D:K,3,FALSE),IF(C17="sco/rj",VLOOKUP(D17,scorj!B:G,3,FALSE))))) -> ud | G17: =IF(C17="derpr",VLOOKUP(D17,der!A:J,9,FALSE),IF(C17="dnit",VLOOKUP(D17,dnit!A:E,5,FALSE),IF(C17="detran-pr",VLOOKUP(D17,Composições!D:K,8,FALSE),IF(C17="sco/rj",VLOOKUP(D17,scorj!B:G,5,FALSE))))) -> 72.92 | H17: =IF(C17="derpr",VLOOKUP(D17,der!A:J,10,FALSE),IF(C17="dnit",VLOOKUP(D17,dnit!A:E,4,FALSE),IF(C17="detran-pr",VLOOKUP(D17,Composições!D:K,7,FALSE),IF(C17="sco/rj",VLOOKUP(D17,scorj!B:G,4,FALSE))))) -> 447.83 | I17: =IF(C17="derpr",VLOOKUP(D17,der!A:J,7,FALSE),IF(C17="dnit",VLOOKUP(D17,dnit!A:E,4,FALSE),IF(C17="detran-pr",VLOOKUP(D17,Composições!D:K,6,FALSE),IF(C17="sco/rj",VLOOKUP(D17,scorj!B:G,4,FALSE))))) -> 520.75
A18: 1.12 | B18: Conjunto para placa indicativa (Coluna, Braço, Montagem, Fundação) para placas até 3,00m² - Coluna Tipo I com projeção de 2,80m | C18: DETRAN-PR | D18: COMP.02 | E18: =IF(C18="derpr",der!$L$1,IF(C18="dnit",dnit!$A$1,IF(C18="detran-pr",scorj!$B$1,IF(C18="sco/rj",scorj!$B$1)))) -> 2025-12-30 | F18: =IF(C18="derpr",VLOOKUP(D18,der!A:J,3,FALSE),IF(C18="dnit",VLOOKUP(D18,dnit!A:D,3,FALSE),IF(C18="detran-pr",VLOOKUP(D18,Composições!D:K,3,FALSE),IF(C18="sco/rj",VLOOKUP(D18,scorj!B:G,3,FALSE))))) -> unid | G18: =IF(C18="derpr",VLOOKUP(D18,der!A:J,9,FALSE),IF(C18="dnit",VLOOKUP(D18,dnit!A:E,5,FALSE),IF(C18="detran-pr",VLOOKUP(D18,Composições!D:K,8,FALSE),IF(C18="sco/rj",VLOOKUP(D18,scorj!B:G,5,FALSE))))) -> 411.3 | H18: =IF(C18="derpr",VLOOKUP(D18,der!A:J,10,FALSE),IF(C18="dnit",VLOOKUP(D18,dnit!A:E,4,FALSE),IF(C18="detran-pr",VLOOKUP(D18,Composições!D:K,7,FALSE),IF(C18="sco/rj",VLOOKUP(D18,scorj!B:G,4,FALSE))))) -> 12011.65 | I18: =IF(C18="derpr",VLOOKUP(D18,der!A:J,7,FALSE),IF(C18="dnit",VLOOKUP(D18,dnit!A:E,4,FALSE),IF(C18="detran-pr",VLOOKUP(D18,Composições!D:K,6,FALSE),IF(C18="sco/rj",VLOOKUP(D18,scorj!B:G,4,FALSE))))) -> 12422.95
A19: 1.13 | B19: Conjunto para placa indicativa (Coluna, Braço, Montagem, Fundação) para placas até 3,00m² - Coluna Tipo I com projeção de 3,70m | C19: DETRAN-PR | D19: COMP.03 | E19: =IF(C19="derpr",der!$L$1,IF(C19="dnit",dnit!$A$1,IF(C19="detran-pr",scorj!$B$1,IF(C19="sco/rj",scorj!$B$1)))) -> 2025-12-30 | F19: =IF(C19="derpr",VLOOKUP(D19,der!A:J,3,FALSE),IF(C19="dnit",VLOOKUP(D19,dnit!A:D,3,FALSE),IF(C19="detran-pr",VLOOKUP(D19,Composições!D:K,3,FALSE),IF(C19="sco/rj",VLOOKUP(D19,scorj!B:G,3,FALSE))))) -> unid | G19: =IF(C19="derpr",VLOOKUP(D19,der!A:J,9,FALSE),IF(C19="dnit",VLOOKUP(D19,dnit!A:E,5,FALSE),IF(C19="detran-pr",VLOOKUP(D19,Composições!D:K,8,FALSE),IF(C19="sco/rj",VLOOKUP(D19,scorj!B:G,5,FALSE))))) -> 411.3 | H19: =IF(C19="derpr",VLOOKUP(D19,der!A:J,10,FALSE),IF(C19="dnit",VLOOKUP(D19,dnit!A:E,4,FALSE),IF(C19="detran-pr",VLOOKUP(D19,Composições!D:K,7,FALSE),IF(C19="sco/rj",VLOOKUP(D19,scorj!B:G,4,FALSE))))) -> 12403.33 | I19: =IF(C19="derpr",VLOOKUP(D19,der!A:J,7,FALSE),IF(C19="dnit",VLOOKUP(D19,dnit!A:E,4,FALSE),IF(C19="detran-pr",VLOOKUP(D19,Composições!D:K,6,FALSE),IF(C19="sco/rj",VLOOKUP(D19,scorj!B:G,4,FALSE))))) -> 12814.63
A20: 1.14 | B20: Conjunto para placa indicativa (Coluna, Braço, Montagem, Fundação) para placas até 4,50m² - Coluna Tipo II com projeção de 6,00m | C20: DETRAN-PR | D20: COMP.04 | E20: =IF(C20="derpr",der!$L$1,IF(C20="dnit",dnit!$A$1,IF(C20="detran-pr",scorj!$B$1,IF(C20="sco/rj",scorj!$B$1)))) -> 2025-12-30 | F20: =IF(C20="derpr",VLOOKUP(D20,der!A:J,3,FALSE),IF(C20="dnit",VLOOKUP(D20,dnit!A:D,3,FALSE),IF(C20="detran-pr",VLOOKUP(D20,Composições!D:K,3,FALSE),IF(C20="sco/rj",VLOOKUP(D20,scorj!B:G,3,FALSE))))) -> unid | G20: =IF(C20="derpr",VLOOKUP(D20,der!A:J,9,FALSE),IF(C20="dnit",VLOOKUP(D20,dnit!A:E,5,FALSE),IF(C20="detran-pr",VLOOKUP(D20,Composições!D:K,8,FALSE),IF(C20="sco/rj",VLOOKUP(D20,scorj!B:G,5,FALSE))))) -> 502.68 | H20: =IF(C20="derpr",VLOOKUP(D20,der!A:J,10,FALSE),IF(C20="dnit",VLOOKUP(D20,dnit!A:E,4,FALSE),IF(C20="detran-pr",VLOOKUP(D20,Composições!D:K,7,FALSE),IF(C20="sco/rj",VLOOKUP(D20,scorj!B:G,4,FALSE))))) -> 17937.08 | I20: =IF(C20="derpr",VLOOKUP(D20,der!A:J,7,FALSE),IF(C20="dnit",VLOOKUP(D20,dnit!A:E,4,FALSE),IF(C20="detran-pr",VLOOKUP(D20,Composições!D:K,6,FALSE),IF(C20="sco/rj",VLOOKUP(D20,scorj!B:G,4,FALSE))))) -> 18439.76
A21: 1.15 | B21: Retirada de poste simples de aco, diametro maior que 4".(desonerado) | C21: SCO/RJ | D21: ST 64.15.0300 (/) | E21: =IF(C21="derpr",der!$L$1,IF(C21="dnit",dnit!$A$1,IF(C21="detran-pr",scorj!$B$1,IF(C21="sco/rj",scorj!$B$1)))) -> 2025-12-30 | F21: =IF(C21="derpr",VLOOKUP(D21,der!A:J,3,FALSE),IF(C21="dnit",VLOOKUP(D21,dnit!A:D,3,FALSE),IF(C21="detran-pr",VLOOKUP(D21,Composições!D:K,3,FALSE),IF(C21="sco/rj",VLOOKUP(D21,scorj!B:G,3,FALSE))))) -> un | G21: =IF(C21="derpr",VLOOKUP(D21,der!A:J,9,FALSE),IF(C21="dnit",VLOOKUP(D21,dnit!A:E,5,FALSE),IF(C21="detran-pr",VLOOKUP(D21,Composições!D:K,8,FALSE),IF(C21="sco/rj",VLOOKUP(D21,scorj!B:G,5,FALSE))))) -> 0 | H21: =IF(C21="derpr",VLOOKUP(D21,der!A:J,10,FALSE),IF(C21="dnit",VLOOKUP(D21,dnit!A:E,4,FALSE),IF(C21="detran-pr",VLOOKUP(D21,Composições!D:K,7,FALSE),IF(C21="sco/rj",VLOOKUP(D21,scorj!B:G,4,FALSE))))) -> 435.21 | I21: =IF(C21="derpr",VLOOKUP(D21,der!A:J,7,FALSE),IF(C21="dnit",VLOOKUP(D21,dnit!A:E,4,FALSE),IF(C21="detran-pr",VLOOKUP(D21,Composições!D:K,6,FALSE),IF(C21="sco/rj",VLOOKUP(D21,scorj!B:G,4,FALSE))))) -> 435.21
A22: 1.16 | B22: Retirada de poste simples de aço, diâmetro de 2" (desonerado) | C22: SCO/RJ | D22: ST 64.15.0200 (A) | E22: =IF(C22="derpr",der!$L$1,IF(C22="dnit",dnit!$A$1,IF(C22="detran-pr",scorj!$B$1,IF(C22="sco/rj",scorj!$B$1)))) -> 2025-12-30 | F22: =IF(C22="derpr",VLOOKUP(D22,der!A:J,3,FALSE),IF(C22="dnit",VLOOKUP(D22,dnit!A:D,3,FALSE),IF(C22="detran-pr",VLOOKUP(D22,Composições!D:K,3,FALSE),IF(C22="sco/rj",VLOOKUP(D22,scorj!B:G,3,FALSE))))) -> un | G22: =IF(C22="derpr",VLOOKUP(D22,der!A:J,9,FALSE),IF(C22="dnit",VLOOKUP(D22,dnit!A:E,5,FALSE),IF(C22="detran-pr",VLOOKUP(D22,Composições!D:K,8,FALSE),IF(C22="sco/rj",VLOOKUP(D22,scorj!B:G,5,FALSE))))) -> 0 | H22: =IF(C22="derpr",VLOOKUP(D22,der!A:J,10,FALSE),IF(C22="dnit",VLOOKUP(D22,dnit!A:E,4,FALSE),IF(C22="detran-pr",VLOOKUP(D22,Composições!D:K,7,FALSE),IF(C22="sco/rj",VLOOKUP(D22,scorj!B:G,4,FALSE))))) -> 53.26 | I22: =IF(C22="derpr",VLOOKUP(D22,der!A:J,7,FALSE),IF(C22="dnit",VLOOKUP(D22,dnit!A:E,4,FALSE),IF(C22="detran-pr",VLOOKUP(D22,Composições!D:K,6,FALSE),IF(C22="sco/rj",VLOOKUP(D22,scorj!B:G,4,FALSE))))) -> 53.26
A23: 1.17 | B23: Remoção de placa de sinalização | C23: DNIT | D23: 5213364 | E23: =IF(C23="derpr",der!$L$1,IF(C23="dnit",dnit!$A$1,IF(C23="detran-pr",scorj!$B$1,IF(C23="sco/rj",scorj!$B$1)))) -> 2025-10-01 | F23: =IF(C23="derpr",VLOOKUP(D23,der!A:J,3,FALSE),IF(C23="dnit",VLOOKUP(D23,dnit!A:D,3,FALSE),IF(C23="detran-pr",VLOOKUP(D23,Composições!D:K,3,FALSE),IF(C23="sco/rj",VLOOKUP(D23,scorj!B:G,3,FALSE))))) -> m² | G23: =IF(C23="derpr",VLOOKUP(D23,der!A:J,9,FALSE),IF(C23="dnit",VLOOKUP(D23,dnit!A:E,5,FALSE),IF(C23="detran-pr",VLOOKUP(D23,Composições!D:K,8,FALSE),IF(C23="sco/rj",VLOOKUP(D23,scorj!B:G,5,FALSE))))) -> 0 | H23: =IF(C23="derpr",VLOOKUP(D23,der!A:J,10,FALSE),IF(C23="dnit",VLOOKUP(D23,dnit!A:E,4,FALSE),IF(C23="detran-pr",VLOOKUP(D23,Composições!D:K,7,FALSE),IF(C23="sco/rj",VLOOKUP(D23,scorj!B:G,4,FALSE))))) -> 26.2 | I23: =IF(C23="derpr",VLOOKUP(D23,der!A:J,7,FALSE),IF(C23="dnit",VLOOKUP(D23,dnit!A:E,4,FALSE),IF(C23="detran-pr",VLOOKUP(D23,Composições!D:K,6,FALSE),IF(C23="sco/rj",VLOOKUP(D23,scorj!B:G,4,FALSE))))) -> 26.2
A24: 1.18 | B24: Suporte metálico galv. fogo d=2,5" c/tampa e aletas anti-giro, h=2,00 | C24: DETRAN-PR | D24: COMP.01 | E24: =IF(C24="derpr",der!$L$1,IF(C24="dnit",dnit!$A$1,IF(C24="detran-pr",scorj!$B$1,IF(C24="sco/rj",scorj!$B$1)))) -> 2025-12-30 | F24: =IF(C24="derpr",VLOOKUP(D24,der!A:J,3,FALSE),IF(C24="dnit",VLOOKUP(D24,dnit!A:D,3,FALSE),IF(C24="detran-pr",VLOOKUP(D24,Composições!D:K,3,FALSE),IF(C24="sco/rj",VLOOKUP(D24,scorj!B:G,3,FALSE))))) -> unid | G24: =IF(C24="derpr",VLOOKUP(D24,der!A:J,9,FALSE),IF(C24="dnit",VLOOKUP(D24,dnit!A:E,5,FALSE),IF(C24="detran-pr",VLOOKUP(D24,Composições!D:K,8,FALSE),IF(C24="sco/rj",VLOOKUP(D24,scorj!B:G,5,FALSE))))) -> 38.51 | H24: =IF(C24="derpr",VLOOKUP(D24,der!A:J,10,FALSE),IF(C24="dnit",VLOOKUP(D24,dnit!A:E,4,FALSE),IF(C24="detran-pr",VLOOKUP(D24,Composições!D:K,7,FALSE),IF(C24="sco/rj",VLOOKUP(D24,scorj!B:G,4,FALSE))))) -> 261.14 | I24: =IF(C24="derpr",VLOOKUP(D24,der!A:J,7,FALSE),IF(C24="dnit",VLOOKUP(D24,dnit!A:E,4,FALSE),IF(C24="detran-pr",VLOOKUP(D24,Composições!D:K,6,FALSE),IF(C24="sco/rj",VLOOKUP(D24,scorj!B:G,4,FALSE))))) -> 299.65
A25: 1.19 | B25: Suporte metálico galv. fogo perfil "C" 250x85x25x2,70mm, h=5,00m | C25: DERPR | D25: 822030 | E25: =IF(C25="derpr",der!$L$1,IF(C25="dnit",dnit!$A$1,IF(C25="detran-pr",scorj!$B$1,IF(C25="sco/rj",scorj!$B$1)))) -> 2025-08-31 | F25: =IF(C25="derpr",VLOOKUP(D25,der!A:J,3,FALSE),IF(C25="dnit",VLOOKUP(D25,dnit!A:D,3,FALSE),IF(C25="detran-pr",VLOOKUP(D25,Composições!D:K,3,FALSE),IF(C25="sco/rj",VLOOKUP(D25,scorj!B:G,3,FALSE))))) -> ud | G25: =IF(C25="derpr",VLOOKUP(D25,der!A:J,9,FALSE),IF(C25="dnit",VLOOKUP(D25,dnit!A:E,5,FALSE),IF(C25="detran-pr",VLOOKUP(D25,Composições!D:K,8,FALSE),IF(C25="sco/rj",VLOOKUP(D25,scorj!B:G,5,FALSE))))) -> 115.39 | H25: =IF(C25="derpr",VLOOKUP(D25,der!A:J,10,FALSE),IF(C25="dnit",VLOOKUP(D25,dnit!A:E,4,FALSE),IF(C25="detran-pr",VLOOKUP(D25,Composições!D:K,7,FALSE),IF(C25="sco/rj",VLOOKUP(D25,scorj!B:G,4,FALSE))))) -> 1323.76 | I25: =IF(C25="derpr",VLOOKUP(D25,der!A:J,7,FALSE),IF(C25="dnit",VLOOKUP(D25,dnit!A:E,4,FALSE),IF(C25="detran-pr",VLOOKUP(D25,Composições!D:K,6,FALSE),IF(C25="sco/rj",VLOOKUP(D25,scorj!B:G,4,FALSE))))) -> 1439.15
A26: 1.20 | B26: Cilindro flexível delimitador de tráfego com duas faixas refletivas e chumbador - D = 20 cm e H = 80 cm | C26: DNIT | D26: 5213837 | E26: =IF(C26="derpr",der!$L$1,IF(C26="dnit",dnit!$A$1,IF(C26="detran-pr",scorj!$B$1,IF(C26="sco/rj",scorj!$B$1)))) -> 2025-10-01 | F26: =IF(C26="derpr",VLOOKUP(D26,der!A:J,3,FALSE),IF(C26="dnit",VLOOKUP(D26,dnit!A:D,3,FALSE),IF(C26="detran-pr",VLOOKUP(D26,Composições!D:K,3,FALSE),IF(C26="sco/rj",VLOOKUP(D26,scorj!B:G,3,FALSE))))) -> un | G26: =ROUND(I26-H26,2) -> 6.51 | H26: =ROUND(197.2935+0.1259,2) -> 197.42 | I26: =IF(C26="derpr",VLOOKUP(D26,der!A:J,7,FALSE),IF(C26="dnit",VLOOKUP(D26,dnit!A:E,4,FALSE),IF(C26="detran-pr",VLOOKUP(D26,Composições!D:K,6,FALSE),IF(C26="sco/rj",VLOOKUP(D26,scorj!B:G,4,FALSE))))) -> 203.93
A27: 1.21 | B27: Placa sinalização ativa inteligente com iluminação interna, duplo módulo de iluminação de faixa, detecção automática de pedestres e alimentação híbrida (fotovoltaica e rede elétrica - A = 0,84m² | C27: DETRAN-PR | D27: =Composições!$D$249 -> COMP.17 | E27: =IF(C27="derpr",der!$L$1,IF(C27="dnit",dnit!$A$1,IF(C27="detran-pr",scorj!$B$1,IF(C27="sco/rj",scorj!$B$1)))) -> 2025-12-30 | F27: =IF(C27="derpr",VLOOKUP(D27,der!A:J,3,FALSE),IF(C27="dnit",VLOOKUP(D27,dnit!A:D,3,FALSE),IF(C27="detran-pr",VLOOKUP(D27,Composições!D:K,3,FALSE),IF(C27="sco/rj",VLOOKUP(D27,scorj!B:G,3,FALSE))))) -> Unid. | G27: =ROUND(I27-H27,2) -> 7002.93 | H27: =IF(C27="derpr",VLOOKUP(D27,der!A:J,10,FALSE),IF(C27="dnit",VLOOKUP(D27,dnit!A:E,4,FALSE),IF(C27="detran-pr",VLOOKUP(D27,Composições!D:K,7,FALSE),IF(C27="sco/rj",VLOOKUP(D27,scorj!B:G,4,FALSE))))) -> 16340.17 | I27: =IF(C27="derpr",VLOOKUP(D27,der!A:J,7,FALSE),IF(C27="dnit",VLOOKUP(D27,dnit!A:E,4,FALSE),IF(C27="detran-pr",VLOOKUP(D27,Composições!D:K,6,FALSE),IF(C27="sco/rj",VLOOKUP(D27,scorj!B:G,4,FALSE))))) -> 23343.1
A28: 1.22 | B28: Placa sinalização piscante dupla ativa, alimentação fotovoltaica, em chapa de aço nº 18 galvanizada c/ película refletiva Tipo A (prismática) - A = 2m² | C28: DETRAN-PR | D28: =Composições!$D$253 -> COMP.18 | E28: =IF(C28="derpr",der!$L$1,IF(C28="dnit",dnit!$A$1,IF(C28="detran-pr",scorj!$B$1,IF(C28="sco/rj",scorj!$B$1)))) -> 2025-12-30 | F28: =IF(C28="derpr",VLOOKUP(D28,der!A:J,3,FALSE),IF(C28="dnit",VLOOKUP(D28,dnit!A:D,3,FALSE),IF(C28="detran-pr",VLOOKUP(D28,Composições!D:K,3,FALSE),IF(C28="sco/rj",VLOOKUP(D28,scorj!B:G,3,FALSE))))) -> Unid. | G28: =ROUND(I28-H28,2) -> 3916.74 | H28: =IF(C28="derpr",VLOOKUP(D28,der!A:J,10,FALSE),IF(C28="dnit",VLOOKUP(D28,dnit!A:E,4,FALSE),IF(C28="detran-pr",VLOOKUP(D28,Composições!D:K,7,FALSE),IF(C28="sco/rj",VLOOKUP(D28,scorj!B:G,4,FALSE))))) -> 9139.07 | I28: =IF(C28="derpr",VLOOKUP(D28,der!A:J,7,FALSE),IF(C28="dnit",VLOOKUP(D28,dnit!A:E,4,FALSE),IF(C28="detran-pr",VLOOKUP(D28,Composições!D:K,6,FALSE),IF(C28="sco/rj",VLOOKUP(D28,scorj!B:G,4,FALSE))))) -> 13055.81
A29: 1.23 | B29: Placa sinalização piscante mono ativa, em chapa de aço nº 18 galvanizada c/ película refletiva Tipo A (prismática) - A = 0,72m² | C29: DETRAN-PR | D29: COMP.19 | E29: =IF(C29="derpr",der!$L$1,IF(C29="dnit",dnit!$A$1,IF(C29="detran-pr",scorj!$B$1,IF(C29="sco/rj",scorj!$B$1)))) -> 2025-12-30 | F29: =IF(C29="derpr",VLOOKUP(D29,der!A:J,3,FALSE),IF(C29="dnit",VLOOKUP(D29,dnit!A:D,3,FALSE),IF(C29="detran-pr",VLOOKUP(D29,Composições!D:K,3,FALSE),IF(C29="sco/rj",VLOOKUP(D29,scorj!B:G,3,FALSE))))) -> Unid. | G29: =ROUND(I29-H29,2) -> 1057.11 | H29: =IF(C29="derpr",VLOOKUP(D29,der!A:J,10,FALSE),IF(C29="dnit",VLOOKUP(D29,dnit!A:E,4,FALSE),IF(C29="detran-pr",VLOOKUP(D29,Composições!D:K,7,FALSE),IF(C29="sco/rj",VLOOKUP(D29,scorj!B:G,4,FALSE))))) -> 2466.59 | I29: =IF(C29="derpr",VLOOKUP(D29,der!A:J,7,FALSE),IF(C29="dnit",VLOOKUP(D29,dnit!A:E,4,FALSE),IF(C29="detran-pr",VLOOKUP(D29,Composições!D:K,6,FALSE),IF(C29="sco/rj",VLOOKUP(D29,scorj!B:G,4,FALSE))))) -> 3523.7
A30: 1.24 | B30: Placa sinalização piscante mono ativa, em chapa de aço nº 18 galvanizada c/ película refletiva Tipo A (prismática) - A = 0,84m² | C30: DETRAN-PR | D30: COMP.20 | E30: =IF(C30="derpr",der!$L$1,IF(C30="dnit",dnit!$A$1,IF(C30="detran-pr",scorj!$B$1,IF(C30="sco/rj",scorj!$B$1)))) -> 2025-12-30 | F30: =IF(C30="derpr",VLOOKUP(D30,der!A:J,3,FALSE),IF(C30="dnit",VLOOKUP(D30,dnit!A:D,3,FALSE),IF(C30="detran-pr",VLOOKUP(D30,Composições!D:K,3,FALSE),IF(C30="sco/rj",VLOOKUP(D30,scorj!B:G,3,FALSE))))) -> Unid. | G30: =ROUND(I30-H30,2) -> 940.43 | H30: =IF(C30="derpr",VLOOKUP(D30,der!A:J,10,FALSE),IF(C30="dnit",VLOOKUP(D30,dnit!A:E,4,FALSE),IF(C30="detran-pr",VLOOKUP(D30,Composições!D:K,7,FALSE),IF(C30="sco/rj",VLOOKUP(D30,scorj!B:G,4,FALSE))))) -> 2194.33 | I30: =IF(C30="derpr",VLOOKUP(D30,der!A:J,7,FALSE),IF(C30="dnit",VLOOKUP(D30,dnit!A:E,4,FALSE),IF(C30="detran-pr",VLOOKUP(D30,Composições!D:K,6,FALSE),IF(C30="sco/rj",VLOOKUP(D30,scorj!B:G,4,FALSE))))) -> 3134.76
A31: 2 | B31: SINALIZAÇÃO HORIZONTAL
A32: 2.1 | B32: Faixa de sinalização horizontal c/tinta resina acrílica base água com limpeza do pavimento com jato d'água | C32: DETRAN-PR | D32: =Composições!$D$111 -> COMP.10 | E32: =IF(C32="derpr",der!$L$1,IF(C32="dnit",dnit!$A$1,IF(C32="detran-pr",scorj!$B$1,IF(C32="sco/rj",scorj!$B$1)))) -> 2025-12-30 | F32: =IF(C32="derpr",VLOOKUP(D32,der!A:J,3,FALSE),IF(C32="dnit",VLOOKUP(D32,dnit!A:D,3,FALSE),IF(C32="detran-pr",VLOOKUP(D32,Composições!D:K,3,FALSE),IF(C32="sco/rj",VLOOKUP(D32,scorj!B:G,3,FALSE))))) -> m² | G32: =IF(C32="derpr",VLOOKUP(D32,der!A:J,9,FALSE),IF(C32="dnit",VLOOKUP(D32,dnit!A:E,5,FALSE),IF(C32="detran-pr",VLOOKUP(D32,Composições!D:K,8,FALSE),IF(C32="sco/rj",VLOOKUP(D32,scorj!B:G,5,FALSE))))) -> 5.8 | H32: =IF(C32="derpr",VLOOKUP(D32,der!A:J,10,FALSE),IF(C32="dnit",VLOOKUP(D32,dnit!A:E,4,FALSE),IF(C32="detran-pr",VLOOKUP(D32,Composições!D:K,7,FALSE),IF(C32="sco/rj",VLOOKUP(D32,scorj!B:G,4,FALSE))))) -> 18.93 | I32: =IF(C32="derpr",VLOOKUP(D32,der!A:J,7,FALSE),IF(C32="dnit",VLOOKUP(D32,dnit!A:E,4,FALSE),IF(C32="detran-pr",VLOOKUP(D32,Composições!D:K,6,FALSE),IF(C32="sco/rj",VLOOKUP(D32,scorj!B:G,4,FALSE))))) -> 24.73
A33: 2.2 | B33: Faixa de sinalização horizontal c/tinta resina acrílica base solvente | C33: DETRAN-PR | D33: =Composições!$D$131 -> COMP.11 | E33: =IF(C33="derpr",der!$L$1,IF(C33="dnit",dnit!$A$1,IF(C33="detran-pr",scorj!$B$1,IF(C33="sco/rj",scorj!$B$1)))) -> 2025-12-30 | F33: =IF(C33="derpr",VLOOKUP(D33,der!A:J,3,FALSE),IF(C33="dnit",VLOOKUP(D33,dnit!A:D,3,FALSE),IF(C33="detran-pr",VLOOKUP(D33,Composições!D:K,3,FALSE),IF(C33="sco/rj",VLOOKUP(D33,scorj!B:G,3,FALSE))))) -> m² | G33: =IF(C33="derpr",VLOOKUP(D33,der!A:J,9,FALSE),IF(C33="dnit",VLOOKUP(D33,dnit!A:E,5,FALSE),IF(C33="detran-pr",VLOOKUP(D33,Composições!D:K,8,FALSE),IF(C33="sco/rj",VLOOKUP(D33,scorj!B:G,5,FALSE))))) -> 5.8 | H33: =IF(C33="derpr",VLOOKUP(D33,der!A:J,10,FALSE),IF(C33="dnit",VLOOKUP(D33,dnit!A:E,4,FALSE),IF(C33="detran-pr",VLOOKUP(D33,Composições!D:K,7,FALSE),IF(C33="sco/rj",VLOOKUP(D33,scorj!B:G,4,FALSE))))) -> 24.61 | I33: =IF(C33="derpr",VLOOKUP(D33,der!A:J,7,FALSE),IF(C33="dnit",VLOOKUP(D33,dnit!A:E,4,FALSE),IF(C33="detran-pr",VLOOKUP(D33,Composições!D:K,6,FALSE),IF(C33="sco/rj",VLOOKUP(D33,scorj!B:G,4,FALSE))))) -> 30.41
A34: 2.3 | B34: Faixa de sinalização horizontal - termoplástico por aspersão - e=1,5mm | C34: DETRAN-PR | D34: =Composições!$D$152 -> COMP.12 | E34: =IF(C34="derpr",der!$L$1,IF(C34="dnit",dnit!$A$1,IF(C34="detran-pr",scorj!$B$1,IF(C34="sco/rj",scorj!$B$1)))) -> 2025-12-30 | F34: =IF(C34="derpr",VLOOKUP(D34,der!A:J,3,FALSE),IF(C34="dnit",VLOOKUP(D34,dnit!A:D,3,FALSE),IF(C34="detran-pr",VLOOKUP(D34,Composições!D:K,3,FALSE),IF(C34="sco/rj",VLOOKUP(D34,scorj!B:G,3,FALSE))))) -> m² | G34: =IF(C34="derpr",VLOOKUP(D34,der!A:J,9,FALSE),IF(C34="dnit",VLOOKUP(D34,dnit!A:E,5,FALSE),IF(C34="detran-pr",VLOOKUP(D34,Composições!D:K,8,FALSE),IF(C34="sco/rj",VLOOKUP(D34,scorj!B:G,5,FALSE))))) -> 7.8 | H34: =IF(C34="derpr",VLOOKUP(D34,der!A:J,10,FALSE),IF(C34="dnit",VLOOKUP(D34,dnit!A:E,4,FALSE),IF(C34="detran-pr",VLOOKUP(D34,Composições!D:K,7,FALSE),IF(C34="sco/rj",VLOOKUP(D34,scorj!B:G,4,FALSE))))) -> 34.78 | I34: =IF(C34="derpr",VLOOKUP(D34,der!A:J,7,FALSE),IF(C34="dnit",VLOOKUP(D34,dnit!A:E,4,FALSE),IF(C34="detran-pr",VLOOKUP(D34,Composições!D:K,6,FALSE),IF(C34="sco/rj",VLOOKUP(D34,scorj!B:G,4,FALSE))))) -> 42.58
A35: 2.4 | B35: Pintura de setas e zebrados - termoplástico por extrusão - e=3mm | C35: DETRAN-PR | D35: =Composições!$D$171 -> COMP.13 | E35: =IF(C35="derpr",der!$L$1,IF(C35="dnit",dnit!$A$1,IF(C35="detran-pr",scorj!$B$1,IF(C35="sco/rj",scorj!$B$1)))) -> 2025-12-30 | F35: =IF(C35="derpr",VLOOKUP(D35,der!A:J,3,FALSE),IF(C35="dnit",VLOOKUP(D35,dnit!A:D,3,FALSE),IF(C35="detran-pr",VLOOKUP(D35,Composições!D:K,3,FALSE),IF(C35="sco/rj",VLOOKUP(D35,scorj!B:G,3,FALSE))))) -> m² | G35: =IF(C35="derpr",VLOOKUP(D35,der!A:J,9,FALSE),IF(C35="dnit",VLOOKUP(D35,dnit!A:E,5,FALSE),IF(C35="detran-pr",VLOOKUP(D35,Composições!D:K,8,FALSE),IF(C35="sco/rj",VLOOKUP(D35,scorj!B:G,5,FALSE))))) -> 7.8 | H35: =IF(C35="derpr",VLOOKUP(D35,der!A:J,10,FALSE),IF(C35="dnit",VLOOKUP(D35,dnit!A:E,4,FALSE),IF(C35="detran-pr",VLOOKUP(D35,Composições!D:K,7,FALSE),IF(C35="sco/rj",VLOOKUP(D35,scorj!B:G,4,FALSE))))) -> 49.09 | I35: =IF(C35="derpr",VLOOKUP(D35,der!A:J,7,FALSE),IF(C35="dnit",VLOOKUP(D35,dnit!A:E,4,FALSE),IF(C35="detran-pr",VLOOKUP(D35,Composições!D:K,6,FALSE),IF(C35="sco/rj",VLOOKUP(D35,scorj!B:G,4,FALSE))))) -> 56.89
A36: 2.5 | B36: Pintura de faixa - plástico a frio bicomponente à base de resinas metacrílicas - espessura de 1,5 mm - plano | C36: DETRAN-PR | D36: =Composições!$D$209 -> COMP.15 | E36: =IF(C36="derpr",der!$L$1,IF(C36="dnit",dnit!$A$1,IF(C36="detran-pr",scorj!$B$1,IF(C36="sco/rj",scorj!$B$1)))) -> 2025-12-30 | F36: =IF(C36="derpr",VLOOKUP(D36,der!A:J,3,FALSE),IF(C36="dnit",VLOOKUP(D36,dnit!A:D,3,FALSE),IF(C36="detran-pr",VLOOKUP(D36,Composições!D:K,3,FALSE),IF(C36="sco/rj",VLOOKUP(D36,scorj!B:G,3,FALSE))))) -> m² | G36: =IF(C36="derpr",VLOOKUP(D36,der!A:J,9,FALSE),IF(C36="dnit",VLOOKUP(D36,dnit!A:E,5,FALSE),IF(C36="detran-pr",VLOOKUP(D36,Composições!D:K,8,FALSE),IF(C36="sco/rj",VLOOKUP(D36,scorj!B:G,5,FALSE))))) -> 3.59 | H36: =IF(C36="derpr",VLOOKUP(D36,der!A:J,10,FALSE),IF(C36="dnit",VLOOKUP(D36,dnit!A:E,4,FALSE),IF(C36="detran-pr",VLOOKUP(D36,Composições!D:K,7,FALSE),IF(C36="sco/rj",VLOOKUP(D36,scorj!B:G,4,FALSE))))) -> 124.77 | I36: =IF(C36="derpr",VLOOKUP(D36,der!A:J,7,FALSE),IF(C36="dnit",VLOOKUP(D36,dnit!A:E,4,FALSE),IF(C36="detran-pr",VLOOKUP(D36,Composições!D:K,6,FALSE),IF(C36="sco/rj",VLOOKUP(D36,scorj!B:G,4,FALSE))))) -> 128.36
A37: 2.6 | B37: Pintura de faixa - plástico a frio tricomponente à base de resinas metacrílicas - espessura de 0,6 mm - aspersão | C37: DETRAN-PR | D37: =Composições!$D$229 -> COMP.16 | E37: =IF(C37="derpr",der!$L$1,IF(C37="dnit",dnit!$A$1,IF(C37="detran-pr",scorj!$B$1,IF(C37="sco/rj",scorj!$B$1)))) -> 2025-12-30 | F37: =IF(C37="derpr",VLOOKUP(D37,der!A:J,3,FALSE),IF(C37="dnit",VLOOKUP(D37,dnit!A:D,3,FALSE),IF(C37="detran-pr",VLOOKUP(D37,Composições!D:K,3,FALSE),IF(C37="sco/rj",VLOOKUP(D37,scorj!B:G,3,FALSE))))) -> m² | G37: =IF(C37="derpr",VLOOKUP(D37,der!A:J,9,FALSE),IF(C37="dnit",VLOOKUP(D37,dnit!A:E,5,FALSE),IF(C37="detran-pr",VLOOKUP(D37,Composições!D:K,8,FALSE),IF(C37="sco/rj",VLOOKUP(D37,scorj!B:G,5,FALSE))))) -> 2.27 | H37: =IF(C37="derpr",VLOOKUP(D37,der!A:J,10,FALSE),IF(C37="dnit",VLOOKUP(D37,dnit!A:E,4,FALSE),IF(C37="detran-pr",VLOOKUP(D37,Composições!D:K,7,FALSE),IF(C37="sco/rj",VLOOKUP(D37,scorj!B:G,4,FALSE))))) -> 69.18 | I37: =IF(C37="derpr",VLOOKUP(D37,der!A:J,7,FALSE),IF(C37="dnit",VLOOKUP(D37,dnit!A:E,4,FALSE),IF(C37="detran-pr",VLOOKUP(D37,Composições!D:K,6,FALSE),IF(C37="sco/rj",VLOOKUP(D37,scorj!B:G,4,FALSE))))) -> 71.45
A38: 2.7 | B38: Tacha refletiva monodirecional | C38: DERPR | D38: 870000 | E38: =IF(C38="derpr",der!$L$1,IF(C38="dnit",dnit!$A$1,IF(C38="detran-pr",scorj!$B$1,IF(C38="sco/rj",scorj!$B$1)))) -> 2025-08-31 | F38: =IF(C38="derpr",VLOOKUP(D38,der!A:J,3,FALSE),IF(C38="dnit",VLOOKUP(D38,dnit!A:D,3,FALSE),IF(C38="detran-pr",VLOOKUP(D38,Composições!D:K,3,FALSE),IF(C38="sco/rj",VLOOKUP(D38,scorj!B:G,3,FALSE))))) -> ud | G38: =VLOOKUP(D38,der!A:J,9,FALSE) -> 8.6 | H38: =VLOOKUP(D38,der!A:J,10,FALSE) -> 7.8 | I38: =VLOOKUP('PLANILHA REFERENCIA DETRAN PR'!D38,der!A:J,7,FALSE) -> 16.4
A39: 2.8 | B39: Tacha refletiva bidirecional | C39: DERPR | D39: 871000 | E39: =IF(C39="derpr",der!$L$1,IF(C39="dnit",dnit!$A$1,IF(C39="detran-pr",scorj!$B$1,IF(C39="sco/rj",scorj!$B$1)))) -> 2025-08-31 | F39: =IF(C39="derpr",VLOOKUP(D39,der!A:J,3,FALSE),IF(C39="dnit",VLOOKUP(D39,dnit!A:D,3,FALSE),IF(C39="detran-pr",VLOOKUP(D39,Composições!D:K,3,FALSE),IF(C39="sco/rj",VLOOKUP(D39,scorj!B:G,3,FALSE))))) -> ud | G39: =VLOOKUP(D39,der!A:J,9,FALSE) -> 8.6 | H39: =VLOOKUP(D39,der!A:J,10,FALSE) -> 8.2 | I39: =VLOOKUP('PLANILHA REFERENCIA DETRAN PR'!D39,der!A:J,7,FALSE) -> 16.8
A40: 2.9 | B40: Tachão refletivo monodirecional | C40: DERPR | D40: 872000 | E40: =IF(C40="derpr",der!$L$1,IF(C40="dnit",dnit!$A$1,IF(C40="detran-pr",scorj!$B$1,IF(C40="sco/rj",scorj!$B$1)))) -> 2025-08-31 | F40: =IF(C40="derpr",VLOOKUP(D40,der!A:J,3,FALSE),IF(C40="dnit",VLOOKUP(D40,dnit!A:D,3,FALSE),IF(C40="detran-pr",VLOOKUP(D40,Composições!D:K,3,FALSE),IF(C40="sco/rj",VLOOKUP(D40,scorj!B:G,3,FALSE))))) -> ud | G40: =VLOOKUP(D40,der!A:J,9,FALSE) -> 8.6 | H40: =VLOOKUP(D40,der!A:J,10,FALSE) -> 29.68 | I40: =VLOOKUP('PLANILHA REFERENCIA DETRAN PR'!D40,der!A:J,7,FALSE) -> 38.28
A41: 2.10 | B41: Tachão refletivo bidirecional | C41: DERPR | D41: 873000 | E41: =IF(C41="derpr",der!$L$1,IF(C41="dnit",dnit!$A$1,IF(C41="detran-pr",scorj!$B$1,IF(C41="sco/rj",scorj!$B$1)))) -> 2025-08-31 | F41: =IF(C41="derpr",VLOOKUP(D41,der!A:J,3,FALSE),IF(C41="dnit",VLOOKUP(D41,dnit!A:D,3,FALSE),IF(C41="detran-pr",VLOOKUP(D41,Composições!D:K,3,FALSE),IF(C41="sco/rj",VLOOKUP(D41,scorj!B:G,3,FALSE))))) -> ud | G41: =VLOOKUP(D41,der!A:J,9,FALSE) -> 8.6 | H41: =VLOOKUP(D41,der!A:J,10,FALSE) -> 32.3 | I41: =VLOOKUP('PLANILHA REFERENCIA DETRAN PR'!D41,der!A:J,7,FALSE) -> 40.9
A42: 2.11 | B42: Fresagem de pavimento asfáltico com espessura de até 5cm, em vias arteriais, inclusive remoção do material fresado até 10km e varrição | C42: SIURB-INFRA | D42: 09.04.00 | E42: 2025-10-01 | F42: M2 | G42: =0.26 -> 0.26 | H42: =ROUND(20.04-G42,2) -> 19.78 | I42: =H42+G42 -> 20.04

Sheet POR LOTE (hidden)
F1: Com BDI | G1: Sem BDI | H1: BDI
E2: Lote 01 | F2: =SUMIF(E10:E61,"Lote 01",F10:F61) -> 4793631.9 | G2: =TRUNC(SUMIF(E10:E61,"Lote 01",B10:B61),2) -> 3925182.14 | H2: =F2/G2-1 -> 0.2212508182
E3: Lote 02 | F3: =SUMIF(E10:E61,"Lote 02",F10:F61) -> 4030999.25 | G3: =SUMIF(E10:E61,"Lote 02",B10:B61) -> 3333482.59 | H3: =F3/G3-1 -> 0.2092456286
E4: Lote 03 | F4: =SUMIF(E10:E61,"Lote 03",F10:F61) -> 4723765.43 | G4: =SUMIF(E10:E61,"Lote 03",B10:B61) -> 3887224.19 | H4: =F4/G4-1 -> 0.2152027254
E5: Lote 04 | F5: =SUMIF(E10:E61,"Lote 04",F10:F61) -> 4057588.16 | G5: =SUMIF(E10:E61,"Lote 04",B10:B61) -> 3318853.16 | H5: =F5/G5-1 -> 0.2225874314
F6: =ROUND(SUM(F2:F5),2) -> 17605984.74
AG7: 2.1 | AH7: 2.2 | AI7: 2.3 | AJ7: 2.4 | AK7: 2.5 | AL7: 2.6 | AM7: 2.7 | AN7: 2.8 | AO7: 2.9 | AP7: 2.10 | AQ7: 2.11
H8: 172.1 | I8: 129.08 | J8: 112.94 | K8: 145.21 | L8: 268.92 | M8: 537.82 | N8: 810.79 | O8: 675.66 | P8: 409.61 | Q8: 465.61 | R8: 520.75 | S8: 12422.95 | T8: 12814.63 | U8: 18439.76 | V8: 435.21 | W8: 53.26 | X8: 26.2 | Y8: 299.65 | Z8: 1439.15 | AA8: 203.93 | AB8: 23343.1 | AC8: 13055.81 | AD8: 3523.7 | AE8: 3134.76 | AG8: 24.73 | AH8: 30.41 | AI8: 42.58 | AJ8: 56.89 | AK8: 128.36 | AL8: 71.45 | AM8: 16.4 | AN8: 16.8 | AO8: 38.28 | AP8: 40.9 | AQ8: 20.04
A9: BDI | B9: Valor sem Bdi | C9: BDI | D9: Cidade | E9: Lote | F9: Valor Previsto | G9: 1 | H9: 1.1 | I9: 1.2 | J9: 1.3 | K9: 1.4 | L9: 1.5 | M9: 1.6 | N9: 1.7 | O9: 1.8 | P9: 1.9 | Q9: 1.10 | R9: 1.11 | S9: 1.12 | T9: 1.13 | U9: 1.14 | V9: 1.15 | W9: 1.16 | X9: 1.17 | Y9: 1.18 | Z9: 1.19 | AA9: 1.20 | AB9: 1.21 | AC9: 1.22 | AD9: 1.23 | AE9: 1.24 | AF9: 2 | AG9: 2.1 | AH9: 2.2 | AI9: 2.3 | AJ9: 2.4 | AK9: 2.5 | AL9: 2.6 | AM9: 2.7 | AN9: 2.8 | AO9: 2.9 | AP9: 2.10 | AQ9: 2.11
A10: =TRUNC((B10*C10),2) -> 62673.58 | B10: =TRUNC(SUMPRODUCT($H$8:$AQ$8,H10:AQ10),2) -> 277801.97 | C10: 0.2256052453 | D10: Anahy | E10: Lote 01 | F10: =ROUND(B10+(B10*C10),2) -> 340475.55 | G10: - | H10: 17 | I10: 1 | J10: 77 | K10: 26 | M10: 47.32 | P10: 111 | Q10: 42 | S10: 8 | T10: 1 | U10: 1 | W10: 10 | X10: 2.63 | AH10: 1309.53 | AQ10: 36.98
A11: =ROUND((B11*C11),2) -> 55348.22 | B11: =ROUND(SUMPRODUCT($H$8:$AQ$8,H11:AQ11),2) -> 282182.17 | C11: 0.1961435808 | D11: Atalaia | E11: Lote 03 | F11: 337530.39 | G11: - | H11: 31 | I11: 28 | J11: 76 | K11: 92 | L11: 13 | P11: 150 | Q11: 53 | V11: 47 | W11: 10.9 | AH11: 3677 | AJ11: 375 | AN11: 50 | AP11: 92 | AQ11: 144
A12: =ROUND(B12*C12,2) -> 57514.52 | B12: =ROUND(SUMPRODUCT($H$8:$AQ$8,H12:AQ12),2) -> 237433.39 | C12: 0.2422343333 | D12: Campina da Lagoa | E12: Lote 01 | F12: 294947.91 | G12: - | H12: 33 | J12: 30 | K12: 23 | L12: 19 | P12: 65 | Q12: 20 | W12: 3 | X12: 6.28 | AH12: 6039.31
A13: =ROUND(B13*C13,2) -> 85870.27 | B13: =ROUND(SUMPRODUCT($H$8:$AQ$8,H13:AQ13),2) -> 380621.77 | C13: 0.2256052453 | D13: Cruz Machado | E13: Lote 01 | F13: 466492.04 | G13: - | H13: 9 | I13: 59 | J13: 89 | K13: 111 | L13: 27 | P13: 140 | Q13: 91 | W13: 53 | X13: 20.4 | AH13: 5237 | AJ13: 1320 | AQ13: 30
A14: =ROUND(B14*C14,2) -> 39839.27 | B14: =ROUND(SUMPRODUCT($H$8:$AQ$8,H14:AQ14),2) -> 189969.47 | C14: 0.2097140914 | D14: Diamante do Norte | E14: Lote 03 | F14: 229808.74 | G14: - | H14: 5 | I14: 30 | J14: 19 | K14: 32 | L14: 30 | P14: 58 | Q14: 41 | W14: 26 | X14: 7.1 | AH14: 4142
A15: 40061.71 | B15: =ROUND(SUMPRODUCT($H$8:$AQ$8,H15:AQ15),2) -> 177574.38 | C15: 0.2256052453 | D15: Engenheiro Beltrão | E15: Lote 04 | F15: 217636.09 | G15: - | H15: 35 | I15: 1 | J15: 7 | K15: 1 | L15: 33 | P15: 44 | Q15: 33 | W15: 11 | X15: 2.97 | AH15: 804.98 | AI15: 90.21 | AJ15: 1735.06 | AQ15: 26.54
A16: =TRUNC((B16*C16),2) -> 60356.58 | B16: =TRUNC(SUMPRODUCT($H$8:$AQ$8,H16:AQ16),2) -> 267531.84 | C16: 0.2256052453 | D16: Floresta | E16: Lote 03 | F16: 327888.43 | G16: - | H16: 44 | I16: 0 | J16: 101 | K16: 29 | L16: 6 | P16: 135 | Q16: 26 | W16: 46 | X16: 10.56 | AH16: 4264.72 | AJ16: 731.1 | AO16: 13 | AP16: 20
A17: 60552.99 | B17: =ROUND(SUMPRODUCT($H$8:$AQ$8,H17:AQ17),2) -> 268402.41 | C17: 0.2256052453 | D17: Florestópolis | E17: Lote 04 | F17: =ROUND(B17+(B17*C17),2) -> 328955.4 | G17: - | H17: 32 | J17: 10 | K17: 14 | L17: 1 | M17: 0.8 | P17: 43 | Q17: 9 | W17: 25 | X17: 7.67 | AH17: 6559.67 | AJ17: 487.33 | AQ17: 423.84
A18: 140218.73 | B18: 714878 | C18: 0.1961435808 | D18: Foz do Iguaçu | E18: Lote 02 | F18: 855096.73 | G18: - | T18: 8 | U18: 7 | AB18: 17 | AC18: 2 | AD18: 2 | AE18: 17
A19: =ROUND(B19*C19,2) -> 61252.56 | B19: 271503.27 | C19: 0.2256052453 | D19: Foz do Jordão | E19: Lote 01 | F19: =ROUND(B19+(B19*C19),2) -> 332755.83 | G19: - | H19: 67 | J19: 55 | K19: 118 | L19: 5 | M19: 15.26 | N19: 6 | O19: 4 | P19: 132 | Q19: 59 | T19: 1 | U19: 1 | W19: 23 | X19: 5.69 | AH19: 3463.96
A20: 55823.6 | B20: 284605.79 | C20: 0.1961435808 | D20: Francisco Alves | E20: Lote 02 | F20: 340429.39 | G20: - | H20: 96 | I20: 1 | J20: 32 | K20: 33 | L20: 21 | P20: 133 | Q20: 35 | W20: 28 | X20: 6.21 | AH20: 5872 | AQ20: 145
A21: 104752.8 | B21: 464318.99 | C21: 0.2256052453 | D21: Guaíra | E21: Lote 02 | F21: 569071.79 | G21: - | I21: 3 | J21: 21 | M21: 65.89 | P21: 155 | Q21: 3 | Y21: 6 | AH21: 2431.32 | AJ21: 1013.39 | AL21: 2699.56 | AM21: 20 | AN21: 27 | AO21: 712 | AP21: 110 | AQ21: 121.31
A22: 86354.7 | B22: 382769.01 | C22: 0.2256052453 | D22: Ibaiti | E22: Lote 04 | F22: 469123.71 | G22: - | H22: 23 | I22: 16 | J22: 185 | K22: 59 | L22: 17 | P22: 197 | Q22: 61 | W22: 77 | X22: 27.5 | AH22: 4615 | AI22: 120 | AJ22: 1465
A23: 40215.04 | B23: 189395.25 | C23: 0.2123339378 | D23: Iguaraçu | E23: Lote 03 | F23: 229610.29 | G23: - | H23: 81 | I23: 5 | J23: 54 | K23: 33 | L23: 9 | P23: 152 | Q23: 21 | W23: 64 | X23: 19.4 | AH23: 2813
A24: 56809.37 | B24: 284977.35 | C24: 0.1993469648 | D24: Itaguajé | E24: Lote 03 | F24: 341786.72 | G24: - | H24: 50 | I24: 131 | J24: 6 | K24: 10 | L24: 3 | P24: 191 | Q24: 6 | W24: 105 | X24: 31.5 | AH24: 5560
A25: =ROUND(B25*C25,2) -> 99673.7 | B25: 441805.77 | C25: 0.2256052453 | D25: Itaperuçu | E25: Lote 01 | F25: 541479.47 | G25: - | H25: 22 | I25: 2 | J25: 30 | K25: 49 | L25: 12 | M25: 77.61 | P25: 196 | Q25: 30 | W25: 18 | X25: 3.55 | AH25: 7742.81 | AJ25: 315 | AN25: 1979 | AQ25: 18
A26: 60164.17 | B26: 266678.94 | C26: 0.2256052453 | D26: Ivatuba | E26: Lote 03 | F26: 326843.11 | G26: - | H26: 52 | I26: 80 | J26: 35 | K26: 37 | L26: 9 | P26: 178 | Q26: 26 | W26: 74 | X26: 21.6 | AH26: 4787 | AQ26: 28
A27: =ROUND(B27*C27,2) -> 56248.76 | B27: 286773.37 | C27: 0.1961435808 | D27: Jesuítas | E27: Lote 02 | F27: =TRUNC(B27+(B27*C27),2) -> 343022.12 | I27: 108 | J27: 297 | K27: 54 | L27: 62 | M27: 7.95 | P27: 341 | Q27: 63 | R27: 52 | W27: 227 | X27: 54.24 | Y27: 3
A28: 61109.45 | B28: 270868.92 | C28: 0.2256052453 | D28: Kaloré | E28: Lote 04 | F28: 331978.37 | G28: - | H28: 18 | I28: 46 | J28: 14 | L28: 20 | M28: 3.87 | P28: 72 | Q28: 23 | U28: 1 | W28: 66 | AI28: 1103.37 | AJ28: 2513.7 | AO28: 17
A29: =ROUND(B29*C29,2) -> 66592.99 | B29: 295174.85 | C29: 0.2256052453 | D29: Lapa | E29: Lote 01 | F29: 361767.84 | G29: - | H29: 33 | J29: 20 | K29: 19 | L29: 9 | P29: 75 | Q29: 6 | AI29: 2226.32 | AJ29: 2702.52
A30: 60002.01 | B30: 282583.25 | C30: 0.2123339378 | D30: Lidianópolis | E30: Lote 04 | F30: 342585.26 | G30: - | H30: 46 | I30: 51 | J30: 80 | K30: 136 | L30: 13 | M30: 55 | P30: 214 | Q30: 85 | W30: 78 | X30: 19 | AH30: 2398 | AP30: 15 | AQ30: 40
A31: 61781.39 | B31: 273847.31 | C31: 0.2256052453 | D31: Lindoeste | E31: Lote 02 | F31: 335628.7 | G31: - | H31: 28 | L31: 3 | M31: 21.4 | O31: 24 | P31: 28 | Q31: 3 | W31: 17 | X31: 4.45 | AI31: 667.35 | AJ31: 3482.84 | AQ31: 2.7
A32: 152876.5 | B32: 677628.32 | C32: 0.2256052453 | D32: Londrina | E32: Lote 04 | F32: 830504.82 | G32: - | AH32: 549 | AI32: 8424.61 | AJ32: 5312.24
A33: 31442.72 | B33: 139370.52 | C33: 0.2256052453 | D33: Lupionópolis | E33: Lote 03 | F33: =ROUND(B33+(B33*C33),2) -> 170813.24 | G33: - | H33: 26 | J33: 83 | K33: 82 | L33: 4 | P33: 140 | Q33: 22 | X33: 25.05 | AG33: 1789.64 | AQ33: 1.8
A34: =ROUND((B34*C34),2) -> 40950.71 | B34: 181514.89 | C34: 0.2256052453 | D34: Mallet | E34: Lote 01 | F34: =ROUND(B34+(B34*C34),2) -> 222465.6 | G34: - | M34: 145.42 | P34: 149 | U34: 2 | Y34: 18
A35: =ROUND(B35*C35,2) -> 60759.5 | B35: 269317.77 | C35: 0.2256052453 | D35: Marilena | E35: Lote 03 | F35: =TRUNC(B35+(B35*C35),2) -> 330077.27 | G35: - | H35: 10 | I35: 62 | J35: 45 | K35: 20 | L35: 3 | M35: 6.76 | P35: 130 | Q35: 11 | S35: 1 | W35: 29 | X35: 7.66 | AH35: 5698.91 | AQ35: 65.96
A36: =ROUND(B36*C36,2) -> 63184.39 | B36: 280066.13 | C36: 0.2256052453 | D36: Munhoz de Mello | E36: Lote 03 | F36: =TRUNC(B36+(B36*C36),2) -> 343250.51 | G36: - | H36: 44 | J36: 85 | K36: 34 | L36: 9 | M36: 28.26 | N36: 20 | P36: 131 | Q36: 29 | S36: 6 | W36: 6 | X36: 1.78 | AH36: 1540.45 | AI36: 133.49 | AJ36: 255.68 | AN36: 886 | AQ36: 4.83
A37: =ROUND(B37*C37,2) -> 37099.33 | B37: 189143.72 | C37: 0.1961435808 | D37: Nova Cantu | E37: Lote 01 | F37: =TRUNC(B37+(B37*C37),2) -> 226243.04 | G37: - | H37: 48 | I37: 10 | J37: 57 | K37: 122 | L37: 3 | P37: 129 | Q37: 57 | W37: 14 | X37: 4.16 | AH37: 2446.5
A38: 56557.91 | B38: =ROUND(SUMPRODUCT($H$8:$AQ$8,H38:AQ38),2) -> 283715.94 | C38: 0.1993469648 | D38: Nova Olímipia | E38: Lote 03 | F38: =ROUND(B38+(B38*C38),2) -> 340273.85 | G38: - | H38: 68 | I38: 12 | J38: 72 | K38: 11 | L38: 19 | P38: 163 | Q38: 19 | W38: 52 | X38: 13 | AH38: 1110.87 | AJ38: 2515.75
A39: =ROUND(B39*C39,2) -> 62597.32 | B39: 277463.93 | C39: 0.2256052453 | D39: Palmital | E39: Lote 01 | F39: 340061.25 | G39: - | H39: 23 | I39: 24 | J39: 31 | K39: 73 | L39: 22 | P39: 95 | Q39: 51 | W39: 34 | X39: 5.6 | AH39: 5458 | AP39: 484
A40: 56537.91 | B40: 250605.46 | C40: 0.2256052453 | D40: Paranapoema | E40: Lote 03 | F40: 307143.37 | G40: - | H40: 65 | J40: 108 | K40: 82 | L40: 8 | P40: 198 | Q40: 38 | W40: 65 | X40: 17.4 | AH40: 3632
A41: =ROUND(B41*C41,2) -> 37736.01 | B41: 167265.68 | C41: 0.2256052453 | D41: Paulo Frontin | E41: Lote 01 | F41: 205001.69 | G41: - | H41: 9 | I41: 42 | J41: 40 | K41: 55 | L41: 23 | P41: 146 | Q41: 23 | AH41: 2337.85
A42: 63479.97 | B42: =ROUND(SUMPRODUCT($H$8:$AQ$8,H42:AQ42),2) -> 281376.32 | C42: 0.2256052453 | D42: Peabiru | E42: Lote 04 | F42: =ROUND(B42+(B42*C42),2) -> 344856.29 | G42: - | H42: 92 | J42: 18 | K42: 24 | L42: 30 | N42: 120 | O42: 38 | W42: 51 | X42: 51 | AH42: 4082 | AQ42: 40
A43: 37504.61 | B43: =ROUND(SUMPRODUCT($H$8:$AQ$8,H43:AQ43),2) -> 191209.99 | C43: 0.1961435808 | D43: Pérola | E43: Lote 02 | F43: 228714.6 | G43: - | H43: 25 | J43: 27 | L43: 139 | P43: 41 | Q43: 137 | W43: 1 | X43: 0.21 | AG43: 940.81 | AJ43: 723.71 | AQ43: 69.8
A44: =ROUND(B44*C44,2) -> 38556.05 | B44: =ROUND(SUMPRODUCT($H$8:$AQ$8,H44:AQ44),2) -> 170900.52 | C44: 0.2256052453 | D44: Porto Amazonas | E44: Lote 01 | F44: 209456.57 | G44: - | H44: 67 | J44: 79 | K44: 89 | L44: 1 | P44: 155 | Q44: 40 | W44: 100 | X44: 74.25 | AH44: 1566.26 | AQ44: 11.96
A45: =ROUND(B45*C45,2) -> 63472.39 | B45: =ROUND(SUMPRODUCT($H$8:$AQ$8,H45:AQ45),2) -> 281342.7 | C45: 0.2256052453 | D45: Prado Ferreira | E45: Lote 04 | F45: =TRUNC(B45+(B45*C45),2) -> 344815.08 | H45: 67 | J45: 146 | K45: 244 | L45: 5 | P45: 253 | Q45: 107 | W45: 6 | X45: 0.9 | AH45: 2009.5 | AQ45: 82
A46: 56556.62 | B46: =ROUND(SUMPRODUCT($H$8:$AQ$8,H46:AQ46),2) -> 288342.95 | C46: 0.1961435808 | D46: Quarto Centenário | E46: Lote 02 | F46: 344899.57 | G46: - | H46: 103 | I46: 2 | J46: 22 | K46: 36 | L46: 11 | P46: 163 | W46: 106 | X46: 30.99 | AG46: 7540
A47: 59963.06 | B47: =TRUNC(SUMPRODUCT($H$8:$AQ$8,H47:AQ47),2) -> 282399.78 | C47: 0.2123339378 | D47: Quinta do Sol | E47: Lote 04 | F47: 342362.84 | G47: - | H47: 123 | I47: 14 | J47: 84 | K47: 133 | L47: 19 | M47: 2.75 | P47: 231 | Q47: 80 | S47: 1 | W47: 77 | X47: 20 | AH47: 2403 | AQ47: 102
A48: =ROUND(B48*C48,2) -> 37169.61 | B48: =ROUND(SUMPRODUCT($H$8:$AQ$8,H48:AQ48),2) -> 189502.07 | C48: 0.1961435808 | D48: Reserva do Iguaçu | E48: Lote 01 | F48: =ROUND(B48+(B48*C48),2) -> 226671.68 | G48: - | H48: 6 | I48: 34 | J48: 17 | K48: 6 | L48: 21 | M48: 29.58 | P48: 67 | Q48: 37 | U48: 4 | W48: 18 | X48: 4.47 | AH48: 1266.82 | AI48: 40
A49: =ROUND(B49*C49,2) -> 56133.06 | B49: 281584.73 | C49: 0.1993469648 | D49: Roncador | E49: Lote 01 | F49: 337717.79 | G49: - | H49: 114 | I49: 2 | J49: 97 | K49: 169 | L49: 34 | M49: 13.2 | P49: 210 | Q49: 135 | W49: 102 | X49: 29.33 | AH49: 1420.31 | AQ49: 583.88
A50: 61648.88 | B50: 273259.98 | C50: 0.2256052453 | D50: Salgado Filho | E50: Lote 02 | F50: =ROUND(B50+(B50*C50),2) -> 334908.86 | G50: - | I50: 8 | J50: 7 | K50: 7 | L50: 16 | M50: 49.85 | N50: 28 | O50: 4 | P50: 22 | Q50: 21 | S50: 6 | U50: 2 | V50: 2 | W50: 21 | X50: 17.89 | AI50: 539.22 | AJ50: 1011.02 | AQ50: 38
A51: 63131.55 | B51: 279831.92 | C51: 0.2256052453 | D51: Santa Isabel do Ivaí | E51: Lote 03 | F51: =TRUNC(B51+(B51*C51),2) -> 342963.46 | G51: - | H51: 12 | I51: 49 | J51: 38 | K51: 53 | L51: 39 | P51: 139 | Q51: 49 | W51: 49 | X51: 13.18 | AH51: 4878 | AJ51: 315
A52: =ROUND(B52*C52,2) -> 39850.37 | B52: 187677.82 | C52: 0.2123339378 | D52: Santa Maria do Oeste | E52: Lote 01 | F52: 227528.19 | G52: - | H52: 25 | I52: 1 | J52: 70 | K52: 60 | P52: 94 | Q52: 31 | W52: 18 | X52: 3.56 | AH52: 3704
A53: 40171.19 | B53: 189188.72 | C53: 0.2123339378 | D53: Santa Tereza do Oeste | E53: Lote 02 | F53: 229359.91 | G53: - | H53: 63 | I53: 11 | J53: 71 | K53: 28 | M53: 28.38 | P53: 173 | Q53: 13 | T53: 1 | U53: 3 | W53: 57 | X53: 57
A54: 43922.94 | B54: 194689.36 | C54: 0.2256052453 | D54: Santo Antônio do Sudoeste | E54: Lote 02 | F54: 238612.3 | G54: - | H54: 1 | I54: 12 | J54: 16 | K54: 48 | L54: 43 | P54: 120 | AI54: 2499 | AJ54: 300
A55: 52405.64 | B55: 232289.11 | C55: 0.2256052453 | D55: São Carlos do Ivaí | E55: Lote 03 | F55: 284694.75 | G55: - | H55: 18 | I55: 66 | J55: 21 | K55: 37 | L55: 7 | P55: 125 | Q55: 15 | W55: 55 | X55: 13.3 | AH55: 3481 | AL55: 587 | AQ55: 89
A56: 40280.29 | B56: =ROUND(SUMPRODUCT($H$8:$AQ$8,H56:AQ56),2) -> 189702.55 | C56: 0.2123339378 | D56: São João do Ivaí | E56: Lote 04 | F56: =ROUND(B56+(B56*C56),2) -> 229982.84 | G56: - | H56: 3 | I56: 57 | J56: 70 | K56: 51 | L56: 13 | P56: 155 | Q56: 38 | W56: 96 | X56: 26 | AH56: 2021 | AJ56: 212 | AQ56: 126
A57: 62174.28 | B57: 275588.81 | C57: 0.2256052453 | D57: São Pedro do Paraná | E57: Lote 03 | F57: 337763.09 | G57: - | H57: 6 | I57: 10 | J57: 25 | K57: 68 | L57: 12 | M57: 13.15 | P57: 71 | Q57: 31 | S57: 5 | V57: 1 | W57: 39 | X57: 12.27 | AH57: 2 | AI57: 1126.28 | AJ57: 1597.44 | AO57: 22 | AQ57: 103.05
A58: =ROUND(B58*C58,2) -> 84779.69 | B58: 375787.76 | C58: 0.2256052453 | D58: Sengés | E58: Lote 01 | F58: 460567.45 | G58: - | H58: 39 | J58: 131 | K58: 119 | L58: 15 | P58: 176 | Q58: 70 | W58: 7 | X58: 2 | AH58: 4485 | AJ58: 1560 | AN58: 150 | AQ58: 10
A59: 77614.7 | B59: 395703.51 | C59: 0.1961435808 | D59: Terra Boa | E59: Lote 03 | F59: 473318.21 | G59: - | H59: 40 | I59: 22 | J59: 120 | K59: 100 | L59: 21 | P59: 196 | Q59: 74 | W59: 50 | X59: 13.14 | AH59: 7697 | AQ59: 22.3
A60: 38887.15 | B60: 172368.13 | C60: 0.2256052453 | D60: Três Barras do Paraná | E60: Lote 02 | F60: =ROUND(B60+(B60*C60),2) -> 211255.28 | G60: - | J60: 4 | K60: 4 | L60: 23 | P60: 8 | Q60: 23 | AH60: 4970.88
A61: 50581.94 | B61: =ROUND(SUMPRODUCT($H$8:$AQ$8,H61:AQ61),2) -> 224205.52 | C61: 0.2256052453 | D61: Wenceslau Braz | E61: Lote 04 | F61: 274787.46 | G61: - | H61: 173 | I61: 24 | J61: 115 | K61: 41 | L61: 7 | P61: 320 | Q61: 26 | W61: 65 | X61: 12.2 | AH61: 130.78 | AI61: 22.88 | AJ61: 212.48 | AO61: 89 | AQ61: 154.76
G63: SOMATÓRIO POR LOTE
G64: SOMA LOTE 01 | H64: =SUMIF($E$10:$E$61,"LOTE 01",H10:H61) -> 512 | I64: 175 | J64: 823 | K64: 1039 | L64: 191 | M64: 328.39 | N64: 6 | O64: 4 | P64: 1940 | Q64: 692 | R64: 0 | S64: 8 | T64: 2 | U64: 8 | V64: 0 | W64: 400 | X64: 161.92 | Y64: 18 | Z64: 0 | AA64: 0 | AB64: 0 | AC64: 0 | AD64: 0 | AE64: 0 | AG64: =SUMIF($E$10:$E$61,"LOTE 01",AG10:AG61) -> 0 | AH64: 46477.35 | AI64: 2266.32 | AJ64: 5897.52 | AK64: 0 | AL64: 0 | AM64: 0 | AN64: 2129 | AO64: 0 | AP64: 484 | AQ64: 690.82
G65: SOMA LOTE 02 | H65: =SUMIF($E$10:$E$61,"LOTE 02",H10:H61) -> 316 | I65: 145 | J65: 497 | K65: 210 | L65: 318 | M65: 173.47 | N65: 28 | O65: 28 | P65: 1184 | Q65: 298 | R65: 52 | S65: 6 | T65: 9 | U65: 12 | V65: 2 | W65: 457 | X65: 170.99 | Y65: 9 | Z65: 0 | AA65: 0 | AB65: 17 | AC65: 2 | AD65: 2 | AE65: 17 | AG65: =SUMIF($E$10:$E$61,"LOTE 02",AG10:AG61) -> 8480.81 | AH65: 13274.2 | AI65: 3705.57 | AJ65: 6530.96 | AK65: 0 | AL65: 2699.56 | AM65: 20 | AN65: 27 | AO65: 712 | AP65: 110 | AQ65: 376.81
G66: SOMA LOTE 03 | H66: =SUMIF($E$10:$E$61,"LOTE 03",H10:H61) -> 552 | I66: 495 | J66: 888 | K66: 720 | L66: 192 | M66: 48.17 | N66: 20 | O66: 0 | P66: 2157 | Q66: 461 | R66: 0 | S66: 12 | T66: 0 | U66: 0 | V66: 48 | W66: 670.9 | X66: 206.94 | Y66: 0 | Z66: 0 | AA66: 0 | AB66: 0 | AC66: 0 | AD66: 0 | AE66: 0 | AG66: =SUMIF($E$10:$E$61,"LOTE 03",AG10:AG61) -> 1789.64 | AH66: 53283.95 | AI66: 1259.77 | AJ66: 5789.97 | AK66: 0 | AL66: 587 | AM66: 0 | AN66: 936 | AO66: 35 | AP66: 112 | AQ66: 458.94
G67: SOMA LOTE 04 | H67: =SUMIF($E$10:$E$61,"LOTE 04",H10:H61) -> 612 | I67: 209 | J67: 729 | K67: 703 | L67: 158 | M67: 62.42 | N67: 120 | O67: 38 | P67: 1529 | Q67: 462 | R67: 0 | S67: 1 | T67: 0 | U67: 1 | V67: 0 | W67: 552 | X67: 167.24 | Y67: 0 | Z67: 0 | AA67: 0 | AB67: 0 | AC67: 0 | AD67: 0 | AE67: 0 | AG67: =SUMIF($E$10:$E$61,"LOTE 04",AG10:AG61) -> 0 | AH67: 25572.93 | AI67: 9761.07 | AJ67: 11937.81 | AK67: 0 | AL67: 0 | AM67: 0 | AN67: 0 | AO67: 106 | AP67: 15 | AQ67: 995.14
D68: QUANTITATIVO DA PLANILHA SINTÉTICA
D70: =TRANSPOSE(G64:AQ67) -> SOMA LOTE 01 | E70: SOMA LOTE 02 | F70: SOMA LOTE 03 | G70: SOMA LOTE 04
D71: 512 | E71: 316 | F71: 552 | G71: 612
D72: 175 | E72: 145 | F72: 495 | G72: 209
D73: 823 | E73: 497 | F73: 888 | G73: 729
D74: 1039 | E74: 210 | F74: 720 | G74: 703
A75: LOTE 01 | B75: =SUMIF($E$10:$E$61,A75,$F$10:$F$61) -> 4793631.9 | D75: 191 | E75: 318 | F75: 192 | G75: 158
A76: LOTE 02 | B76: =SUMIF($E$10:$E$61,A76,$F$10:$F$61) -> 4030999.25 | D76: 328.39 | E76: 173.47 | F76: 48.17 | G76: 62.42
A77: LOTE 03 | B77: =SUMIF($E$10:$E$61,A77,$F$10:$F$61) -> 4723765.43 | D77: 6 | E77: 28 | F77: 20 | G77: 120
A78: LOTE 04 | B78: =SUMIF($E$10:$E$61,A78,$F$10:$F$61) -> 4057588.16 | D78: 4 | E78: 28 | F78: 0 | G78: 38
A79: Total | B79: =SUBTOTAL(9,B75:B78) -> 0 | D79: 1940 | E79: 1184 | F79: 2157 | G79: 1529
D80: 692 | E80: 298 | F80: 461 | G80: 462
D81: 0 | E81: 52 | F81: 0 | G81: 0
D82: 8 | E82: 6 | F82: 12 | G82: 1
D83: 2 | E83: 9 | F83: 0 | G83: 0
D84: 8 | E84: 12 | F84: 0 | G84: 1
D85: 0 | E85: 2 | F85: 48 | G85: 0
D86: 400 | E86: 457 | F86: 670.9 | G86: 552
D87: 161.92 | E87: 170.99 | F87: 206.94 | G87: 167.24
D88: 18 | E88: 9 | F88: 0 | G88: 0
D89: 0 | E89: 0 | F89: 0 | G89: 0
D90: 0 | E90: 0 | F90: 0 | G90: 0
D91: 0 | E91: 17 | F91: 0 | G91: 0
D92: 0 | E92: 2 | F92: 0 | G92: 0
D93: 0 | E93: 2 | F93: 0 | G93: 0
D94: 0 | E94: 17 | F94: 0 | G94: 0
D95: 0 | E95: 0 | F95: 0 | G95: 0
D96: 0 | E96: 8480.81 | F96: 1789.64 | G96: 0
D97: 46477.35 | E97: 13274.2 | F97: 53283.95 | G97: 25572.93
D98: 2266.32 | E98: 3705.57 | F98: 1259.77 | G98: 9761.07
D99: 5897.52 | E99: 6530.96 | F99: 5789.97 | G99: 11937.81
D100: 0 | E100: 0 | F100: 0 | G100: 0
D101: 0 | E101: 2699.56 | F101: 587 | G101: 0
D102: 0 | E102: 20 | F102: 0 | G102: 0
D103: 2129 | E103: 27 | F103: 936 | G103: 0
D104: 0 | E104: 712 | F104: 35 | G104: 106
D105: 484 | E105: 110 | F105: 112 | G105: 15
D106: 690.82 | E106: 376.81 | F106: 458.94 | G106: 995.14

Sheet der (hidden)
A1: Código | B1: Descrição do Serviço | C1: Unidade | D1: Custo Execução | E1: Custo Material | F1: Custo Sub-Serviço | G1: Custo Unitário | H1: Transporte | I1: Material | J1: Mão de obra | L1: 45900
A2: 600000 | B2: Escavação manual de vala 1a. cat. | C2: m3 | D2: 44.61 | E2: 0 | F2: 0 | G2: 44.61 | H2: 0 | I2: 44.61 | J2: 0
A3: 820000 | B3: Placa sinalização c/ película refletiva | C3: m2 | D3: 190.97 | E3: 346.85 | F3: 0 | G3: 537.82 | H3: 0 | I3: 190.97 | J3: 346.85
A4: 822100 | B4: Faixa de sinalização horizontal c/tinta resina acrílica base água | C4: m2 | D4: 10.19 | E4: 12.05 | F4: 0 | G4: 22.24 | H4: 0 | I4: 10.19 | J4: 12.05
A5: 515580 | B5: Limpeza de pavimento com jato de água | C5: m2 | D5: 2.49 | E5: 0 | F5: 0 | G5: 2.49 | H5: 0 | I5: 2.49 | J5: 0
A6: 822000 | B6: Faixa de sinalização horizontal c/tinta resina acrílica base solvente | C6: m2 | D6: 10.19 | E6: 17.73 | F6: 0 | G6: 27.92 | H6: 0 | I6: 10.19 | J6: 17.73
A7: 515580 | B7: Limpeza de pavimento com jato de água | C7: m2 | D7: 2.49 | E7: 0 | F7: 0 | G7: 2.49 | H7: 0 | I7: 2.49 | J7: 0
A8: 822350 | B8: Faixa de sinalização horizontal - termoplástico por aspersão - e=1,5mm | C8: m2 | D8: 18.32 | E8: 21.77 | F8: 0 | G8: 40.09 | H8: 0 | I8: 18.32 | J8: 21.77
A9: 515580 | B9: Limpeza de pavimento com jato de água | C9: m2 | D9: 2.49 | E9: 0 | F9: 0 | G9: 2.49 | H9: 0 | I9: 2.49 | J9: 0
A10: 822330 | B10: Pintura de setas e zebrados - termoplástico por extrusão - e=3mm | C10: m2 | D10: 18.32 | E10: 36.08 | F10: 0 | G10: 54.4 | H10: 0 | I10: 18.32 | J10: 36.08
A11: 515580 | B11: Limpeza de pavimento com jato de água | C11: m2 | D11: 2.49 | E11: 0 | F11: 0 | G11: 2.49 | H11: 0 | I11: 2.49 | J11: 0
A12: 822330 | B12: Pintura de setas e zebrados - termoplástico por extrusão - e=3mm | C12: m2 | D12: 18.32 | E12: 36.08 | F12: 0 | G12: 54.4 | H12: 0 | I12: 18.32 | J12: 36.08
A13: 515580 | B13: Limpeza de pavimento com jato de água | C13: m2 | D13: 2.49 | E13: 0 | F13: 0 | G13: 2.49 | H13: 0 | I13: 2.49 | J13: 0
A14: 515580 | B14: Limpeza de pavimento com jato de água | C14: m2 | D14: 2.49 | E14: 0 | F14: 0 | G14: 2.49 | H14: 0 | I14: 2.49 | J14: 0
A15: 515580 | B15: Limpeza de pavimento com jato de água | C15: m2 | D15: 2.49 | E15: 0 | F15: 0 | G15: 2.49 | H15: 0 | I15: 2.49 | J15: 0
A16: 821300 | B16: Suporte metálico galv. fogo d=2,5" c/tampa e aletas anti-giro, h=3,00m | C16: ud | D16: 70.73 | E16: 336.69 | F16: 2.19 | G16: 409.61 | H16: 0 | I16: 72.92 | J16: 336.69
A17: 821350 | B17: Suporte metálico galv. fogo d=2,5" c/tampa e aletas anti-giro, h=3,50m | C17: ud | D17: 70.73 | E17: 392.69 | F17: 2.19 | G17: 465.61 | H17: 0 | I17: 72.92 | J17: 392.69
A18: 821400 | B18: Suporte metálico galv. fogo d=2,5" c/tampa e aletas anti-giro, h=4,00m | C18: ud | D18: 70.73 | E18: 447.83 | F18: 2.19 | G18: 520.75 | H18: 0 | I18: 72.92 | J18: 447.83
A19: 822030 | B19: Suporte metálico galv. fogo perfil "C" 250x85x25x2,70mm, h=5,00m | C19: ud | D19: 106.63 | E19: 1323.76 | F19: 8.76 | G19: 1439.15 | H19: 0 | I19: 115.39 | J19: 1323.76
A20: 870000 | B20: Tacha refletiva monodirecional | C20: ud | D20: 8.6 | E20: 7.8 | F20: 0 | G20: 16.4 | H20: 0 | I20: 8.6 | J20: 7.8
A21: 871000 | B21: Tacha refletiva bidirecional | C21: ud | D21: 8.6 | E21: 8.2 | F21: 0 | G21: 16.8 | H21: 0 | I21: 8.6 | J21: 8.2
A22: 872000 | B22: Tachão refletivo monodirecional | C22: ud | D22: 8.6 | E22: 29.68 | F22: 0 | G22: 38.28 | H22: 0 | I22: 8.6 | J22: 29.68
A23: 873000 | B23: Tachão refletivo bidirecional | C23: ud | D23: 8.6 | E23: 32.3 | F23: 0 | G23: 40.9 | H23: 0 | I23: 8.6 | J23: 32.3
N707: =VLOOKUP(A707,'[4]Table 1'!$A$3:$G$708,7,FALSE) -> 
A708: 972200 | B708: Comercial - caminhão carroceria | C708: t | D708: 0,69x1 + 0, 83x2 | E708: 0 | F708: 0 | G708: 0,82x1 + 0,99x2 | I708: =D708+F708 ->  | J708: =E708 -> 0
A709: 972400 | B709: Comercial - caminhão silo | C709: t | D709: 0,44x1 + 0, 53x2 | E709: 0 | F709: 0 | G709: 0,52x1 + 0,63x2 | J709: 0
A710: 972080 | B710: Comercial - massa concreto usinado - caminhão basculante | C710: t | D710: 0,67x1 + 0, 80x2 | E710: 0 | F710: 0 | G710: 0,80x1 + 0,95x2 | J710: 0
A711: 972100 | B711: Local - caminhão basculante | C711: t | D711: 0,73x1 + 0, 88x2 + 1,84 | E711: 0 | F711: 0 | G711: 0,87x1 + 1,05x2 + 2,20 | J711: 0
A712: 972300 | B712: Local - caminhão carroceria | C712: t | D712: 0,69x1 + 0, 83x2 + 6,95 | E712: 0 | F712: 0 | G712: 0,82x1 + 0,99x2 + 8,32 | J712: 0
A713: 972500 | B713: Local - caminhão silo | C713: t | D713: 0,44x1 + 0, 53x2 + 1,11 | E713: 0 | F713: 0 | G713: 0,52x1 + 0,63x2 + 1,32 | J713: 0
A714: 973100 | B714: Local - massa a frio - caminhão basculante | C714: t | D714: 0,95x1 + 1, 14x2 + 4,75 | E714: 0 | F714: 0 | G714: 1,13x1 + 1,36x2 + 5,68 | J714: 0
A715: 973000 | B715: Local - massa a quente - caminhão basculante | C715: t | D715: 0,95x1 + 1, 14x2 + 5,70 | E715: 0 | F715: 0 | G715: 1,13x1 + 1,36x2 + 6,82 | J715: 0
A716: 972180 | B716: Local - massa concreto usinado - caminhão basculante | C716: t | D716: 0,67x1 + 0, 80x2 + 1,67 | E716: 0 | F716: 0 | G716: 0,80x1 + 0,95x2 + 1,99 | J716: 0
A717: 974100 | B717: Material asfáltico a frio | C717: t | D717: 0,74x + 36,24 | E717: 0 | F717: 0 | G717: 0,88x + 43,39 | J717: 0
A718: 974000 | B718: Material asfáltico a quente | C718: t | D718: 0,82x + 40,26 | E718: 0 | F718: 0 | G718: 0,98x + 48,21 | J718: 0
A719: Data Base: 31/10/2024 (Sem desoneração) Valores expressos em Reais (R$) | I719: 0 | J719: 0
A720: Grupo de serviço: FORNECIMENTO DE VEÍCULOS | I720: 0 | J720: 0
A721: 970050 | B721: Automóvel sedan potência mínima 75 HP (sem motorista) | C721: mes | D721: 5707.37 | E721: 0 | F721: 0 | G721: 5707.37 | I721: 5707.37 | J721: 0
A722: 970250 | B722: Veículo utilitário potência mínima 114 HP (sem motorista) | C722: mes | D722: 9102.75 | E722: 0 | F722: 0 | G722: 9102.75 | I722: 9102.75 | J722: 0
A723: Data Base: 31/10/2024 (Sem desoneração) Valores expressos em Reais (R$) | I723: 0 | J723: 0
A724: Grupo de serviço: ADEQUAÇÃO DE ESTRADAS | I724: 0 | J724: 0
A725: 603010 | B725: Assentamento de tubo 0,40m sem berço | C725: m | D725: 26.58 | E725: 125 | F725: 2.63 | G725: 154.21 | H725: A acrescer | I725: 29.21 | J725: 125
A726: 603020 | B726: Assentamento de tubo 0,60m sem berço | C726: m | D726: 42.07 | E726: 195 | F726: 3.51 | G726: 240.58 | H726: A acrescer | I726: 45.58 | J726: 195
A727: 603040 | B727: Assentamento de tubo 0,80m sem berço | C727: m | D727: 63.1 | E727: 307.5 | F727: 4.39 | G727: 374.99 | H727: A acrescer | I727: 67.49 | J727: 307.5
A728: 421100 | B728: Caixa de retenção | C728: m3 | D728: 7.02 | E728: 0 | F728: 0 | G728: 7.02 | I728: 7.02 | J728: 0
A729: 401110 | B729: Carga e transp. 1a. cat. 0-200m | C729: m3 | D729: 5.85 | E729: 0 | F729: 0 | G729: 5.85 | I729: 5.85 | J729: 0
A730: 401120 | B730: Carga e transp. 1a. cat. 200-400m | C730: m3 | D730: 6.45 | E730: 0 | F730: 0 | G730: 6.45 | I730: 6.45 | J730: 0
A731: 452010 | B731: Cascalhamento | C731: m3 | D731: 6.56 | E731: 0 | F731: 5.35 | G731: 11.91 | H731: A acrescer | I731: 11.91 | J731: 0
A732: 401020 | B732: Desmatamento e limpeza diam. até 30cm | C732: m2 | D732: 1.12 | E732: 0 | F732: 0 | G732: 1.12 | I732: 1.12 | J732: 0
A733: 401010 | B733: Destocamento árvores diam. > 30cm | C733: ud | D733: 47.81 | E733: 0 | F733: 0 | G733: 47.81 | I733: 47.81 | J733: 0
A734: 401150 | B734: Esc. carga e transp. 1a. cat. 0-50m | C734: m3 | D734: 4.33 | E734: 0 | F734: 0 | G734: 4.33 | I734: 4.33 | J734: 0
A735: 401030 | B735: Esc. carga e transp. 1a. cat. 50-200m | C735: m3 | D735: 8.1 | E735: 0 | F735: 0 | G735: 8.1 | I735: 8.1 | J735: 0
A736: 401040 | B736: Esc. carga e transp. 1a. cat. 200-400m | C736: m3 | D736: 8.32 | E736: 0 | F736: 0 | G736: 8.32 | I736: 8.32 | J736: 0
A737: 401050 | B737: Esc. carga e transp. 2a. cat. 0-50m | C737: m3 | D737: 6.6 | E737: 0 | F737: 0 | G737: 6.6 | I737: 6.6 | J737: 0
A738: 401140 | B738: Esc. de vala lateral rasa c/motoniveladora | C738: m | D738: 0.43 | E738: 0 | F738: 0 | G738: 0.43 | I738: 0.43 | J738: 0
A739: 511130 | B739: Escarificação, conformação e compactação do subleito (visual) | C739: m2 | D739: 1.19 | E739: 0 | F739: 0 | G739: 1.19 | I739: 1.19 | J739: 0
A740: 603030 | B740: Escavação de bueiros e valas de drenagem 1a. cat. | C740: m3 | D740: 8.64 | E740: 0 | F740: 0 | G740: 8.64 | I740: 8.64 | J740: 0
A741: 520250 | B741: Escavação e carga mat. jazida 2a. cat. | C741: m3 | D741: 4.46 | E741: 0 | F741: 0 | G741: 4.46 | I741: 4.46 | J741: 0
A742: 401130 | B742: Escavação para saídas de água | C742: m3 | D742: 4.01 | E742: 0 | F742: 0 | G742: 4.01 | I742: 4.01 | J742: 0
A743: 401080 | B743: Lombada | C743: m3 | D743: 2.83 | E743: 0 | F743: 0 | G743: 2.83 | I743: 2.83 | J743: 0
A744: 511030 | B744: Regularização, conformação e compactação de leito (visual) | C744: m2 | D744: 0.73 | E744: 0 | F744: 0 | G744: 0.73 | I744: 0.73 | J744: 0
A745: 401060 | B745: Regularização de leito/patrolamento | C745: m2 | D745: 0.18 | E745: 0 | F745: 0 | G745: 0.18 | I745: 0.18 | J745: 0
A746: 603050 | B746: Remoção de bueiros 0,40m | C746: m | D746: 18.21 | E746: 0 | F746: 0 | G746: 18.21 | I746: 18.21 | J746: 0
A747: 603060 | B747: Remoção de bueiros 0,60m | C747: m | D747: 21.86 | E747: 0 | F747: 0 | G747: 21.86 | I747: 21.86 | J747: 0
A748: 401070 | B748: Retaludamento | C748: m2 | D748: 0.49 | E748: 0 | F748: 0 | G748: 0.49 | I748: 0.49 | J748: 0
A749: Data Base: 31/10/2024 (Sem desoneração) Valores expressos em Reais (R$) | I749: 0 | J749: 0
A750: Grupo de serviço: LIGANTES BETUMINOSOS
A751: 589100 | B751: Fornecimento de asfalto diluído CM-30 | C751: t | D751: 0 | E751: 6099.88 | F751: 0 | G751: 6099.88
A752: 589050 | B752: Fornecimento de asfalto modificado por borracha | C752: t | D752: 0 | E752: 5780.7 | F752: 0 | G752: 5780.7
A753: 589070 | B753: Fornecimento de CAP-30/45 | C753: t | D753: 0 | E753: 4778.77 | F753: 0 | G753: 4778.77
A754: 589000 | B754: Fornecimento de CAP-50/70 | C754: t | D754: 0 | E754: 4826.92 | F754: 0 | G754: 4826.92
A755: 589030 | B755: Fornecimento de CAP-50/70 com polímero elastomérico (55/75) | C755: t | D755: 0 | E755: 5534.11 | F755: 0 | G755: 5534.11
A756: 589040 | B756: Fornecimento de CAP-50/70 com polímero elastomérico (60/85) | C756: t | D756: 0 | E756: 5973.58 | F756: 0 | G756: 5973.58
A757: 589060 | B757: Fornecimento de CAP-50/70 com polímero elastomérico (65/90) | C757: t | D757: 0 | E757: 6141.3 | F757: 0 | G757: 6141.3
A758: 589190 | B758: Fornecimento de emulsão asfáltica EAI p/imprimação | C758: t | D758: 0 | E758: 3612.59 | F758: 0 | G758: 3612.59
A759: 589180 | B759: Fornecimento de emulsão asfáltica RC-1C-E com polímero | C759: t | D759: 0 | E759: 4616.14 | F759: 0 | G759: 4616.14
A760: 589170 | B760: Fornecimento de emulsão asfáltica RL-1C | C760: t | D760: 0 | E760: 3701.61 | F760: 0 | G760: 3701.61
A761: 589220 | B761: Fornecimento de emulsão asfáltica RM-1C | C761: t | D761: 0 | E761: 3640.62 | F761: 0 | G761: 3640.62
A762: 589320 | B762: Fornecimento de emulsão asfáltica RM-2C | C762: t | D762: 0 | E762: 4505.76 | F762: 0 | G762: 4505.76
A763: 589420 | B763: Fornecimento de emulsão asfáltica RR-1C | C763: t | D763: 0 | E763: 3433.55 | F763: 0 | G763: 3433.55
A764: 589430 | B764: Fornecimento de emulsão asfáltica RR-1C-E com polímero | C764: t | D764: 0 | E764: 4045.94 | F764: 0 | G764: 4045.94
A765: 589520 | B765: Fornecimento de emulsão asfáltica RR-2C | C765: t | D765: 0 | E765: 3735.12 | F765: 0 | G765: 3735.12
A766: 589530 | B766: Fornecimento de emulsão asfáltica RR-2C-E com polímero | C766: t | D766: 0 | E766: 5040.44 | F766: 0 | G766: 5040.44
A767: 589040 | B767: Fornecimento de CAP-50/70 com polímero elastomérico (60/85) | C767: t | D767: 0 | E767: 5122.93 | F767: 0 | G767: 5122.93
A768: 589060 | B768: Fornecimento de CAP-50/70 com polímero elastomérico (65/90) | C768: t | D768: 0 | E768: 5610.83 | F768: 0 | G768: 5610.83
A769: 589190 | B769: Fornecimento de emulsão asfáltica EAI p/imprimação | C769: t | D769: 0 | E769: 3392.07 | F769: 0 | G769: 3392.07
A770: 589180 | B770: Fornecimento de emulsão asfáltica RC-1C-E com polímero | C770: t | D770: 0 | E770: 4279.09 | F770: 0 | G770: 4279.09
A771: 589170 | B771: Fornecimento de emulsão asfáltica RL-1C | C771: t | D771: 0 | E771: 3372.42 | F771: 0 | G771: 3372.42
A772: 589220 | B772: Fornecimento de emulsão asfáltica RM-1C | C772: t | D772: 0 | E772: 3458.19 | F772: 0 | G772: 3458.19
A773: 589320 | B773: Fornecimento de emulsão asfáltica RM-2C | C773: t | D773: 0 | E773: 3909.62 | F773: 0 | G773: 3909.62
A774: 589420 | B774: Fornecimento de emulsão asfáltica RR-1C | C774: t | D774: 0 | E774: 3188.46 | F774: 0 | G774: 3188.46
A775: 589430 | B775: Fornecimento de emulsão asfáltica RR-1C-E com polímero | C775: t | D775: 0 | E775: 3869.13 | F775: 0 | G775: 3869.13
A776: 589520 | B776: Fornecimento de emulsão asfáltica RR-2C | C776: t | D776: 0 | E776: 3406.09 | F776: 0 | G776: 3406.09
A777: 589530 | B777: Fornecimento de emulsão asfáltica RR-2C-E com polímero | C777: t | D777: 0 | E777: 3868.44 | F777: 0 | G777: 3868.44

Sheet dnit (hidden)
A1: 45931
A2: 5213351-ed | B2: Suporte polimérico ecológico maciço colapsível D = 6,5 cm para placa de sinalização - fornecimento e implantação - 3,00 m | C2: un | D2: 810.79
A3: 5213364 | B3: Remoção de placa de sinalização | C3: m² | D3: 26.2
A4: 5214009 | B4: Pintura de faixa com plástico a frio bicomponente à base de resinas metacrílicas por extrusão (plano) - espessura de 1,5 mm | C4: m² | D4: 125.87
A5: 5213413 | B5: Pintura de faixa com plástico a frio tricomponente à base de resinas metacrílicas por aspersão - espessura de 0,6 mm | C5: m² | D5: 68.96
A6: 5213351 | B6: Suporte polimérico ecológico maciço colapsível D = 6,5 cm para placa de sinalização - fornecimento e implantação | C6: un | D6: 675.66
A7: 5213364 | B7: Remoção de placa de sinalização | C7: m² | D7: 26.2
A8: 5213837 | B8: Cilindro flexível delimitador de tráfego com duas faixas refletivas e chumbador - D = 20 cm e H = 80 cm | C8: un | D8: 203.93

Sheet scorj (hidden)
B1: 46021
B2: Resultado da Pesquisa de Itens de Serviços
B3: Pesquisa realizada em 03/02/2025 Mês/Ano de Referência: 12/2025 imprimir
B4: Item de Serviço | C4: Descrição | D4: Und. de Medida | E4: Custo R$ | F4: Ocorrências
A5: =SUBSTITUTE(B5," (/)","") -> ST 64.05.0600 | B5: ST 64.05.0600 (/) | C5: Coluna de aco, conica continua tipo I para ate 4 (quatro) bracos projetados capazes de sustentar, cada um, semaforo e placa de 3m2 (tres metros quadrados); coluna galvanizada a fogo; altura util total de 5,00m (cinco metros); diametro na base igual a 187mm (cento e oitenta e sete milimetros); conforme especificacao CET-RIO. Fornecimento.(desonerado) | D5: un | E5: 8287.06 | F5: 0
A6: ST 64.15.0170 (A) | B6: ST 64.15.0170 (A) | C6: Assentamento de coluna de aco conica continua tipo I para ate 4 (quato) bracos projetados capazes de sustentar, cada um, semaforo e placa de 3m2 (tres metros quadrados) fixada por chumbadores engastados em fundacao de concreto, exclusive fundacao, exclusive fornecimento da coluna.(desonerado) | D6: un | E6: 327.37 | F6: 0
A7: ST 64.05.0650 | B7: ST 64.05.0650 (/) | C7: Braco projetado de aco para sustentacao de semaforo e placa ate 3m2 (tres metros quadrados), galvanizado a fogo; para fixacao em coluna cilindrica giratoria, projecao de 2,80m (dois metros e oitenta centimetros); diametro junto a flange de 123mm (cento e vinte e tres milimetros); conforme especificacao CET-RIO. Fornecimento.(desonerado) | D7: un | E7: 3245 | F7: 0
A8: ST 64.15.0180 | B8: ST 64.15.0180 (/) | C8: Montagem de braco projetado de aco em coluna de aco conica continua tipo I assentada, exclusive o fornecimento do braco.(desonerado) | D8: un | E8: 83.93 | F8: 0
A9: ST 64.15.0340 | B9: ST 64.15.0340 (/) | C9: Bloco de concreto armado medindo (0,60 x 0,60 x 1,00)m para uma coluna de aco conica continua para instalacao de ate 4 bracos projetados para sinalizacao.(desonerado) | D9: un | E9: 479.59 | F9: 0
A10: ST 64.05.0600 | B10: ST 64.05.0600 (/) | C10: Coluna de aco, conica continua tipo I para ate 4 (quatro) bracos projetados capazes de sustentar, cada um, semaforo e placa de 3m2 (tres metros quadrados); coluna galvanizada a fogo; altura util total de 5,00m (cinco metros); diametro na base igual a 187mm (cento e oitenta e sete milimetros); conforme especificacao CET-RIO. Fornecimento.(desonerado) | D10: un | E10: 8287.06 | F10: 0
A11: ST 64.15.0170 (A) | B11: ST 64.15.0170 (A) | C11: Assentamento de coluna de aco conica continua tipo I para ate 4 (quato) bracos projetados capazes de sustentar, cada um, semaforo e placa de 3m2 (tres metros quadrados) fixada por chumbadores engastados em fundacao de concreto, exclusive fundacao, exclusive fornecimento da coluna.(desonerado) | D11: un | E11: 327.37 | F11: 0
A12: =SUBSTITUTE(B12," (/)","") -> ST 64.05.0700 | B12: ST 64.05.0700 (/) | C12: Braco projetado de aco para sustentacao de semaforo e placa ate 3m2 (tres metros quadrados), galvanizado a fogo; para fixacao em coluna conico continua tipo I, projecao de 3,70m (tres metros e setenta centimetros); diametro junto a flange de 123mm (cento e vinte e tres milimetros); conforme especificacao CET-RIO. Fornecimento.(desonerado) | D12: un | E12: 3636.68 | F12: 0
A13: ST 64.15.0180 | B13: ST 64.15.0180 (/) | C13: Montagem de braco projetado de aco em coluna de aco conica continua tipo I assentada, exclusive o fornecimento do braco.(desonerado) | D13: un | E13: 83.93 | F13: 0
A14: ST 64.15.0340 | B14: ST 64.15.0340 (/) | C14: Bloco de concreto armado medindo (0,60 x 0,60 x 1,00)m para uma coluna de aco conica continua para instalacao de ate 4 bracos projetados para sinalizacao.(desonerado) | D14: un | E14: 479.59 | F14: 0
A15: ST 64.05.0636 | B15: ST 64.05.0636 (/) | C15: Coluna de aco conica continua tipo II para dois bracos projetados capazes de sustentar, cada um, semaforo e placa de ate 4,50m2; coluna galvanizada a fogo; altura util total de 5m; 300mm de diametro na base; conforme especificacao da CET-RIO. Fornecimento.(desonerado) | D15: un | E15: 12423.77 | F15: 0
A16: ST 64.15.0173 | B16: ST 64.15.0173 (/) | C16: Assentamento de coluna conica continua tipo II para 1 (um) ou 2 (dois) bracos projetados capazes de sustentar, cada um, semaforo e placa de ate 4,5m2 fixada por chumbadores engastados em fundacao de concreto, exclusive fundacao, exclusive fornecimento da coluna.(desonerado) | D16: un | E16: 343.29 | F16: 0
A17: ST 64.05.0760 | B17: ST 64.05.0760 (/) | C17: Braco projetado de aco para sustentacao de semaforo e placa de ate 4,50m2; galvanizado a fogo; para fixacao em coluna conica tipo II; projecao de 6m; 173mm de diametro junto a flange; conforme especificacao da CET-RIO. Fornecimento.(desonerado) | D17: un | E17: 5033.72 | F17: 0
A18: ST 64.15.0186 | B18: ST 64.15.0186 (/) | C18: Montagem de braco projetado em coluna de aco conica continua tipo II assentada, exclusive o fornecimento do braco.(desonerado) | D18: un | E18: 159.39 | F18: 0
A19: ST 64.15.0340 | B19: ST 64.15.0340 (/) | C19: Bloco de concreto armado medindo (0,60 x 0,60 x 1,00)m para uma coluna de aco conica continua para instalacao de ate 4 bracos projetados para sinalizacao.(desonerado) | D19: un | E19: 479.59 | F19: 0
A20: ST 64.15.0300 | B20: ST 64.15.0300 (/) | C20: Retirada de poste com braco projetado, diametro maior que 4".(desonerado) | D20: un | E20: 435.21 | F20: 0
A21: ST 64.15.0200 (A) | B21: ST 64.15.0200 (A) | C21: Retirada de poste simples de aco, diametro de 2".(desonerado) | D21: un | E21: 53.26 | F21: 0
